Body Name,Service Area,Expenses Type,Invoice Payment Date,Transaction Number,Net Amount,Supplier Name
Manchester City Council,Manchester Leisure,Agency staff provision,03.10.2016,5100881498,"18,546.16",University Of Manchester
Manchester City Council,Manchester Leisure,Agency staff provision,03.10.2016,1905300158,"4,095.00",Hays Personnel
Manchester City Council,Manchester Leisure,Agency staff provision,03.10.2016,1905300159,"4,095.00",Hays Personnel
Manchester City Council,Manchester Leisure,Agency staff provision,03.10.2016,1905300160,"4,095.00",Hays Personnel
Manchester City Council,Manchester Leisure,Agency staff provision,03.10.2016,1905300157,"3,685.50",Hays Personnel
Manchester City Council,Manchester Leisure,Levies,03.10.2016,1905300120,"1,074,149.75",GMWDA (LEVY)
Manchester City Council,Hospitality + Trading Services,Agency staff provision,03.10.2016,5100881430,772.08,Search Consultancy Ltd
Manchester City Council,Hospitality + Trading Services,Stationery,03.10.2016,5100881620,835.89,Banner Group Ltd
Manchester City Council,Adult Social Care,Agency staff provision,03.10.2016,5100881420,"8,100.00",HCL Social Care
Manchester City Council,Adult Social Care,Agency staff provision,03.10.2016,5100881420,"2,012.50",HCL Social Care
Manchester City Council,Adult Social Care,Agency staff provision,03.10.2016,5100881428,600.09,Network Ventures Ltd T/A Topcare
Manchester City Council,Adult Social Care,Agency staff provision,03.10.2016,5100881444,967.75,Randstad Care
Manchester City Council,Adult Social Care,Agency staff provision,03.10.2016,1905300148,737.80,Hays Personnel
Manchester City Council,Adult Social Care,Agency staff provision,03.10.2016,1905300149,737.80,Hays Personnel
Manchester City Council,Adult Social Care,Agency staff provision,03.10.2016,1905300146,659.16,Hays Personnel
Manchester City Council,Adult Social Care,Agency staff provision,03.10.2016,1905300144,596.77,Hays Personnel
Manchester City Council,Adult Social Care,Agency staff provision,03.10.2016,5100881419,725.81,PULSE
Manchester City Council,Adult Social Care,Agency staff provision,03.10.2016,5100881464,967.75,Liquid Personnel Ltd
Manchester City Council,Adult Social Care,Agency staff provision,03.10.2016,5100881464,967.75,Liquid Personnel Ltd
Manchester City Council,Adult Social Care,Foster Payments,03.10.2016,1905300119,"4,436.50",Kids in bloom Children Nursery
Manchester City Council,Adult Social Care,Home Care ,03.10.2016,5100881495,594.00,Longsight (Aisha) Nursery
Manchester City Council,Adult Social Care,Payments for services,03.10.2016,5100881478,"30,135.75",Creative Support Ltd
Manchester City Council,Adult Social Care,Payments for services,03.10.2016,5100881519,"23,847.21",David Lewis Organisation
Manchester City Council,Adult Social Care,Payments for services,03.10.2016,5100881520,"20,028.28",David Lewis Organisation
Manchester City Council,Adult Social Care,Payments for services,03.10.2016,5100881521,"16,770.16",David Lewis Organisation
Manchester City Council,Adult Social Care,Payments for services,03.10.2016,5100881492,600.00,The Factory Youth Zone
Manchester City Council,Adult Social Care,Payments for services,03.10.2016,5100881489,"6,919.00",Hulme Hall Grammar School
Manchester City Council,Adult Social Care,Personal needs of client,03.10.2016,5100881494,940.00,Sidhil Ltd
Manchester City Council,Adult Social Care,Professional fees,03.10.2016,5100881490,"3,494.00",AECOM Limited
Manchester City Council,Adult Social Care,Professional fees,03.10.2016,5100881487,"2,261.00",AECOM Limited
Manchester City Council,Adult Social Care,Professional fees,03.10.2016,5100881430,"1,055.39",Search Consultancy Ltd
Manchester City Council,Adult Social Care,Professional fees,03.10.2016,5100881528,"3,500.00",Liquid Personnel Ltd
Manchester City Council,Adult Social Care,Professional fees,03.10.2016,5100881529,"1,400.00",Liquid Personnel Ltd
Manchester City Council,Adult Social Care,Professional fees,03.10.2016,1905300121,"12,395.50",EC Safeguarding Consultancy Ltd
Manchester City Council,Adult Social Care,Third party payments relating to Voluntary Organisations,03.10.2016,5100881459,"38,062.50",Manchester Action On Street Health
Manchester City Council,Adult Social Care,Third party payments relating to Voluntary Organisations,03.10.2016,5100881459,"1,250.01",Manchester Action On Street Health
Manchester City Council,Adult Social Care,Legal Fees,03.10.2016,5100881491,"2,000.00",Kings Chambers
Manchester City Council,Childrens Services,Building Works,03.10.2016,1905300126,"647,521.20",The Dean Trust
Manchester City Council,Corporate Services,Agency staff provision,03.10.2016,1905300161,"3,131.60",Hays Personnel
Manchester City Council,Corporate Services,Agency staff provision,03.10.2016,1905300162,"3,131.60",Hays Personnel
Manchester City Council,Corporate Services,Agency staff provision,03.10.2016,1905300163,"3,131.60",Hays Personnel
Manchester City Council,Corporate Services,Long Term Debtors,03.10.2016,5100881622,"1,013,757.00",THT Development Ltd
Manchester City Council,Housing Revenue Account,I T Provision,03.10.2016,5100881469,885.00,Aareon UK Ltd
Manchester City Council,Housing Revenue Account,I T Provision,03.10.2016,5100881470,885.00,Aareon UK Ltd
Manchester City Council,Housing Revenue Account,I T Provision,03.10.2016,5100881472,885.00,Aareon UK Ltd
Manchester City Council,Housing Revenue Account,I T Provision,03.10.2016,5100881474,885.00,Aareon UK Ltd
Manchester City Council,Housing Revenue Account,I T Provision,03.10.2016,5100881477,885.00,Aareon UK Ltd
Manchester City Council,Housing Revenue Account,Private Finance and Public Private partnership initiatives,03.10.2016,5100881447,"475,567.74",Grove Village Ltd
Manchester City Council,Housing Revenue Account,Private Finance and Public Private partnership initiatives,03.10.2016,5100881451,"475,567.74",Grove Village Ltd
Manchester City Council,Housing Revenue Account,Private Finance and Public Private partnership initiatives,03.10.2016,5100881443,"-475,567.74",Grove Village Ltd
Manchester City Council,Housing Revenue Account,Private Finance and Public Private partnership initiatives,03.10.2016,5100881445,"1,321,802.66",Renaissance Miles Platting Ltd
Manchester City Council,Housing Revenue Account,Rent Refund,03.10.2016,1905300118,"2,446.61",Redacted Personal Information
Manchester City Council,Chief Executives,Agency staff provision,03.10.2016,5100881420,"5,514.72",HCL Social Care
Manchester City Council,Chief Executives,Agency staff provision,03.10.2016,5100881422,"19,517.63",Michael Page International
Manchester City Council,Chief Executives,Agency staff provision,03.10.2016,5100881434,"2,493.03",Bs Project Services Ltd T/A
Manchester City Council,Chief Executives,Agency staff provision,03.10.2016,5100881430,"13,715.95",Search Consultancy Ltd
Manchester City Council,Chief Executives,Agency staff provision,03.10.2016,5100881653,"47,390.42",Hays Personnel
Manchester City Council,Chief Executives,Agency staff provision,03.10.2016,1905300155,"2,012.50",Hays Personnel
Manchester City Council,Chief Executives,Agency staff provision,03.10.2016,1905300156,"2,012.50",Hays Personnel
Manchester City Council,Chief Executives,Agency staff provision,03.10.2016,1905300154,"1,811.25",Hays Personnel
Manchester City Council,Chief Executives,Agency staff provision,03.10.2016,1905300136,"1,500.00",Hays Personnel
Manchester City Council,Chief Executives,Agency staff provision,03.10.2016,1905300137,"1,350.00",Hays Personnel
Manchester City Council,Chief Executives,Agency staff provision,03.10.2016,1905300135,"1,200.00",Hays Personnel
Manchester City Council,Chief Executives,Agency staff provision,03.10.2016,1905300152,"1,050.00",Hays Personnel
Manchester City Council,Chief Executives,Agency staff provision,03.10.2016,1905300153,"1,050.00",Hays Personnel
Manchester City Council,Chief Executives,Agency staff provision,03.10.2016,1905300131,651.41,Hays Personnel
Manchester City Council,Chief Executives,Agency staff provision,03.10.2016,1905300133,642.89,Hays Personnel
Manchester City Council,Chief Executives,Agency staff provision,03.10.2016,1905300134,638.63,Hays Personnel
Manchester City Council,Chief Executives,Agency staff provision,03.10.2016,5100881418,"5,288.00",Proactive Personnel Ltd
Manchester City Council,Chief Executives,Agency staff provision,03.10.2016,5100881614,"8,170.97",Semester Recruitment Ltd
Manchester City Council,Chief Executives,Agency staff provision,03.10.2016,5100881464,"10,938.39",Liquid Personnel Ltd
Manchester City Council,Chief Executives,Agency staff provision,03.10.2016,5100881467,"2,587.23",The FRCE Recruitment Group
Manchester City Council,Chief Executives,Agency staff provision,03.10.2016,5100881449,"42,322.80",Access Computer Consulting plc
Manchester City Council,Chief Executives,Agency staff provision,03.10.2016,5100881446,839.10,iPeople Solutions Ltd
Manchester City Council,Chief Executives,Hire of Machinery,03.10.2016,5100881463,897.80,R & M Developments Ltd
Manchester City Council,Chief Executives,Hire of Machinery,03.10.2016,5100881465,897.80,R & M Developments Ltd
Manchester City Council,Chief Executives,Hire of Machinery,03.10.2016,5100881466,897.80,R & M Developments Ltd
Manchester City Council,Chief Executives,Hire of Machinery,03.10.2016,5100881460,701.40,R & M Developments Ltd
Manchester City Council,Chief Executives,Hire of Machinery,03.10.2016,5100881461,505.28,R & M Developments Ltd
Manchester City Council,Chief Executives,Infrastructure Fees,03.10.2016,1905300164,"1,725.00",Hays Personnel
Manchester City Council,Chief Executives,Infrastructure Fees,03.10.2016,1905300165,"1,725.00",Hays Personnel
Manchester City Council,Chief Executives,Infrastructure Fees,03.10.2016,1905300166,"1,725.00",Hays Personnel
Manchester City Council,Chief Executives,Infrastructure Fees,03.10.2016,1905300167,"1,380.00",Hays Personnel
Manchester City Council,Chief Executives,Infrastructure Fees,03.10.2016,1905300168,"1,380.00",Hays Personnel
Manchester City Council,Chief Executives,Infrastructure Fees,03.10.2016,1905300169,"-1,380.00",Hays Personnel
Manchester City Council,Chief Executives,Other Grants Reimbursements and Contributions,03.10.2016,1905300117,"15,473.20",European Commission
Manchester City Council,Chief Executives,Other Grants Reimbursements and Contributions,03.10.2016,1905300116,983.25,European Commission
Manchester City Council,Chief Executives,Printing,03.10.2016,5100881468,762.50,Mail Solutions
Manchester City Council,Regeneration Finance,Furniture,03.10.2016,5100881482,"1,686.40",Sico Europe Ltd
Manchester City Council,Regeneration Finance,Professional fees,03.10.2016,5100881524,"1,971.20",P Mcguinness & Co Ltd
Manchester City Council,Insurance Fund,Insurance,03.10.2016,5100881503,967.60,Sterling Costs
Manchester City Council,Manchester Leisure,Agency staff provision,04.10.2016,5100881606,"1,099.63",Reed Employment Plc
Manchester City Council,Manchester Leisure,Building Materials for direct delivery,04.10.2016,5100881593,719.92,John Martin Painting Contractors
Manchester City Council,Manchester Leisure,Grant and subscriptions awarded,04.10.2016,5100881433,"-20,000.00",Oldham College Corporation
Manchester City Council,Manchester Leisure,Payments to Sub-Contractors,04.10.2016,5100881648,616.00,John Martin Painting Contractors
Manchester City Council,Manchester Leisure,Professional fees,04.10.2016,5100881676,"4,000.00",Mack Trading (Heaton Park) Ltd
Manchester City Council,Manchester Leisure,Professional fees,04.10.2016,5100881706,"10,000.00",World Academy of Sport
Manchester City Council,Libraries and Theatres,Training and Development,04.10.2016,5100881436,-595.00,Manchester Mind
Manchester City Council,Hospitality + Trading Services,Funeral and coroner related services,04.10.2016,5100881651,"1,240.00",Albert Jones Memorials
Manchester City Council,Hospitality + Trading Services,Lettings Income,04.10.2016,1905300001,"2,000.00",Redacted Personal Information
Manchester City Council,Environment and Operations,Construction Works,04.10.2016,5100881559,"10,000.00",Gaist Solutions Ltd
Manchester City Council,Adult Social Care,Adult Placements,04.10.2016,1905300182,694.82,Redacted Personal Information
Manchester City Council,Adult Social Care,Agency staff provision,04.10.2016,5100881837,527.15,Eden Brown Synergy
Manchester City Council,Adult Social Care,Agency staff provision,04.10.2016,5100881605,"1,906.19",Ashberry Recruitment Ltd
Manchester City Council,Adult Social Care,Bed and Breakfast Accommodation Expenditure,04.10.2016,5100881621,"51,580.71",Accommodation Links Ltd
Manchester City Council,Adult Social Care,Extra Care Sheltered Housing Payments,04.10.2016,5100881675,"15,502.48",Independent Living Alliance
Manchester City Council,Adult Social Care,Fixtures and Fittings,04.10.2016,1905288194,"11,368.30",Barnardos Manchester Leaving Care S
Manchester City Council,Adult Social Care,Furniture,04.10.2016,5100881569,827.90,Back Care Solutions Ltd
Manchester City Council,Adult Social Care,Grant and subscriptions awarded,04.10.2016,5100881584,"11,766.43",Rochdale MBC
Manchester City Council,Adult Social Care,Payments for services,04.10.2016,5100881551,"9,212.22",The Together Trust
Manchester City Council,Adult Social Care,Payments for services,04.10.2016,5100881553,"6,719.25",The Together Trust
Manchester City Council,Adult Social Care,Payments for services,04.10.2016,5100881555,"5,462.96",The Together Trust
Manchester City Council,Adult Social Care,Payments for services,04.10.2016,5100881548,"23,349.00",St John Vianney School
Manchester City Council,Adult Social Care,Payments for services,04.10.2016,5100881550,"3,654.50",St John Vianney School
Manchester City Council,Adult Social Care,Payments for services,04.10.2016,5100881536,"22,342.63",David Lewis Organisation
Manchester City Council,Adult Social Care,Payments for services,04.10.2016,5100881544,"19,992.49",David Lewis Organisation
Manchester City Council,Adult Social Care,Payments for services,04.10.2016,5100881540,"18,418.39",David Lewis Organisation
Manchester City Council,Adult Social Care,Payments for services,04.10.2016,5100881538,"18,215.23",David Lewis Organisation
Manchester City Council,Adult Social Care,Payments for services,04.10.2016,5100881531,"18,085.77",David Lewis Organisation
Manchester City Council,Adult Social Care,Payments for services,04.10.2016,5100881542,"16,995.51",David Lewis Organisation
Manchester City Council,Adult Social Care,Payments for services,04.10.2016,5100881545,"16,877.64",David Lewis Organisation
Manchester City Council,Adult Social Care,Payments for services,04.10.2016,5100881634,"15,876.87",David Lewis Organisation
Manchester City Council,Adult Social Care,Payments for services,04.10.2016,5100881541,"15,392.53",David Lewis Organisation
Manchester City Council,Adult Social Care,Payments for services,04.10.2016,5100881565,"4,433.00",Cumberland & Westmorland
Manchester City Council,Adult Social Care,Payments for services,04.10.2016,5100881568,"4,433.00",Cumberland & Westmorland
Manchester City Council,Adult Social Care,Payments for services,04.10.2016,5100881571,"3,727.25",Cumberland & Westmorland
Manchester City Council,Adult Social Care,Personal needs of client,04.10.2016,5100881535,"2,475.00",Mangar International Ltd
Manchester City Council,Adult Social Care,Personal needs of client,04.10.2016,1905288194,968.32,Barnardos Manchester Leaving Care S
Manchester City Council,Adult Social Care,Personal needs of client,04.10.2016,5100881652,"1,416.00",Bentley Fielden Ltd
Manchester City Council,Adult Social Care,Personal Needs of Residents - Other Amenities,04.10.2016,1905288194,"5,280.40",Barnardos Manchester Leaving Care S
Manchester City Council,Adult Social Care,Professional fees,04.10.2016,5100881606,546.15,Reed Employment Plc
Manchester City Council,Adult Social Care,Professional fees,04.10.2016,5100880692,568.00,Jacobs UK Ltd
Manchester City Council,Adult Social Care,Professional fees,04.10.2016,5100881532,700.00,Liquid Personnel Ltd
Manchester City Council,Adult Social Care,Professional fees,04.10.2016,5100881534,700.00,Liquid Personnel Ltd
Manchester City Council,Adult Social Care,Professional fees,04.10.2016,5100881557,"2,250.00",Con Brio Consulting Limited
Manchester City Council,Adult Social Care,Rents,04.10.2016,5100881590,"1,249.43",Willow Park Housing Trust
Manchester City Council,Adult Social Care,Rents,04.10.2016,5100881590,"1,237.34",Willow Park Housing Trust
Manchester City Council,Adult Social Care,Rents,04.10.2016,1905288194,699.00,Barnardos Manchester Leaving Care S
Manchester City Council,Adult Social Care,Supported Accommodation,04.10.2016,1905300129,760.89,Salford Women's Aid
Manchester City Council,Adult Social Care,Supporting People Payments,04.10.2016,5100881683,"5,075.71",Tung Sing (Orient) Housing Assoc.Lt
Manchester City Council,Adult Social Care,Supporting People Payments,04.10.2016,5100881684,"4,966.78",Tung Sing (Orient) Housing Assoc.Lt
Manchester City Council,Adult Social Care,Third party payments relating to Voluntary Organisations,04.10.2016,5100881743,"25,000.00",Moss Side Millennium Powerhouse Ltd
Manchester City Council,Adult Social Care,Third party payments relating to Voluntary Organisations,04.10.2016,5100881641,"6,498.66",Wai Yin Society
Manchester City Council,Adult Social Care,Third party payments relating to Voluntary Organisations,04.10.2016,5100881642,"2,625.00",Wai Yin Society
Manchester City Council,Adult Social Care,Third party payments relating to Voluntary Organisations,04.10.2016,5100881644,"2,424.41",Wai Yin Society
Manchester City Council,Adult Social Care,Third party payments relating to Voluntary Organisations,04.10.2016,5100881645,"2,395.00",Wai Yin Society
Manchester City Council,Adult Social Care,Third party payments relating to Voluntary Organisations,04.10.2016,5100881643,"2,250.00",Wai Yin Society
Manchester City Council,Adult Social Care,Third party payments to Health Authority,04.10.2016,1905297020,"8,073.72",Stockport NHS Foundation Trust
Manchester City Council,Adult Social Care,Third party payments to Health Authority,04.10.2016,1905297021,"7,578.90",Stockport NHS Foundation Trust
Manchester City Council,Adult Social Care,Third party payments to Health Authority,04.10.2016,1905297019,"1,630.10",Chelsea & Westminster Hosp NHSFT
Manchester City Council,Adult Social Care,Third party payments to Health Authority,04.10.2016,1905297014,"1,143.93",Barts Health NHS Trust
Manchester City Council,Adult Social Care,Third party payments to Health Authority,04.10.2016,1905297018,700.00,Southport & Ormskirk Hospital
Manchester City Council,Adult Social Care,Third party payments to other Local Authorities,04.10.2016,5100881707,"4,668.30",Tameside Metropolitan Bouough
Manchester City Council,Adult Social Care,Third party payments to other Local Authorities,04.10.2016,5100881558,"1,921.50",Bolton Mbc
Manchester City Council,Adult Social Care,Third party payments to other Local Authorities,04.10.2016,5100881696,"4,604.66",Sale Grammar School
Manchester City Council,Adult Social Care,Third party payments to other Local Authorities,04.10.2016,5100881552,"4,196.67",Greenacre School
Manchester City Council,Adult Social Care,Transport Coach Hire,04.10.2016,5100881681,"49,011.00",APTSL
Manchester City Council,Adult Social Care,Transport Coach Hire,04.10.2016,5100881682,"45,574.50",Communitytransportservices.co.uk
Manchester City Council,Adult Social Care,Transport Coach Hire,04.10.2016,5100881624,824.47,MCR Blackcab Ltd
Manchester City Council,Corporate Services,Agency staff provision,04.10.2016,5100881606,832.30,Reed Employment Plc
Manchester City Council,Corporate Services,Fees,04.10.2016,1905271508,"2,590.90",Bristow & Sutor
Manchester City Council,Corporate Services,Fees,04.10.2016,1905271508,"-2,590.90",Bristow & Sutor
Manchester City Council,Corporate Services,Training and Development,04.10.2016,5100881734,"1,500.00",Cipfa
Manchester City Council,Housing General Fund,Works and associated costs for Land and Buildings,04.10.2016,5100880692,816.50,Jacobs UK Ltd
Manchester City Council,Housing General Fund,Works and associated costs for Land and Buildings,04.10.2016,5100880692,781.00,Jacobs UK Ltd
Manchester City Council,Housing Revenue Account,I T Provision,04.10.2016,5100881677,885.00,Aareon UK Ltd
Manchester City Council,Housing Revenue Account,Professional fees,04.10.2016,5100880692,"1,944.00",Jacobs UK Ltd
Manchester City Council,Housing Revenue Account,Professional fees,04.10.2016,5100880692,"1,296.00",Jacobs UK Ltd
Manchester City Council,Housing Revenue Account,Professional fees,04.10.2016,5100881628,"6,172.20",Involve 360
Manchester City Council,Chief Executives,Agency staff provision,04.10.2016,5100881606,"9,430.61",Reed Employment Plc
Manchester City Council,Chief Executives,Agency staff provision,04.10.2016,5100881841,"23,574.73",Eden Brown Synergy
Manchester City Council,Chief Executives,Agency staff provision,04.10.2016,5100881613,"1,056.44",Bennett Staff Bureau
Manchester City Council,Chief Executives,Agency staff provision,04.10.2016,5100881586,851.83,Bennett Staff Bureau
Manchester City Council,Chief Executives,Agency staff provision,04.10.2016,5100881588,898.63,Randstad Care
Manchester City Council,Chief Executives,Agency staff provision,04.10.2016,5100881612,"1,401.50",LAW Absolute
Manchester City Council,Chief Executives,Agency staff provision,04.10.2016,5100881605,"7,890.59",Ashberry Recruitment Ltd
Manchester City Council,Chief Executives,Hire of Equipment,04.10.2016,5100863347,"1,119.51",Xerox Finance Ltd
Manchester City Council,Chief Executives,Hire of Equipment,04.10.2016,5100871031,"1,119.51",Xerox Finance Ltd
Manchester City Council,Chief Executives,Payments to Sub-Contractors,04.10.2016,5100881589,"5,595.00",Vertical Access Ltd
Manchester City Council,Chief Executives,Payments to Sub-Contractors,04.10.2016,5100881585,"-5,595.00",Vertical Access Ltd
Manchester City Council,Chief Executives,Payments to Sub-Contractors,04.10.2016,5100881493,"5,920.52",Rosgal Ltd
Manchester City Council,Chief Executives,Professional fees,04.10.2016,5100881511,"1,067.26",Amey OW Limited
Manchester City Council,Chief Executives,Purchase of stores for re-distribution,04.10.2016,5100881547,"1,620.00",Instarmac Group Ltd
Manchester City Council,Chief Executives,Purchase of stores for re-distribution,04.10.2016,5100881546,"1,129.80",Kloeckner Metals UK
Manchester City Council,Chief Executives,Purchase of stores for re-distribution,04.10.2016,5100881691,"1,129.80",Kloeckner Metals UK
Manchester City Council,Chief Executives,Purchase of stores for re-distribution,04.10.2016,5100881685,"-1,129.80",Kloeckner Metals UK
Manchester City Council,Chief Executives,"Vehicles, Plant, Furniture & Equip - Adaptations",04.10.2016,5100881606,"2,587.50",Reed Employment Plc
Manchester City Council,Chief Executives,"Vehicles, Plant, Furniture & Equip - Adaptations",04.10.2016,5100881606,"1,764.70",Reed Employment Plc
Manchester City Council,Regeneration Finance,External repairs and maintenance for buildings,04.10.2016,5100881666,972.00,Airborne Environmental Consultants
Manchester City Council,Regeneration Finance,Landline Telephone Charges,04.10.2016,1905288601,"2,463.25",BT PLC
Manchester City Council,Regeneration Finance,Professional fees,04.10.2016,5100881512,"-31,700.00",PRP Architects LLP
Manchester City Council,Regeneration Finance,Professional fees,04.10.2016,5100880692,"10,724.00",Jacobs UK Ltd
Manchester City Council,Regeneration Finance,Professional fees,04.10.2016,5100880692,"2,130.00",Jacobs UK Ltd
Manchester City Council,Regeneration Finance,Professional fees,04.10.2016,5100880692,"1,802.25",Jacobs UK Ltd
Manchester City Council,Regeneration Finance,Professional fees,04.10.2016,5100880692,"1,795.30",Jacobs UK Ltd
Manchester City Council,Regeneration Finance,Professional fees,04.10.2016,5100880692,"1,562.00",Jacobs UK Ltd
Manchester City Council,Regeneration Finance,Professional fees,04.10.2016,5100880692,"1,491.00",Jacobs UK Ltd
Manchester City Council,Regeneration Finance,Professional fees,04.10.2016,5100880692,"1,279.20",Jacobs UK Ltd
Manchester City Council,Regeneration Finance,Professional fees,04.10.2016,5100880692,840.00,Jacobs UK Ltd
Manchester City Council,Regeneration Finance,Professional fees,04.10.2016,5100880692,596.40,Jacobs UK Ltd
Manchester City Council,Regeneration Finance,Professional fees,04.10.2016,1905296984,"25,000.00",BSI Speedway Ltd
Manchester City Council,Regeneration Finance,Compensation Payments,04.10.2016,1905296470,"1,800.00",Pinsent Masons LLP
Manchester City Council,Insurance Fund,Insurance,04.10.2016,1905296478,"35,000.00",Simpson Millar LLP
Manchester City Council,Insurance Fund,Insurance,04.10.2016,1905296487,866.00,Department For Work & Pensions
Manchester City Council,Insurance Fund,Insurance,04.10.2016,1905296740,615.00,Department For Work & Pensions
Manchester City Council,Insurance Fund,Insurance,04.10.2016,1905296476,615.00,Department For Work & Pensions
Manchester City Council,Manchester Leisure,Library Materials Acquisition,05.10.2016,1905300067,833.76,Askews and Holts
Manchester City Council,Manchester Leisure,Library Materials Acquisition,05.10.2016,1905300029,694.84,Askews and Holts
Manchester City Council,Manchester Leisure,Library Materials Acquisition,05.10.2016,1905300065,505.00,Askews and Holts
Manchester City Council,Manchester Leisure,Payments for services,05.10.2016,5100881562,"24,700.00",Wright Robinson Sports College
Manchester City Council,Manchester Leisure,Payments for services,05.10.2016,5100881591,"30,250.00",Broadway Leisure Centre (BCDG)
Manchester City Council,Manchester Leisure,Professional fees,05.10.2016,5100881792,917.60,Clearview Event Services Limited
Manchester City Council,Manchester Leisure,Professional fees,05.10.2016,5100881920,"4,375.00",Greater Manchester Community
Manchester City Council,Manchester Leisure,Refuse Collection,05.10.2016,5100877962,"-52,996.96",Biffa Municipal Limited
Manchester City Council,Manchester Leisure,Refuse Collection,05.10.2016,5100877963,"-55,160.06",Biffa Municipal Limited
Manchester City Council,Manchester Leisure,Special Events,05.10.2016,5100881654,850.00,Transport for Greater Manchester
Manchester City Council,Manchester Leisure,Training and Development,05.10.2016,5100881671,590.00,Serco Limited
Manchester City Council,Manchester Leisure,Training and Development,05.10.2016,5100881900,"2,293.93",Redacted Personal Information
Manchester City Council,Manchester Leisure,Training and Development,05.10.2016,5100881899,561.50,Redacted Personal Information
Manchester City Council,Manchester Leisure,Travel,05.10.2016,5100882009,535.78,Cresta World Travel Ltd
Manchester City Council,Hospitality + Trading Services,Catering Provisions,05.10.2016,1905306256,"1,083.03",Brake Bros Foodservice Ltd
Manchester City Council,Hospitality + Trading Services,Catering Provisions,05.10.2016,1905306353,886.27,Brake Bros Foodservice Ltd
Manchester City Council,Hospitality + Trading Services,Catering Provisions,05.10.2016,1905306469,839.15,Brake Bros Foodservice Ltd
Manchester City Council,Hospitality + Trading Services,Catering Provisions,05.10.2016,1905306390,838.50,Brake Bros Foodservice Ltd
Manchester City Council,Hospitality + Trading Services,Catering Provisions,05.10.2016,1905306534,663.75,Brake Bros Foodservice Ltd
Manchester City Council,Hospitality + Trading Services,Catering Provisions,05.10.2016,1905306347,661.73,Brake Bros Foodservice Ltd
Manchester City Council,Hospitality + Trading Services,Catering Provisions,05.10.2016,1905306381,619.74,Brake Bros Foodservice Ltd
Manchester City Council,Hospitality + Trading Services,Catering Provisions,05.10.2016,1905306275,560.28,Brake Bros Foodservice Ltd
Manchester City Council,Hospitality + Trading Services,Catering Provisions,05.10.2016,1905306242,516.69,Brake Bros Foodservice Ltd
Manchester City Council,Hospitality + Trading Services,Catering Provisions,05.10.2016,1905306259,504.06,Brake Bros Foodservice Ltd
Manchester City Council,Hospitality + Trading Services,Catering Provisions,05.10.2016,1905305272,"63,570.49",Ralph Livesey Ltd
Manchester City Council,Hospitality + Trading Services,Catering Provisions,05.10.2016,1905306538,570.02,Ralph Livesey Ltd
Manchester City Council,Hospitality + Trading Services,Equipment,05.10.2016,5100882109,"1,620.00",The Furnishing Service Ltd
Manchester City Council,Hospitality + Trading Services,Equipment,05.10.2016,5100881513,"2,120.00",Tents & Events Ltd
Manchester City Council,Hospitality + Trading Services,Gas,05.10.2016,1905306294,950.54,Brake Bros Foodservice Ltd
Manchester City Council,Hospitality + Trading Services,Vehicle Hire Costs,05.10.2016,5100881914,"67,658.78",Winners Contract Hire Ltd
Manchester City Council,Environment and Operations,Construction Works,05.10.2016,5100881501,"118,344.85",J.Hopkins (Contractors) Ltd.
Manchester City Council,Adult Social Care,Agency staff provision,05.10.2016,5100882072,"3,797.50",Eden Brown Synergy
Manchester City Council,Adult Social Care,Agency staff provision,05.10.2016,5100882071,"1,390.44",Eden Brown Synergy
Manchester City Council,Adult Social Care,Agency staff provision,05.10.2016,5100882067,"1,365.38",Eden Brown Synergy
Manchester City Council,Adult Social Care,Agency staff provision,05.10.2016,5100882065,853.65,Eden Brown Synergy
Manchester City Council,Adult Social Care,Agency staff provision,05.10.2016,5100882063,830.20,Eden Brown Synergy
Manchester City Council,Adult Social Care,Agency staff provision,05.10.2016,5100882070,759.50,Eden Brown Synergy
Manchester City Council,Adult Social Care,Agency staff provision,05.10.2016,5100882068,759.04,Eden Brown Synergy
Manchester City Council,Adult Social Care,Agency staff provision,05.10.2016,5100882069,607.60,Eden Brown Synergy
Manchester City Council,Adult Social Care,Agency staff provision,05.10.2016,5100882062,579.25,Eden Brown Synergy
Manchester City Council,Adult Social Care,Compensation Payments,05.10.2016,1905288169,"12,500.00",Simpson Millar Solicitors LLP
Manchester City Council,Adult Social Care,Compensation Payments,05.10.2016,1905288171,"5,500.00",Simpson Millar Solicitors LLP
Manchester City Council,Adult Social Care,Compensation Payments,05.10.2016,1905296742,"14,700.00",Switalskis Solicitors
Manchester City Council,Adult Social Care,Individual Budget Payment,05.10.2016,1905306673,"10,868.71",Redacted Personal Information
Manchester City Council,Adult Social Care,Payments for services,05.10.2016,5100881822,"5,000.00",Chapter 1
Manchester City Council,Adult Social Care,Personal needs of client,05.10.2016,5100882115,523.16,The Furnishing Service Ltd
Manchester City Council,Adult Social Care,Personal needs of client,05.10.2016,1905306673,"-2,632.63",Redacted Personal Information
Manchester City Council,Adult Social Care,Rents,05.10.2016,5100881820,"5,261.75",Commercial Real Estates Management
Manchester City Council,Adult Social Care,Rents,05.10.2016,1905300127,600.00,Redacted Personal Information
Manchester City Council,Adult Social Care,Rents,05.10.2016,1905296744,600.00,Redacted Personal Information
Manchester City Council,Adult Social Care,Subsistence and Conference Expenses,05.10.2016,5100882018,669.67,Cresta World Travel Ltd
Manchester City Council,Adult Social Care,Supporting People Payments,05.10.2016,5100881824,"2,309.22",Copperdale Trust
Manchester City Council,Adult Social Care,Supporting People Payments,05.10.2016,5100882053,"3,684.74",Northwards Housing Limited
Manchester City Council,Adult Social Care,Supporting People Payments,05.10.2016,5100882048,"-3,684.74",Northwards Housing Limited
Manchester City Council,Adult Social Care,Third party payments relating to Voluntary Organisations,05.10.2016,5100881885,533.87,University Hospital of South Mcr
Manchester City Council,Adult Social Care,Third party payments relating to Voluntary Organisations,05.10.2016,5100873371,851.13,The Edward Mayes Trust
Manchester City Council,Adult Social Care,Third party payments relating to Voluntary Organisations,05.10.2016,5100881577,"4,344.75",Greater Manchester Coalition Of Dis
Manchester City Council,Adult Social Care,Third party payments relating to Voluntary Organisations,05.10.2016,5100881679,"4,376.26",Manchester United Foundation
Manchester City Council,Adult Social Care,Third party payments to Health Authority,05.10.2016,5100881660,"11,786.23",Central Manchester University Hosp
Manchester City Council,Adult Social Care,Third party payments to other Local Authorities,05.10.2016,5100881781,"14,930.00",Oldham Borough Council
Manchester City Council,Adult Social Care,Third party payments to other Local Authorities,05.10.2016,5100881877,"18,303.80",Tameside Metropolitan Bouough
Manchester City Council,Adult Social Care,Third party payments to other Local Authorities,05.10.2016,5100881857,"17,595.00",Stockport Metropolitan Borough
Manchester City Council,Adult Social Care,Third party payments to other Local Authorities,05.10.2016,5100881595,"2,295.00",St Hugh's Catholic Primary School
Manchester City Council,Adult Social Care,Compensation Payments,05.10.2016,1905296488,"2,575.00",Jordans Solicitors
Manchester City Council,Corporate Services,Cash Collection,05.10.2016,1905305304,"23,630.68",Merchant Rentals
Manchester City Council,Corporate Services,Furniture,05.10.2016,5100882312,"1,075.77",The Furnishing Service Ltd
Manchester City Council,Corporate Services,Furniture,05.10.2016,5100882291,805.37,The Furnishing Service Ltd
Manchester City Council,Corporate Services,Furniture,05.10.2016,5100882270,758.34,The Furnishing Service Ltd
Manchester City Council,Corporate Services,Furniture,05.10.2016,5100882272,676.27,The Furnishing Service Ltd
Manchester City Council,Corporate Services,Furniture,05.10.2016,5100882296,629.24,The Furnishing Service Ltd
Manchester City Council,Corporate Services,Furniture,05.10.2016,5100882301,588.48,The Furnishing Service Ltd
Manchester City Council,Corporate Services,Furniture,05.10.2016,5100882271,572.89,The Furnishing Service Ltd
Manchester City Council,Corporate Services,Furniture,05.10.2016,5100882275,572.89,The Furnishing Service Ltd
Manchester City Council,Corporate Services,Travel Season Ticket Loan Scheme,05.10.2016,5100881871,"1,055.45",Transport for Greater Manchester
Manchester City Council,Corporate Services,Travel Season Ticket Loan Scheme,05.10.2016,5100881871,747.00,Transport for Greater Manchester
Manchester City Council,Corporate Services,Travel Season Ticket Loan Scheme,05.10.2016,5100881871,646.00,Transport for Greater Manchester
Manchester City Council,Corporate Services,Welfare Provision Service Awards,05.10.2016,5100882372,959.53,The Furnishing Service Ltd
Manchester City Council,Corporate Services,Welfare Provision Service Awards,05.10.2016,5100882166,901.24,The Furnishing Service Ltd
Manchester City Council,Corporate Services,Welfare Provision Service Awards,05.10.2016,5100882238,832.09,The Furnishing Service Ltd
Manchester City Council,Corporate Services,Welfare Provision Service Awards,05.10.2016,5100882209,816.63,The Furnishing Service Ltd
Manchester City Council,Corporate Services,Welfare Provision Service Awards,05.10.2016,5100882169,805.37,The Furnishing Service Ltd
Manchester City Council,Corporate Services,Welfare Provision Service Awards,05.10.2016,5100882219,805.37,The Furnishing Service Ltd
Manchester City Council,Corporate Services,Welfare Provision Service Awards,05.10.2016,5100882370,758.34,The Furnishing Service Ltd
Manchester City Council,Corporate Services,Welfare Provision Service Awards,05.10.2016,5100882274,728.84,The Furnishing Service Ltd
Manchester City Council,Corporate Services,Welfare Provision Service Awards,05.10.2016,5100882154,689.13,The Furnishing Service Ltd
Manchester City Council,Corporate Services,Welfare Provision Service Awards,05.10.2016,5100882175,689.13,The Furnishing Service Ltd
Manchester City Council,Corporate Services,Welfare Provision Service Awards,05.10.2016,5100882213,689.13,The Furnishing Service Ltd
Manchester City Council,Corporate Services,Welfare Provision Service Awards,05.10.2016,5100882376,689.13,The Furnishing Service Ltd
Manchester City Council,Corporate Services,Welfare Provision Service Awards,05.10.2016,5100882366,683.67,The Furnishing Service Ltd
Manchester City Council,Corporate Services,Welfare Provision Service Awards,05.10.2016,5100882369,683.67,The Furnishing Service Ltd
Manchester City Council,Corporate Services,Welfare Provision Service Awards,05.10.2016,5100882339,676.27,The Furnishing Service Ltd
Manchester City Council,Corporate Services,Welfare Provision Service Awards,05.10.2016,5100882371,676.27,The Furnishing Service Ltd
Manchester City Council,Corporate Services,Welfare Provision Service Awards,05.10.2016,5100882159,675.03,The Furnishing Service Ltd
Manchester City Council,Corporate Services,Welfare Provision Service Awards,05.10.2016,5100882262,642.36,The Furnishing Service Ltd
Manchester City Council,Corporate Services,Welfare Provision Service Awards,05.10.2016,5100882150,629.24,The Furnishing Service Ltd
Manchester City Council,Corporate Services,Welfare Provision Service Awards,05.10.2016,5100882164,629.24,The Furnishing Service Ltd
Manchester City Council,Corporate Services,Welfare Provision Service Awards,05.10.2016,5100882363,599.55,The Furnishing Service Ltd
Manchester City Council,Corporate Services,Welfare Provision Service Awards,05.10.2016,5100882202,577.53,The Furnishing Service Ltd
Manchester City Council,Corporate Services,Welfare Provision Service Awards,05.10.2016,5100882138,572.89,The Furnishing Service Ltd
Manchester City Council,Corporate Services,Welfare Provision Service Awards,05.10.2016,5100882211,572.89,The Furnishing Service Ltd
Manchester City Council,Corporate Services,Welfare Provision Service Awards,05.10.2016,5100882348,572.89,The Furnishing Service Ltd
Manchester City Council,Corporate Services,Welfare Provision Service Awards,05.10.2016,5100882367,572.89,The Furnishing Service Ltd
Manchester City Council,Corporate Services,Welfare Provision Service Awards,05.10.2016,5100882381,572.89,The Furnishing Service Ltd
Manchester City Council,Corporate Services,Welfare Provision Service Awards,05.10.2016,5100882241,572.88,The Furnishing Service Ltd
Manchester City Council,Corporate Services,Welfare Provision Service Awards,05.10.2016,5100882307,539.63,The Furnishing Service Ltd
Manchester City Council,Corporate Services,Welfare Provision Service Awards,05.10.2016,5100882216,538.98,The Furnishing Service Ltd
Manchester City Council,Corporate Services,Welfare Provision Service Awards,05.10.2016,5100882359,532.13,The Furnishing Service Ltd
Manchester City Council,Corporate Services,Welfare Provision Service Awards,05.10.2016,5100882162,525.86,The Furnishing Service Ltd
Manchester City Council,Corporate Services,Welfare Provision Service Awards,05.10.2016,5100882168,525.86,The Furnishing Service Ltd
Manchester City Council,Corporate Services,Welfare Provision Service Awards,05.10.2016,5100882179,525.86,The Furnishing Service Ltd
Manchester City Council,Corporate Services,Welfare Provision Service Awards,05.10.2016,5100882340,524.88,The Furnishing Service Ltd
Manchester City Council,Corporate Services,Welfare Provision Service Awards,05.10.2016,5100882176,524.49,The Furnishing Service Ltd
Manchester City Council,Corporate Services,Welfare Provision Service Awards,05.10.2016,5100882349,519.27,The Furnishing Service Ltd
Manchester City Council,Housing General Fund,Building Works,05.10.2016,1905305210,"2,854.30",Chiltern Invadex Ltd
Manchester City Council,Housing General Fund,Building Works,05.10.2016,1905305230,"1,881.20",Chiltern Invadex Ltd
Manchester City Council,Housing General Fund,Building Works,05.10.2016,1905305227,"4,631.00",Stannah Lift Services Ltd
Manchester City Council,Housing General Fund,Building Works,05.10.2016,1905305225,"4,344.83",Stannah Lift Services Ltd
Manchester City Council,Housing General Fund,Building Works,05.10.2016,1905305214,"4,017.00",Stannah Lift Services Ltd
Manchester City Council,Housing General Fund,Building Works,05.10.2016,1905305219,"3,030.00",Stannah Lift Services Ltd
Manchester City Council,Housing General Fund,Building Works,05.10.2016,1905305231,"4,026.00",Thyssenkrupp Encasa
Manchester City Council,Housing General Fund,Building Works,05.10.2016,1905305226,"3,896.00",Thyssenkrupp Encasa
Manchester City Council,Housing General Fund,Building Works,05.10.2016,1905305232,"2,150.00",Hoist & Shower Chair Company
Manchester City Council,Housing General Fund,Building Works,05.10.2016,1905301230,"2,600.00",Bespoke Composite Doors Ltd
Manchester City Council,Housing General Fund,Building Works,05.10.2016,1905305217,"7,865.35",Kier Services Ltd - Maint West
Manchester City Council,Housing General Fund,Building Works,05.10.2016,1905305212,"5,290.94",Kier Services Ltd - Maint West
Manchester City Council,Housing General Fund,Building Works,05.10.2016,1905305206,"4,116.36",Kier Services Ltd - Maint West
Manchester City Council,Housing General Fund,Building Works,05.10.2016,1905305220,"4,030.35",Kier Services Ltd - Maint West
Manchester City Council,Housing General Fund,Building Works,05.10.2016,1905305207,"2,937.23",Kier Services Ltd - Maint West
Manchester City Council,Housing General Fund,Building Works,05.10.2016,1905305211,"1,191.12",Kier Services Ltd - Maint West
Manchester City Council,Housing General Fund,Building Works,05.10.2016,1905305229,"1,189.00",Kier Services Ltd - Maint West
Manchester City Council,Housing General Fund,Building Works,05.10.2016,1905305224,"6,312.90",UPS Building & Maintenance Ltd
Manchester City Council,Housing General Fund,Building Works,05.10.2016,1905305205,"5,105.21",UPS Building & Maintenance Ltd
Manchester City Council,Housing General Fund,Building Works,05.10.2016,1905305222,"4,972.20",UPS Building & Maintenance Ltd
Manchester City Council,Housing General Fund,Building Works,05.10.2016,1905305209,"4,533.96",UPS Building & Maintenance Ltd
Manchester City Council,Housing General Fund,Building Works,05.10.2016,1905305221,"4,272.25",UPS Building & Maintenance Ltd
Manchester City Council,Housing General Fund,Building Works,05.10.2016,1905305223,"4,250.99",UPS Building & Maintenance Ltd
Manchester City Council,Housing General Fund,Building Works,05.10.2016,1905305208,"3,800.88",UPS Building & Maintenance Ltd
Manchester City Council,Housing Revenue Account,Council Dwelling Adaptations,05.10.2016,5100882080,"-11,884.31",JTC Furniture Group
Manchester City Council,Housing Revenue Account,Rent Refund,05.10.2016,1700066112,"-2,446.61",Redacted Personal Information
Manchester City Council,Housing Revenue Account,Legal Fees,05.10.2016,1905296737,"1,599.05",Sph Costing Services Ltd
Manchester City Council,Chief Executives,Agency staff provision,05.10.2016,5100881927,"3,458.36",Bs Project Services Ltd T/A
Manchester City Council,Chief Executives,Agency staff provision,05.10.2016,5100882073,"50,000.00",Eden Brown Synergy
Manchester City Council,Chief Executives,Agency staff provision,05.10.2016,5100882074,"48,054.07",Eden Brown Synergy
Manchester City Council,Chief Executives,Agency staff provision,05.10.2016,5100882076,"37,152.72",Eden Brown Synergy
Manchester City Council,Chief Executives,Agency staff provision,05.10.2016,5100882077,"2,418.50",Eden Brown Synergy
Manchester City Council,Chief Executives,Agency staff provision,05.10.2016,5100881840,"-8,400.00",Eden Brown Synergy
Manchester City Council,Chief Executives,Agency staff provision,05.10.2016,5100854067,"1,147.05",Spring Technology Staffing Services
Manchester City Council,Chief Executives,Agency staff provision,05.10.2016,5100881954,"-1,190.00",Spring Technology Staffing Services
Manchester City Council,Chief Executives,Agency staff provision,05.10.2016,5100881967,"4,784.85",Hays Personnel
Manchester City Council,Chief Executives,Agency staff provision,05.10.2016,5100881603,"7,550.73",Ashberry Recruitment Ltd
Manchester City Council,Chief Executives,Agency staff provision,05.10.2016,5100882075,"5,115.25",Caritas Recruitment
Manchester City Council,Chief Executives,Bank Charges,05.10.2016,1905305304,969.49,Merchant Rentals
Manchester City Council,Chief Executives,Building Materials for direct delivery,05.10.2016,5100881958,"9,846.69",Marshalls Mono Ltd
Manchester City Council,Chief Executives,Building Materials for direct delivery,05.10.2016,5100881964,"9,643.91",Marshalls Mono Ltd
Manchester City Council,Chief Executives,Building Materials for direct delivery,05.10.2016,5100881965,"9,541.43",Marshalls Mono Ltd
Manchester City Council,Chief Executives,Building Materials for direct delivery,05.10.2016,5100881968,"2,802.00",Marshalls Mono Ltd
Manchester City Council,Chief Executives,Building Materials for direct delivery,05.10.2016,1905306723,"2,686.40",Benchmark Building Supplies Ltd
Manchester City Council,Chief Executives,Expenditure re Internal Trading Ordered Externally,05.10.2016,5100881825,"4,500.00",Mighty Giant Ltd
Manchester City Council,Chief Executives,Expenditure re Internal Trading Ordered Externally,05.10.2016,5100881827,"1,500.00",Mighty Giant Ltd
Manchester City Council,Chief Executives,Expenditure re Internal Trading Ordered Externally,05.10.2016,5100881826,"1,000.00",Mighty Giant Ltd
Manchester City Council,Chief Executives,Grant Payments,05.10.2016,5100881892,"6,250.00",Community Arts North West
Manchester City Council,Chief Executives,Hire of Machinery,05.10.2016,5100881861,"2,486.93",One Stop Hire Limited
Manchester City Council,Chief Executives,Hire of Machinery,05.10.2016,5100881861,"2,486.93",One Stop Hire Limited
Manchester City Council,Chief Executives,ICT Support & Maintenance,05.10.2016,5100881921,"3,089.50",NCC Group Signify Solutions Ltd
Manchester City Council,Chief Executives,Mobilephone Charges,05.10.2016,1905305268,"36,526.45",EE / Orange
Manchester City Council,Chief Executives,Payments to Sub-Contractors,05.10.2016,5100881703,"4,620.00",Groundwork Landscapes Ltd
Manchester City Council,Chief Executives,Payments to Sub-Contractors,05.10.2016,5100881836,"14,094.71",Amey Highways Lighting (Manchester)
Manchester City Council,Chief Executives,Payments to Sub-Contractors,05.10.2016,5100881867,"4,250.00",Northern Marking Limited
Manchester City Council,Chief Executives,Payments to Sub-Contractors,05.10.2016,5100881875,"1,350.00",Northern Marking Limited
Manchester City Council,Chief Executives,Payments to Sub-Contractors,05.10.2016,5100881870,"-4,250.00",Northern Marking Limited
Manchester City Council,Chief Executives,Printing,05.10.2016,5100881596,"1,880.00",Browns CTP Ltd
Manchester City Council,Chief Executives,Printing,05.10.2016,5100881638,"2,332.00",NB Colour Print Limited
Manchester City Council,Chief Executives,Printing,05.10.2016,5100881629,534.00,NB Colour Print Limited
Manchester City Council,Chief Executives,Works and associated costs for Land and Buildings,05.10.2016,5100881951,"3,480.00",Police and Crime Commissioner
Manchester City Council,Chief Executives,Compensation Payments,05.10.2016,1905299171,537.54,Paul Rooney Solicitors
Manchester City Council,Regeneration Finance,Car Parking Permits,05.10.2016,5100879213,"1,043.33",National Car Parks Ltd Season Ticke
Manchester City Council,Regeneration Finance,External repairs and maintenance for buildings,05.10.2016,5100881785,"11,900.00",Simon & Simon Security (NW) Ltd
Manchester City Council,Regeneration Finance,External repairs and maintenance for buildings,05.10.2016,5100881788,"11,900.00",Simon & Simon Security (NW) Ltd
Manchester City Council,Regeneration Finance,External repairs and maintenance for buildings,05.10.2016,5100881786,"-11,900.00",Simon & Simon Security (NW) Ltd
Manchester City Council,Regeneration Finance,External repairs and maintenance for buildings,05.10.2016,5100881787,"-11,900.00",Simon & Simon Security (NW) Ltd
Manchester City Council,Regeneration Finance,Professional Services Provision,05.10.2016,5100881934,"4,112.00",Hertel Solutions Ltd
Manchester City Council,Regeneration Finance,Professional Services Provision,05.10.2016,5100881933,"3,032.00",Hertel Solutions Ltd
Manchester City Council,Regeneration Finance,Rents,05.10.2016,1905299169,"12,500.00",Asda Stores Ltd (Leeds)
Manchester City Council,Regeneration Finance,Rents,05.10.2016,1905277369,"41,499.25",CBRE Ltd
Manchester City Council,Regeneration Finance,Rents,05.10.2016,1905300005,"2,118.00",Manchester Airport Plc
Manchester City Council,Regeneration Finance,Tables and Chairs Licences Income,05.10.2016,1905299990,505.60,Osheas Mancunian Pub
Manchester City Council,Manchester Leisure,Building Materials for direct delivery,06.10.2016,5100881741,750.00,Willfab Ltd
Manchester City Council,Manchester Leisure,Construction Works,06.10.2016,5100881507,"3,990.00",Wicksteed Leisure Ltd
Manchester City Council,Manchester Leisure,Construction Works,06.10.2016,5100881567,"2,080.00",Groundwork & Leisure Services Ltd
Manchester City Council,Manchester Leisure,Construction Works,06.10.2016,5100881945,"1,400.00",Groundwork & Leisure Services Ltd
Manchester City Council,Manchester Leisure,Construction Works,06.10.2016,5100881947,"1,000.00",Groundwork & Leisure Services Ltd
Manchester City Council,Manchester Leisure,Equipment,06.10.2016,5100881504,"2,377.85",Wicksteed Leisure Ltd
Manchester City Council,Manchester Leisure,Equipment,06.10.2016,5100882206,790.00,Willfab Ltd
Manchester City Council,Manchester Leisure,Grant Payments,06.10.2016,1905295823,"1,050.00",Over 50's Activity Club
Manchester City Council,Manchester Leisure,Payments for services,06.10.2016,5100881864,"12,901.00",Bancroft Amenities Ltd
Manchester City Council,Manchester Leisure,Payments for services,06.10.2016,5100882039,"8,726.25",The Fitness Training Academy Ltd
Manchester City Council,Manchester Leisure,Payments to Sub-Contractors,06.10.2016,5100881649,616.00,John Martin Painting Contractors
Manchester City Council,Manchester Leisure,Payments to Sub-Contractors,06.10.2016,5100882003,795.00,geViews
Manchester City Council,Manchester Leisure,Printing,06.10.2016,5100882233,"1,220.80",T/A Spectrum Plast
Manchester City Council,Manchester Leisure,Professional fees,06.10.2016,5100882397,"1,304.90",Clearview Event Services Limited
Manchester City Council,Manchester Leisure,Professional fees,06.10.2016,5100881626,"4,420.00",Event Technical Support
Manchester City Council,Hospitality + Trading Services,Catering Provisions,06.10.2016,1905307127,790.08,Brake Bros Foodservice Ltd
Manchester City Council,Hospitality + Trading Services,Catering Provisions,06.10.2016,1905307177,733.18,Brake Bros Foodservice Ltd
Manchester City Council,Hospitality + Trading Services,Catering Provisions,06.10.2016,1905307194,706.15,Brake Bros Foodservice Ltd
Manchester City Council,Hospitality + Trading Services,Catering Provisions,06.10.2016,1905307223,610.42,Brake Bros Foodservice Ltd
Manchester City Council,Hospitality + Trading Services,Catering Provisions,06.10.2016,1905307178,610.19,Brake Bros Foodservice Ltd
Manchester City Council,Hospitality + Trading Services,Catering Provisions,06.10.2016,1905307216,609.63,Brake Bros Foodservice Ltd
Manchester City Council,Hospitality + Trading Services,Catering Provisions,06.10.2016,1905307171,592.29,Brake Bros Foodservice Ltd
Manchester City Council,Hospitality + Trading Services,Catering Provisions,06.10.2016,1905307212,584.15,Brake Bros Foodservice Ltd
Manchester City Council,Hospitality + Trading Services,Catering Provisions,06.10.2016,1905307121,511.71,Brake Bros Foodservice Ltd
Manchester City Council,Hospitality + Trading Services,Catering Provisions,06.10.2016,1905307224,510.66,Brake Bros Foodservice Ltd
Manchester City Council,Hospitality + Trading Services,Catering Provisions,06.10.2016,1905307219,502.35,Brake Bros Foodservice Ltd
Manchester City Council,Hospitality + Trading Services,Catering Provisions,06.10.2016,1905307181,835.96,Chicken Joes Limited
Manchester City Council,Hospitality + Trading Services,Electricity,06.10.2016,5100881625,575.00,Event Technical Support
Manchester City Council,Hospitality + Trading Services,Hire of Machinery,06.10.2016,5100882481,"3,045.00",F.R.Sharrock Ltd
Manchester City Council,Environment and Operations,Construction Works,06.10.2016,5100881903,"4,400.00",Utilities Design & Planning Ltd
Manchester City Council,Environment and Operations,Works and associated costs for Land and Buildings,06.10.2016,5100881907,"7,470.00",MRM Street Furniture Ltd
Manchester City Council,Adult Social Care,Bed and Breakfast Accommodation Expenditure,06.10.2016,5100882089,"14,231.42",G & A Taylor Hotels Ltd
Manchester City Council,Adult Social Care,Contract Cleaning External,06.10.2016,5100881627,"2,976.00",Barnardo's North West
Manchester City Council,Adult Social Care,Contract Cleaning External,06.10.2016,5100882049,"2,976.00",Barnardo's North West
Manchester City Council,Adult Social Care,Contract Cleaning External,06.10.2016,5100882046,"-2,976.00",Barnardo's North West
Manchester City Council,Adult Social Care,Equipment,06.10.2016,5100882449,"2,506.80",PAC-UK Ltd
Manchester City Council,Adult Social Care,Grant and subscriptions awarded,06.10.2016,5100882450,"6,000.00",Wythenshawe Community Housing Group
Manchester City Council,Adult Social Care,Home Care ,06.10.2016,5100881745,"19,000.00",One Education Ltd
Manchester City Council,Adult Social Care,I T Provision,06.10.2016,5100882081,"1,170.00",Ezitracker Ltd
Manchester City Council,Adult Social Care,Internal Repairs and Maintenance for buildings,06.10.2016,5100882095,783.13,Manchester Working Ltd
Manchester City Council,Adult Social Care,Payments for services,06.10.2016,5100882276,"45,500.00",Social Care Services (Clayton) Ltd
Manchester City Council,Adult Social Care,Payments for services,06.10.2016,5100882336,"20,000.00",Hull City Council
Manchester City Council,Adult Social Care,Personal needs of client,06.10.2016,5100882004,"3,264.66",Aidapt Bathrooms Ltd
Manchester City Council,Adult Social Care,Personal needs of client,06.10.2016,5100882096,"1,740.00",Ultimate Healthcare
Manchester City Council,Adult Social Care,Postage,06.10.2016,5100881911,787.00,Royal Mail Group Plc
Manchester City Council,Adult Social Care,Professional fees,06.10.2016,5100879045,"13,415.71",University Hospital of South Mcr
Manchester City Council,Adult Social Care,Professional fees,06.10.2016,5100881984,"3,438.00",One Education Ltd
Manchester City Council,Adult Social Care,Professional fees,06.10.2016,5100882487,"2,587.53",Resolutions Consultancy Pty Ltd
Manchester City Council,Adult Social Care,Professional fees,06.10.2016,5100882056,"1,000.00",Redacted Personal Information
Manchester City Council,Adult Social Care,Security,06.10.2016,5100882097,"1,929.00",Manchester Working Ltd
Manchester City Council,Adult Social Care,Supporting People Payments,06.10.2016,5100882055,"3,684.74",Northwards Housing Limited
Manchester City Council,Adult Social Care,Supporting People Payments,06.10.2016,5100882055,"2,849.24",Northwards Housing Limited
Manchester City Council,Adult Social Care,Supporting People Payments,06.10.2016,5100882055,"2,487.33",Northwards Housing Limited
Manchester City Council,Adult Social Care,Supporting People Payments,06.10.2016,5100882055,"2,442.21",Northwards Housing Limited
Manchester City Council,Adult Social Care,Supporting People Payments,06.10.2016,5100882055,"1,670.98",Northwards Housing Limited
Manchester City Council,Adult Social Care,Supporting People Payments,06.10.2016,5100882055,642.68,Northwards Housing Limited
Manchester City Council,Adult Social Care,Supporting People Payments,06.10.2016,5100881917,"11,666.66",The Depaul Trust
Manchester City Council,Adult Social Care,Supporting People Payments,06.10.2016,5100881918,"5,000.00",The Depaul Trust
Manchester City Council,Adult Social Care,Supporting People Payments,06.10.2016,5100882033,"11,407.94",DISC Ltd
Manchester City Council,Adult Social Care,Supporting People Payments,06.10.2016,5100882031,"3,200.33",DISC Ltd
Manchester City Council,Adult Social Care,Third party payments relating to Voluntary Organisations,06.10.2016,5100881992,881.79,Arawak Walton Housing Association
Manchester City Council,Adult Social Care,Third party payments relating to Voluntary Organisations,06.10.2016,5100881992,577.88,Arawak Walton Housing Association
Manchester City Council,Adult Social Care,Third party payments relating to Voluntary Organisations,06.10.2016,5100881992,557.80,Arawak Walton Housing Association
Manchester City Council,Adult Social Care,Training and Development,06.10.2016,5100881989,792.00,Race Equality Foundation
Manchester City Council,Adult Social Care,Training and Development,06.10.2016,5100882283,800.00,Price Training
Manchester City Council,Adult Social Care,Training and Development,06.10.2016,1905301298,"8,011.00",One Plus One
Manchester City Council,Childrens Services,Works and associated costs for Land and Buildings,06.10.2016,5100881587,"73,577.00",F Parkinson Limited
Manchester City Council,Childrens Services,Works and associated costs for Land and Buildings,06.10.2016,5100881940,"82,014.85",Manchester Working Ltd
Manchester City Council,Childrens Services,Works and associated costs for Land and Buildings,06.10.2016,5100881736,"-8,282.53",Manchester Working Ltd
Manchester City Council,Corporate Services,Agency staff provision,06.10.2016,5100882471,723.80,Resolve Personnel Ltd
Manchester City Council,Corporate Services,External repairs and maintenance for buildings,06.10.2016,5100881496,"83,689.91",Cruden Group Ltd
Manchester City Council,Corporate Services,External repairs and maintenance for buildings,06.10.2016,5100881702,"39,352.36",Cruden Group Ltd
Manchester City Council,Corporate Services,Fees,06.10.2016,5100881893,"2,281.00",Pannone Corporate LLP
Manchester City Council,Corporate Services,Travel Season Ticket Loan Scheme,06.10.2016,5100881913,"1,055.45",Transport for Greater Manchester
Manchester City Council,Corporate Services,Travel Season Ticket Loan Scheme,06.10.2016,5100881853,900.00,Transport for Greater Manchester
Manchester City Council,Corporate Services,Travel Season Ticket Loan Scheme,06.10.2016,5100881913,900.00,Transport for Greater Manchester
Manchester City Council,Corporate Services,Travel Season Ticket Loan Scheme,06.10.2016,5100881862,747.00,Transport for Greater Manchester
Manchester City Council,Corporate Services,Travel Season Ticket Loan Scheme,06.10.2016,5100881913,747.00,Transport for Greater Manchester
Manchester City Council,Corporate Services,Travel Season Ticket Loan Scheme,06.10.2016,5100881913,747.00,Transport for Greater Manchester
Manchester City Council,Corporate Services,Travel Season Ticket Loan Scheme,06.10.2016,5100881862,646.00,Transport for Greater Manchester
Manchester City Council,Corporate Services,Travel Season Ticket Loan Scheme,06.10.2016,5100881913,522.00,Transport for Greater Manchester
Manchester City Council,Corporate Services,Travel Season Ticket Loan Scheme,06.10.2016,5100881913,522.00,Transport for Greater Manchester
Manchester City Council,Corporate Services,Works and associated costs for Land and Buildings,06.10.2016,5100881499,"16,707.65",Cruden Group Ltd
Manchester City Council,Housing General Fund,Building Works,06.10.2016,1905305218,"4,361.72",Kier Services Ltd - Maint West
Manchester City Council,Housing General Fund,Building Works,06.10.2016,1905305216,"4,052.83",Kier Services Ltd - Maint West
Manchester City Council,Housing General Fund,Building Works,06.10.2016,1905305215,"4,022.83",Kier Services Ltd - Maint West
Manchester City Council,Housing Revenue Account,Council Dwellings - Demolition,06.10.2016,5100882182,"44,759.51",Manchester Working Ltd
Manchester City Council,Housing Revenue Account,Professional fees,06.10.2016,5100881484,"2,869.85",University Of Salford
Manchester City Council,Chief Executives,Agency staff provision,06.10.2016,5100882456,"3,427.36",Bs Project Services Ltd T/A
Manchester City Council,Chief Executives,Agency staff provision,06.10.2016,5100882451,"5,231.73",Randstad Care
Manchester City Council,Chief Executives,Agency staff provision,06.10.2016,5100881834,"3,885.60",Turner & Townsend Project
Manchester City Council,Chief Executives,Agency staff provision,06.10.2016,5100882471,"10,436.36",Resolve Personnel Ltd
Manchester City Council,Chief Executives,Agency staff provision,06.10.2016,5100882243,"6,964.50",Gunner Cooke LLP
Manchester City Council,Chief Executives,Building Materials for direct delivery,06.10.2016,5100881905,996.00,MRM Street Furniture Ltd
Manchester City Council,Chief Executives,I T Provision,06.10.2016,5100882044,"4,520.19",Stanley Security Solutions
Manchester City Council,Chief Executives,I T Provision,06.10.2016,5100881999,"21,910.00",Tools4ever Ltd
Manchester City Council,Chief Executives,Payments to Sub-Contractors,06.10.2016,5100882482,"1,400.00",Clearway Drainage Systems Ltd
Manchester City Council,Chief Executives,Payments to Sub-Contractors,06.10.2016,5100882519,"28,021.48",Kenny Bros (Civil Eng) Ltd
Manchester City Council,Chief Executives,Payments to Sub-Contractors,06.10.2016,5100882518,"19,223.60",Kenny Bros (Civil Eng) Ltd
Manchester City Council,Chief Executives,Payments to Sub-Contractors,06.10.2016,5100882516,"12,235.11",Kenny Bros (Civil Eng) Ltd
Manchester City Council,Chief Executives,Payments to Sub-Contractors,06.10.2016,5100881931,"20,837.50",Metronet UK
Manchester City Council,Chief Executives,Printing,06.10.2016,5100881647,848.00,Euro Label Printers Ltd
Manchester City Council,Chief Executives,Professional fees,06.10.2016,5100881976,"11,927.25",Atkins Limited
Manchester City Council,Chief Executives,Professional fees,06.10.2016,5100881987,"7,330.70",Atkins Limited
Manchester City Council,Chief Executives,Professional fees,06.10.2016,5100881981,"2,918.40",Atkins Limited
Manchester City Council,Chief Executives,Soft Loans Given,06.10.2016,1905307381,"35,000.00",Manchester Jewish Museum
Manchester City Council,Regeneration Finance,Cleaning Equipment and Materials,06.10.2016,1905307374,"1,367.96",PHS Group
Manchester City Council,Regeneration Finance,External repairs and maintenance for buildings,06.10.2016,5100881710,500.41,Manchester Working Ltd
Manchester City Council,Regeneration Finance,Non Housing Rent Receipts,06.10.2016,1905266694,"2,083.33",Community Integrated Care
Manchester City Council,Regeneration Finance,Professional fees,06.10.2016,5100882040,"1,190.00",GVA Grimley Ltd
Manchester City Council,Regeneration Finance,Rents,06.10.2016,1905306717,"8,772.25",Moss Side Millennium Powerhouse Ltd
Manchester City Council,Regeneration Finance,Rents,06.10.2016,1905288574,"10,468.36",Danish UK Property Management Ltd
Manchester City Council,Regeneration Finance,Rents,06.10.2016,1905288575,"4,766.86",Danish UK Property Management Ltd
Manchester City Council,Regeneration Finance,Tree work,06.10.2016,5100881705,"1,885.60",Groundwork Landscapes Ltd
Manchester City Council,Insurance Fund,Insurance,06.10.2016,1905305322,"5,000.00",Slater Gordon Solutions Legal
Manchester City Council,Insurance Fund,Officials Indemnity Insurance Premium,06.10.2016,1905307382,"2,135.25",Aon Ltd
Manchester City Council,Insurance Fund,Officials Indemnity Insurance Premium,06.10.2016,1905307388,"2,135.25",Aon Ltd
Manchester City Council,Insurance Fund,Officials Indemnity Insurance Premium,06.10.2016,1905307389,"2,135.25",Aon Ltd
Manchester City Council,Manchester Leisure,Agency staff provision,07.10.2016,5100882529,956.20,Reed Employment Plc
Manchester City Council,Manchester Leisure,Grounds Maintenance Costs,07.10.2016,5100882510,630.00,The Fountain Company Ltd
Manchester City Council,Manchester Leisure,Professional fees,07.10.2016,5100881901,"5,250.00",City Of Salford
Manchester City Council,Manchester Leisure,Professional fees,07.10.2016,5100882782,"1,200.00",Redacted Personal Information
Manchester City Council,Manchester Leisure,Works and associated costs for Land and Buildings,07.10.2016,5100882601,"4,704.31",Balfour Beatty Regional
Manchester City Council,Manchester Leisure,Works and associated costs for Land and Buildings,07.10.2016,5100882600,"-4,704.31",Balfour Beatty Regional
Manchester City Council,Hospitality + Trading Services,Catering Provisions,07.10.2016,1905307466,504.25,Pasta King (Uk) Ltd
Manchester City Council,Hospitality + Trading Services,Catering Provisions,07.10.2016,1905307457,911.50,Brake Bros Foodservice Ltd
Manchester City Council,Hospitality + Trading Services,Catering Provisions,07.10.2016,1905307472,750.08,Brake Bros Foodservice Ltd
Manchester City Council,Hospitality + Trading Services,Catering Provisions,07.10.2016,1905307459,554.54,Brake Bros Foodservice Ltd
Manchester City Council,Hospitality + Trading Services,Catering Provisions,07.10.2016,1905307452,539.53,Brake Bros Foodservice Ltd
Manchester City Council,Hospitality + Trading Services,Catering Provisions,07.10.2016,1905307465,"1,705.00",THE NOISY DRINK CO
Manchester City Council,Hospitality + Trading Services,Funeral and coroner related services,07.10.2016,5100882486,750.00,Zagota Creations Limited
Manchester City Council,Environment and Operations,"Clothes, Uniform and Laundry",07.10.2016,5100882584,"1,260.24",Parker Merchanting Ltd
Manchester City Council,Environment and Operations,"Clothes, Uniform and Laundry",07.10.2016,5100882554,"-1,260.24",Parker Merchanting Ltd
Manchester City Council,Environment and Operations,Construction Works,07.10.2016,5100882054,"115,887.80",J.Hopkins (Contractors) Ltd.
Manchester City Council,Adult Social Care,Bed and Breakfast Accommodation Expenditure,07.10.2016,5100882612,"9,210.00",Redacted Personal Information
Manchester City Council,Adult Social Care,Bed and Breakfast Accommodation Expenditure,07.10.2016,5100882609,"8,120.00",Redacted Personal Information
Manchester City Council,Adult Social Care,Bed and Breakfast Accommodation Expenditure,07.10.2016,5100882644,"5,320.00",Redacted Personal Information
Manchester City Council,Adult Social Care,Bed and Breakfast Accommodation Expenditure,07.10.2016,5100882595,"52,887.57",Accommodation Links Ltd
Manchester City Council,Adult Social Care,Bed and Breakfast Accommodation Expenditure,07.10.2016,5100882608,"9,355.73",Cromwood Ltd
Manchester City Council,Adult Social Care,Bed and Breakfast Accommodation Expenditure,07.10.2016,5100882597,"10,550.00",Redacted Personal Information
Manchester City Council,Adult Social Care,Bed and Breakfast Accommodation Expenditure,07.10.2016,5100882607,833.00,Redacted Personal Information
Manchester City Council,Adult Social Care,Equipment,07.10.2016,5100881784,658.00,Back Care Solutions Ltd
Manchester City Council,Adult Social Care,Grant and subscriptions awarded,07.10.2016,5100881693,"37,894.80",Shipley College
Manchester City Council,Adult Social Care,I T Provision,07.10.2016,5100881631,"11,212.53",Percy Westhead & Company
Manchester City Council,Adult Social Care,Landline Telephone Charges,07.10.2016,1905278109,"4,724.34",Bt Featurenet Billing
Manchester City Council,Adult Social Care,Personal needs of client,07.10.2016,5100882757,869.20,Morris & Alexander Ltd
Manchester City Council,Adult Social Care,Personal needs of client,07.10.2016,5100882710,"1,000.00",Mountway Ltd
Manchester City Council,Adult Social Care,Personal needs of client,07.10.2016,5100882604,"2,428.45",Drive Devilbiss Healthcare Ltd
Manchester City Council,Adult Social Care,Professional fees,07.10.2016,5100882529,579.25,Reed Employment Plc
Manchester City Council,Adult Social Care,Professional fees,07.10.2016,5100882479,"71,000.00",Manchester Safeguarding
Manchester City Council,Adult Social Care,Rents,07.10.2016,5100882798,"2,337.01",Northwards Housing Limited
Manchester City Council,Adult Social Care,Rents,07.10.2016,1905300113,770.00,Kaye Mackenzie Property Management
Manchester City Council,Adult Social Care,Third party payments relating to Voluntary Organisations,07.10.2016,5100882652,"42,954.00",Gaddum Centre
Manchester City Council,Adult Social Care,Third party payments relating to Voluntary Organisations,07.10.2016,5100881988,"498,000.00","CGL - Change, Grow, Live"
Manchester City Council,Adult Social Care,Third party payments relating to Voluntary Organisations,07.10.2016,5100882727,791.09,Wythenshawe Community Housing Group
Manchester City Council,Adult Social Care,Training and Development,07.10.2016,5100878690,"16,915.00",North West Employers Ltd
Manchester City Council,Adult Social Care,Training and Development,07.10.2016,5100878687,"7,660.00",North West Employers Ltd
Manchester City Council,Adult Social Care,Training and Development,07.10.2016,5100878682,"3,200.00",North West Employers Ltd
Manchester City Council,Adult Social Care,Training and Development,07.10.2016,5100878693,"1,990.00",North West Employers Ltd
Manchester City Council,Adult Social Care,Training and Development,07.10.2016,5100878684,630.00,North West Employers Ltd
Manchester City Council,Adult Social Care,Training and Development,07.10.2016,5100882780,"-1,850.00",North West Employers Ltd
Manchester City Council,Adult Social Care,Training and Development,07.10.2016,5100867723,"1,608.00",Greater Manchester Fire & Rescue
Manchester City Council,Adult Social Care,Training and Development,07.10.2016,5100881715,600.00,Disabled Living
Manchester City Council,Adult Social Care,Training and Development,07.10.2016,5100881601,"73,000.00",One Education Ltd
Manchester City Council,Adult Social Care,Training and Development,07.10.2016,5100882667,"1,700.00",IPSEA (Independant Parental
Manchester City Council,Adult Social Care,Transport Coach Hire,07.10.2016,5100882515,"1,348.00",Nelson Transport
Manchester City Council,Adult Social Care,Legal Fees,07.10.2016,1905307241,"6,916.00",Redacted Personal Information
Manchester City Council,Childrens Services,Works and associated costs for Land and Buildings,07.10.2016,5100882645,"165,368.00",G & J Seddon Ltd
Manchester City Council,Corporate Services,Agency staff provision,07.10.2016,5100882529,713.40,Reed Employment Plc
Manchester City Council,Corporate Services,CRB Fees,07.10.2016,5100882764,"22,660.00",Disclosure & Barring Service
Manchester City Council,Corporate Services,Fees,07.10.2016,1905299678,"41,565.87",Marston Group Limited
Manchester City Council,Corporate Services,Fees,07.10.2016,1905299989,"5,233.71",Marston Group Limited
Manchester City Council,Corporate Services,Fees,07.10.2016,1905299989,"-5,233.71",Marston Group Limited
Manchester City Council,Corporate Services,Fees,07.10.2016,1905299678,"-41,565.87",Marston Group Limited
Manchester City Council,Corporate Services,Fees,07.10.2016,1905299676,"20,893.85",Equita Ltd
Manchester City Council,Corporate Services,Fees,07.10.2016,1905299675,"1,079.20",Equita Ltd
Manchester City Council,Corporate Services,Fees,07.10.2016,1905299675,"-1,079.20",Equita Ltd
Manchester City Council,Corporate Services,Fees,07.10.2016,1905299676,"-20,893.85",Equita Ltd
Manchester City Council,Corporate Services,Fees,07.10.2016,1905299674,"26,297.10",Rossendales Ltd
Manchester City Council,Corporate Services,Fees,07.10.2016,1905299679,564.99,Rossendales Ltd
Manchester City Council,Corporate Services,Fees,07.10.2016,1905299679,-564.99,Rossendales Ltd
Manchester City Council,Corporate Services,Fees,07.10.2016,1905299674,"-26,297.10",Rossendales Ltd
Manchester City Council,Corporate Services,Fees,07.10.2016,1905307228,765.50,Bristow & Sutor
Manchester City Council,Corporate Services,Fees,07.10.2016,1905307228,-765.50,Bristow & Sutor
Manchester City Council,Corporate Services,Infrastructure - Adaptations,07.10.2016,5100882325,"15,054.38",Manchester Working Ltd
Manchester City Council,Corporate Services,Licences Purchase,07.10.2016,5100882747,"1,900.00","Dun & Bradstreet Ltd.,"
Manchester City Council,Corporate Services,Works and associated costs for Land and Buildings,07.10.2016,5100882687,"41,337.91",Conlon Construction Ltd
Manchester City Council,Corporate Services,Compensation Payments,07.10.2016,5100882239,500.00,Outer Temple Chambers
Manchester City Council,Housing General Fund,Building Works,07.10.2016,1905305228,"2,539.38",Kier Services Ltd - Maint West
Manchester City Council,Housing Revenue Account,Council Dwelling Adaptations,07.10.2016,5100882787,"3,523.00",Stannah Lift Services Ltd
Manchester City Council,Housing Revenue Account,Council Dwelling Adaptations,07.10.2016,5100882672,"7,162.44",Pts Plumbing Trade Supplies
Manchester City Council,Housing Revenue Account,Council Dwelling Adaptations,07.10.2016,5100882676,"2,324.64",Pts Plumbing Trade Supplies
Manchester City Council,Housing Revenue Account,Council Dwelling Adaptations,07.10.2016,5100882677,"1,616.03",Pts Plumbing Trade Supplies
Manchester City Council,Housing Revenue Account,Council Dwelling Adaptations,07.10.2016,5100882675,782.94,Pts Plumbing Trade Supplies
Manchester City Council,Housing Revenue Account,Council Dwelling Adaptations,07.10.2016,5100882673,759.47,Pts Plumbing Trade Supplies
Manchester City Council,Chief Executives,Agency staff provision,07.10.2016,5100882529,"7,653.84",Reed Employment Plc
Manchester City Council,Chief Executives,Agency staff provision,07.10.2016,5100882737,"3,935.03",Deekay Technical Recruitment Ltd
Manchester City Council,Chief Executives,Agency staff provision,07.10.2016,5100882737,"1,035.00",Deekay Technical Recruitment Ltd
Manchester City Council,Chief Executives,Compensation Payments,07.10.2016,1905307237,"2,250.00",Express Solicitors
Manchester City Council,Chief Executives,Compensation Payments,07.10.2016,1905307403,"5,000.00",JMR Solicitors
Manchester City Council,Chief Executives,Hire of Equipment,07.10.2016,5100882558,"1,500.00",Parkeon Ltd
Manchester City Council,Chief Executives,Hire of Equipment,07.10.2016,5100882253,607.00,Silverback Events Limited
Manchester City Council,Chief Executives,Hire of Machinery,07.10.2016,5100882586,"1,299.50",R & M Developments Ltd
Manchester City Council,Chief Executives,Hire of Machinery,07.10.2016,5100882590,"1,299.50",R & M Developments Ltd
Manchester City Council,Chief Executives,Hire of Machinery,07.10.2016,5100882583,"1,038.50",R & M Developments Ltd
Manchester City Council,Chief Executives,Hire of Machinery,07.10.2016,5100882580,"1,012.50",R & M Developments Ltd
Manchester City Council,Chief Executives,Hire of Machinery,07.10.2016,5100882592,897.80,R & M Developments Ltd
Manchester City Council,Chief Executives,Hire of Machinery,07.10.2016,5100882594,897.80,R & M Developments Ltd
Manchester City Council,Chief Executives,Hire of Machinery,07.10.2016,5100882591,830.80,R & M Developments Ltd
Manchester City Council,Chief Executives,I T Provision,07.10.2016,5100882537,"23,465.00",Public-I Ltd
Manchester City Council,Chief Executives,Payments to Sub-Contractors,07.10.2016,5100881874,"1,256.88",Northern Marking Limited
Manchester City Council,Chief Executives,Payments to Sub-Contractors,07.10.2016,5100882708,-954.05,Northern Marking Limited
Manchester City Council,Chief Executives,Payments to Sub-Contractors,07.10.2016,5100882707,"-1,432.52",Northern Marking Limited
Manchester City Council,Chief Executives,Private Finance and Public Private partnership initiatives,07.10.2016,5100882231,"623,281.87",Amey Highways Lighting (Manchester)
Manchester City Council,Chief Executives,Professional fees,07.10.2016,5100881908,"6,183.24",Turner & Townsend Project
Manchester City Council,Chief Executives,"Vehicles, Plant, Furniture & Equip - Adaptations",07.10.2016,5100882529,"2,587.50",Reed Employment Plc
Manchester City Council,Chief Executives,"Vehicles, Plant, Furniture & Equip - Adaptations",07.10.2016,5100882529,"1,764.70",Reed Employment Plc
Manchester City Council,Chief Executives,"Vehicles, Plant, Furniture & Equip - Adaptations",07.10.2016,5100882455,"2,850.00",Risual Limited
Manchester City Council,Chief Executives,Compensation Payments,07.10.2016,1905305256,615.00,Department For Work & Pensions
Manchester City Council,Chief Executives,Compensation Payments,07.10.2016,1905307240,615.00,Department For Work & Pensions
Manchester City Council,Chief Executives,Compensation Payments,07.10.2016,1905305315,647.00,Department For Work & Pensions
Manchester City Council,Chief Executives,Compensation Payments,07.10.2016,1905307239,647.00,Department For Work & Pensions
Manchester City Council,Regeneration Finance,External repairs and maintenance for buildings,07.10.2016,5100882476,880.00,Manchester Working Ltd
Manchester City Council,Regeneration Finance,Hire of Equipment,07.10.2016,5100882328,"7,775.00",Manchester Working Ltd
Manchester City Council,Regeneration Finance,Internal Repairs and Maintenance for buildings,07.10.2016,5100882473,"41,475.63",Manchester Working Ltd
Manchester City Council,Regeneration Finance,Professional fees,07.10.2016,5100882588,"2,750.00",Greater Manchester Ecology Unit
Manchester City Council,Regeneration Finance,Professional fees,07.10.2016,5100882593,"-2,750.00",Greater Manchester Ecology Unit
Manchester City Council,Regeneration Finance,Security,07.10.2016,5100882128,841.30,Manchester Working Ltd
Manchester City Council,GMIST (Greater Mcr Integrated),Professional fees,07.10.2016,5100882682,"24,832.00",Deloitte Mcs Ltd
Manchester City Council,Manchester Leisure,Building Materials for direct delivery,10.10.2016,5100882718,655.87,Chambers & Perkins
Manchester City Council,Manchester Leisure,Building Materials for direct delivery,10.10.2016,5100882393,999.69,Weasdale Nurseries Ltd
Manchester City Council,Manchester Leisure,Equipment,10.10.2016,5100882400,850.00,Groundwork Landscapes Ltd
Manchester City Council,Manchester Leisure,Equipment,10.10.2016,5100882819,"1,294.00",Ludus Leisure Ltd
Manchester City Council,Manchester Leisure,Payments to Sub-Contractors,10.10.2016,5100882401,"1,645.00",Groundwork Landscapes Ltd
Manchester City Council,Manchester Leisure,Professional fees,10.10.2016,5100882605,"1,255.00",Civica UK Ltd
Manchester City Council,Manchester Leisure,Professional fees,10.10.2016,5100882813,880.00,Skylight Circus Arts
Manchester City Council,Manchester Leisure,Professional fees,10.10.2016,5100882578,"5,485.00",Turner & Townsend Project
Manchester City Council,Manchester Leisure,Special Events,10.10.2016,1905307871,"1,250.00",Earnie
Manchester City Council,Manchester Leisure,Stationery,10.10.2016,5100882429,581.60,Banner Group Ltd
Manchester City Council,Hospitality + Trading Services,Agency staff provision,10.10.2016,5100881608,784.38,Search Consultancy Ltd
Manchester City Council,Hospitality + Trading Services,Agency staff provision,10.10.2016,5100882926,"6,745.00",Manchester Pride Events Limited
Manchester City Council,Hospitality + Trading Services,Catering Provisions,10.10.2016,1905310706,679.40,Brake Bros Foodservice Ltd
Manchester City Council,Hospitality + Trading Services,Catering Provisions,10.10.2016,1905310711,658.72,Brake Bros Foodservice Ltd
Manchester City Council,Hospitality + Trading Services,Catering Provisions,10.10.2016,1905310675,582.54,Brake Bros Foodservice Ltd
Manchester City Council,Hospitality + Trading Services,Catering Provisions,10.10.2016,1905310714,579.11,Brake Bros Foodservice Ltd
Manchester City Council,Hospitality + Trading Services,Catering Provisions,10.10.2016,1905310727,562.84,Brake Bros Foodservice Ltd
Manchester City Council,Hospitality + Trading Services,Catering Provisions,10.10.2016,1905310713,533.48,Brake Bros Foodservice Ltd
Manchester City Council,Hospitality + Trading Services,Catering Provisions,10.10.2016,1905310684,504.47,Brake Bros Foodservice Ltd
Manchester City Council,Hospitality + Trading Services,Goods purchased for resale in Council outlets,10.10.2016,5100882845,571.40,Treasured Memories Ltd
Manchester City Council,Hospitality + Trading Services,Hire of Machinery,10.10.2016,5100883049,"42,978.74",F.R.Sharrock Ltd
Manchester City Council,Hospitality + Trading Services,Hire of Machinery,10.10.2016,5100882850,"1,039.60",R & M Developments Ltd
Manchester City Council,Hospitality + Trading Services,Hire of Machinery,10.10.2016,5100882865,"1,039.60",R & M Developments Ltd
Manchester City Council,Hospitality + Trading Services,Hire of Machinery,10.10.2016,5100882857,"1,000.65",R & M Developments Ltd
Manchester City Council,Hospitality + Trading Services,Hire of Machinery,10.10.2016,5100882870,810.00,R & M Developments Ltd
Manchester City Council,Hospitality + Trading Services,Hire of Machinery,10.10.2016,5100883024,"8,727.40",H & C Plant Hire Ltd
Manchester City Council,Hospitality + Trading Services,Hire of Machinery,10.10.2016,5100883025,"10,434.06",Fast Hire UK
Manchester City Council,Hospitality + Trading Services,Hire of Machinery,10.10.2016,5100883028,"4,070.00",Fast Hire UK
Manchester City Council,Hospitality + Trading Services,Hire of Machinery,10.10.2016,5100882497,"2,943.60",Gibsons Garden Machinery Limited
Manchester City Council,Hospitality + Trading Services,Hire of Machinery,10.10.2016,5100882544,"2,010.70",Gibsons Garden Machinery Limited
Manchester City Council,Hospitality + Trading Services,Hire of Machinery,10.10.2016,5100882501,"1,632.40",Gibsons Garden Machinery Limited
Manchester City Council,Hospitality + Trading Services,Hire of Machinery,10.10.2016,5100882536,"1,070.24",Gibsons Garden Machinery Limited
Manchester City Council,Hospitality + Trading Services,Hire of Machinery,10.10.2016,5100882505,976.80,Gibsons Garden Machinery Limited
Manchester City Council,Hospitality + Trading Services,Hire of Machinery,10.10.2016,5100882508,726.00,Gibsons Garden Machinery Limited
Manchester City Council,Hospitality + Trading Services,Hire of Machinery,10.10.2016,5100882546,700.00,Gibsons Garden Machinery Limited
Manchester City Council,Hospitality + Trading Services,Hire of Machinery,10.10.2016,5100882541,535.12,Gibsons Garden Machinery Limited
Manchester City Council,Hospitality + Trading Services,Licences Purchase,10.10.2016,5100873920,681.10,The Performing Right Society
Manchester City Council,Hospitality + Trading Services,Licences Purchase,10.10.2016,5100873920,597.36,The Performing Right Society
Manchester City Council,Hospitality + Trading Services,Licences Purchase,10.10.2016,5100873920,596.88,The Performing Right Society
Manchester City Council,Hospitality + Trading Services,Licences Purchase,10.10.2016,5100873920,529.88,The Performing Right Society
Manchester City Council,Hospitality + Trading Services,Vehicle Hire Costs,10.10.2016,5100882696,"2,860.00",Gullivers Truck Hire Ltd
Manchester City Council,Hospitality + Trading Services,Vehicle Hire Costs,10.10.2016,5100882697,"2,750.00",Gullivers Truck Hire Ltd
Manchester City Council,Hospitality + Trading Services,Vehicle Hire Costs,10.10.2016,5100882924,"-2,720.82",Dawson Rentals Sweepers
Manchester City Council,Environment and Operations,Hire of Machinery,10.10.2016,5100883050,795.00,F.R.Sharrock Ltd
Manchester City Council,Adult Social Care,Agency staff provision,10.10.2016,5100883011,"1,063.30",Eden Brown Synergy
Manchester City Council,Adult Social Care,Agency staff provision,10.10.2016,5100883003,967.75,Eden Brown Synergy
Manchester City Council,Adult Social Care,Agency staff provision,10.10.2016,5100882640,774.20,Eden Brown Synergy
Manchester City Council,Adult Social Care,Agency staff provision,10.10.2016,5100883006,774.20,Eden Brown Synergy
Manchester City Council,Adult Social Care,Agency staff provision,10.10.2016,5100883005,736.48,Eden Brown Synergy
Manchester City Council,Adult Social Care,Agency staff provision,10.10.2016,5100883007,640.15,Eden Brown Synergy
Manchester City Council,Adult Social Care,Agency staff provision,10.10.2016,5100882994,543.55,Eden Brown Synergy
Manchester City Council,Adult Social Care,Agency staff provision,10.10.2016,5100881608,967.75,Search Consultancy Ltd
Manchester City Council,Adult Social Care,Agency staff provision,10.10.2016,5100881441,"1,652.16",Morgan Hunt Public Sector Ltd
Manchester City Council,Adult Social Care,Agency staff provision,10.10.2016,5100881441,628.17,Morgan Hunt Public Sector Ltd
Manchester City Council,Adult Social Care,Agency staff provision,10.10.2016,5100881453,505.18,HR GO Recruitment Healthcare
Manchester City Council,Adult Social Care,Agency staff provision,10.10.2016,5100881600,774.20,PULSE
Manchester City Council,Adult Social Care,Agency staff provision,10.10.2016,5100881716,929.28,SRA Cover Staff Ltd
Manchester City Council,Adult Social Care,Agency staff provision,10.10.2016,5100881711,503.36,SRA Cover Staff Ltd
Manchester City Council,Adult Social Care,Agency staff provision,10.10.2016,5100881432,"2,250.23",Barker Ross Health & Social Care
Manchester City Council,Adult Social Care,Agency staff provision,10.10.2016,5100881432,"1,426.52",Barker Ross Health & Social Care
Manchester City Council,Adult Social Care,Bed and Breakfast Accommodation Expenditure,10.10.2016,5100882947,"16,763.30",G & A Taylor Hotels Ltd
Manchester City Council,Adult Social Care,Bed and Breakfast Accommodation Expenditure,10.10.2016,5100882832,"13,230.00",Redacted Personal Information
Manchester City Council,Adult Social Care,Furniture,10.10.2016,5100881757,536.00,Egan Reid Stationery Co Ltd
Manchester City Council,Adult Social Care,Grant and subscriptions awarded,10.10.2016,5100882781,"13,116.00",Young People Support Foundation Ltd
Manchester City Council,Adult Social Care,Payments for services,10.10.2016,5100882954,"4,293.60",Rossendale School Priory
Manchester City Council,Adult Social Care,Payments for services,10.10.2016,5100882955,"3,698.83",Rossendale School Priory
Manchester City Council,Adult Social Care,Payments for services,10.10.2016,5100882958,"4,535.46",Chaigeley Education Foundation
Manchester City Council,Adult Social Care,Payments for services,10.10.2016,5100882953,"4,174.20",Penarth Group School
Manchester City Council,Adult Social Care,Payments for services,10.10.2016,5100881930,"2,820.27",NOMS
Manchester City Council,Adult Social Care,Personal needs of client,10.10.2016,5100882485,"1,038.79",Prism Medical UK Carefree Division
Manchester City Council,Adult Social Care,Professional fees,10.10.2016,5100882806,"1,000.00",Capita Business Services Ltd
Manchester City Council,Adult Social Care,Professional fees,10.10.2016,5100881608,600.93,Search Consultancy Ltd
Manchester City Council,Adult Social Care,Professional fees,10.10.2016,5100881604,"15,140.00",One Education Ltd
Manchester City Council,Adult Social Care,Professional fees,10.10.2016,5100882571,"6,540.00",One Education Ltd
Manchester City Council,Adult Social Care,Professional fees,10.10.2016,5100882631,"1,750.00",Caritas Recruitment
Manchester City Council,Adult Social Care,Professional fees,10.10.2016,5100882629,"1,400.00",Caritas Recruitment
Manchester City Council,Adult Social Care,Professional fees,10.10.2016,5100882628,"1,050.00",Caritas Recruitment
Manchester City Council,Adult Social Care,Professional fees,10.10.2016,5100882632,700.00,Caritas Recruitment
Manchester City Council,Adult Social Care,Professional fees,10.10.2016,5100882633,700.00,Caritas Recruitment
Manchester City Council,Adult Social Care,Professional fees,10.10.2016,5100882634,700.00,Caritas Recruitment
Manchester City Council,Adult Social Care,Professional fees,10.10.2016,5100882635,700.00,Caritas Recruitment
Manchester City Council,Adult Social Care,Professional fees,10.10.2016,5100882637,700.00,Caritas Recruitment
Manchester City Council,Adult Social Care,Publications,10.10.2016,5100882983,"2,950.00",The Staff College
Manchester City Council,Adult Social Care,Rents,10.10.2016,5100882799,"2,339.35",Northwards Housing Limited
Manchester City Council,Adult Social Care,Rents,10.10.2016,5100882802,"2,337.01",Northwards Housing Limited
Manchester City Council,Adult Social Care,Rents,10.10.2016,1905307230,770.00,Kaye Mackenzie Property Management
Manchester City Council,Adult Social Care,Rents,10.10.2016,1905307229,600.00,T15 Consultancy Ltd
Manchester City Council,Adult Social Care,Subsistence and Conference Expenses,10.10.2016,5100882972,800.00,Price Training
Manchester City Council,Adult Social Care,Third party payments relating to Voluntary Organisations,10.10.2016,5100882944,"1,062.08",MCCR
Manchester City Council,Adult Social Care,Third party payments relating to Voluntary Organisations,10.10.2016,5100882943,947.00,MCCR
Manchester City Council,Adult Social Care,Third party payments relating to Voluntary Organisations,10.10.2016,5100882760,"2,395.00",Wai Yin Society
Manchester City Council,Adult Social Care,Third party payments relating to Voluntary Organisations,10.10.2016,5100882982,"46,399.00",After Adoption
Manchester City Council,Adult Social Care,Third party payments relating to Voluntary Organisations,10.10.2016,5100882789,"4,433.75",Wythenshawe Forum Trust Ltd
Manchester City Council,Adult Social Care,Third party payments relating to Voluntary Organisations,10.10.2016,5100882756,"8,158.00",Greater Manchester Immigration Aid
Manchester City Council,Adult Social Care,Third party payments relating to Voluntary Organisations,10.10.2016,5100882762,"73,750.00",Man. Citizens Advice Bureaux
Manchester City Council,Adult Social Care,Third party payments relating to Voluntary Organisations,10.10.2016,5100882329,"75,261.50",The Big Life Company
Manchester City Council,Adult Social Care,Third party payments relating to Voluntary Organisations,10.10.2016,5100882728,"13,584.50",Wythenshawe Community Housing Group
Manchester City Council,Adult Social Care,Third party payments relating to Voluntary Organisations,10.10.2016,5100882725,"1,898.25",Wythenshawe Community Housing Group
Manchester City Council,Adult Social Care,Training and Development,10.10.2016,5100878679,"9,950.00",North West Employers Ltd
Manchester City Council,Adult Social Care,Training and Development,10.10.2016,5100882843,"1,850.00",North West Employers Ltd
Manchester City Council,Adult Social Care,Training and Development,10.10.2016,5100882847,"-1,850.00",North West Employers Ltd
Manchester City Council,Adult Social Care,Transport Coach Hire,10.10.2016,5100882700,"1,800.00",T/A Beresford Travel
Manchester City Council,Adult Social Care,Transport Coach Hire,10.10.2016,5100882557,"5,500.00",D.J. Minibus Travel
Manchester City Council,Adult Social Care,Transport Coach Hire,10.10.2016,5100882550,"10,700.00",Redacted Personal Information
Manchester City Council,Adult Social Care,Transport Coach Hire,10.10.2016,5100882553,"5,880.00",Galaxy Cars
Manchester City Council,Adult Social Care,Transport Coach Hire,10.10.2016,5100882564,"3,400.00",Ricks Travel
Manchester City Council,Adult Social Care,Transport Coach Hire,10.10.2016,5100882669,"6,680.00",Royton Minibuses Ltd
Manchester City Council,Adult Social Care,Transport Coach Hire,10.10.2016,5100882543,"1,900.00",JKR Travel
Manchester City Council,Adult Social Care,Transport Coach Hire,10.10.2016,5100882656,"4,279.40",Parkway Cabs & Cars
Manchester City Council,Adult Social Care,Transport Coach Hire,10.10.2016,5100882524,"2,200.00",DMC Travel
Manchester City Council,Adult Social Care,Transport Coach Hire,10.10.2016,5100882520,"2,156.00",DMC Travel
Manchester City Council,Adult Social Care,Transport Coach Hire,10.10.2016,5100882531,"1,235.00",DMC Travel
Manchester City Council,Adult Social Care,Transport Coach Hire,10.10.2016,5100882691,"2,005.00",T/a K Travel
Manchester City Council,Adult Social Care,Transport Coach Hire,10.10.2016,5100882560,"13,780.00",JCT Travel Ltd
Manchester City Council,Adult Social Care,Legal Fees,10.10.2016,1905301284,"6,916.00",Redacted Personal Information
Manchester City Council,Corporate Services,Agency staff provision,10.10.2016,5100882992,"1,142.45",Eden Brown Synergy
Manchester City Council,Corporate Services,Agency staff provision,10.10.2016,5100883008,"1,128.22",Eden Brown Synergy
Manchester City Council,Corporate Services,CRB Fees,10.10.2016,5100882692,967.50,United Medicare Ltd
Manchester City Council,Corporate Services,Fees,10.10.2016,5100881850,"2,990.00",Pannone Corporate LLP
Manchester City Council,Corporate Services,Furniture,10.10.2016,5100882286,689.13,The Furnishing Service Ltd
Manchester City Council,Corporate Services,Furniture,10.10.2016,5100882204,572.89,The Furnishing Service Ltd
Manchester City Council,Corporate Services,I T Provision,10.10.2016,5100882716,"2,098.00",A1 Cad & Stationery Services Ltd
Manchester City Council,Corporate Services,Professional fees,10.10.2016,5100882570,"4,243.20",Turner & Townsend Project
Manchester City Council,Corporate Services,Professional fees,10.10.2016,5100882621,"8,800.00",Nexus Real Estate
Manchester City Council,Corporate Services,Welfare Provision Service Awards,10.10.2016,5100882247,572.89,The Furnishing Service Ltd
Manchester City Council,Corporate Services,Welfare Provision Service Awards,10.10.2016,5100882257,572.87,The Furnishing Service Ltd
Manchester City Council,Corporate Services,Welfare Provision Service Awards,10.10.2016,5100882180,524.65,The Furnishing Service Ltd
Manchester City Council,Corporate Services,Works and associated costs for Land and Buildings,10.10.2016,5100882882,"7,164.00",Pinsent Masons LLP
Manchester City Council,Corporate Services,Works and associated costs for Land and Buildings,10.10.2016,5100882881,"5,179.00",Pinsent Masons LLP
Manchester City Council,Corporate Services,Works and associated costs for Land and Buildings,10.10.2016,5100882880,"1,533.00",Pinsent Masons LLP
Manchester City Council,Housing Revenue Account,Council Dwelling Adaptations,10.10.2016,5100882936,"8,324.59",Pts Plumbing Trade Supplies
Manchester City Council,Housing Revenue Account,Council Dwelling Adaptations,10.10.2016,5100882940,"4,618.81",Pts Plumbing Trade Supplies
Manchester City Council,Housing Revenue Account,Council Dwelling Adaptations,10.10.2016,5100882878,"1,863.00",Hoist & Shower Chair Company
Manchester City Council,Housing Revenue Account,Stationery,10.10.2016,5100882045,500.00,HQN Limited
Manchester City Council,Housing Revenue Account,West Gorton Management Fee,10.10.2016,5100882808,"12,203.00",The Guinness Partnership Ltd
Manchester City Council,Chief Executives,Advertising,10.10.2016,5100882885,"3,500.00",Clicky Media Ltd
Manchester City Council,Chief Executives,Agency staff provision,10.10.2016,5100882466,"21,419.16",NES UK Limited
Manchester City Council,Chief Executives,Agency staff provision,10.10.2016,5100881611,"3,374.00",Michael Page International
Manchester City Council,Chief Executives,Agency staff provision,10.10.2016,5100881611,"1,807.48",Michael Page International
Manchester City Council,Chief Executives,Agency staff provision,10.10.2016,5100883012,"16,983.81",Eden Brown Synergy
Manchester City Council,Chief Executives,Agency staff provision,10.10.2016,5100882639,"1,400.00",Eden Brown Synergy
Manchester City Council,Chief Executives,Agency staff provision,10.10.2016,5100882993,967.75,Eden Brown Synergy
Manchester City Council,Chief Executives,Agency staff provision,10.10.2016,5100881608,"13,745.57",Search Consultancy Ltd
Manchester City Council,Chief Executives,Agency staff provision,10.10.2016,5100881441,"14,076.77",Morgan Hunt Public Sector Ltd
Manchester City Council,Chief Executives,Agency staff provision,10.10.2016,5100881452,"4,808.73",Deekay Technical Recruitment Ltd
Manchester City Council,Chief Executives,Agency staff provision,10.10.2016,5100881452,"1,035.00",Deekay Technical Recruitment Ltd
Manchester City Council,Chief Executives,Agency staff provision,10.10.2016,5100881453,"4,859.33",HR GO Recruitment Healthcare
Manchester City Council,Chief Executives,Agency staff provision,10.10.2016,5100882405,"7,532.64",Semester Recruitment Ltd
Manchester City Council,Chief Executives,Agency staff provision,10.10.2016,5100881716,"20,117.62",SRA Cover Staff Ltd
Manchester City Council,Chief Executives,Agency staff provision,10.10.2016,5100881711,"3,268.00",SRA Cover Staff Ltd
Manchester City Council,Chief Executives,Agency staff provision,10.10.2016,5100882638,"5,047.70",Caritas Recruitment
Manchester City Council,Chief Executives,Agency staff provision,10.10.2016,5100881432,"11,293.80",Barker Ross Health & Social Care
Manchester City Council,Chief Executives,Agency staff provision,10.10.2016,5100882078,"12,660.10",Gian Healthcare Ltd
Manchester City Council,Chief Executives,Agency staff provision,10.10.2016,5100881609,"1,848.12",Kennoh Cleaning & Care
Manchester City Council,Chief Executives,Agency staff provision,10.10.2016,5100881610,"1,723.70",Kennoh Cleaning & Care
Manchester City Council,Chief Executives,Building Materials for direct delivery,10.10.2016,5100882433,664.10,Marshalls Mono Ltd
Manchester City Council,Chief Executives,Building Materials for direct delivery,10.10.2016,5100882970,681.77,TARMAC
Manchester City Council,Chief Executives,Building Materials for direct delivery,10.10.2016,5100882971,664.92,TARMAC
Manchester City Council,Chief Executives,Compensation Payments,10.10.2016,1905305265,"2,250.00",Express Solicitors
Manchester City Council,Chief Executives,Compensation Payments,10.10.2016,1905305249,"2,900.00",Hampson Hughes Solicitors
Manchester City Council,Chief Executives,Data Links,10.10.2016,1905296736,"153,223.68",BT Global Services
Manchester City Council,Chief Executives,Data Links,10.10.2016,1905296735,"35,050.92",BT Global Services
Manchester City Council,Chief Executives,Electricity,10.10.2016,5100881925,"14,273.72",Principal Agent Management Ltd
Manchester City Council,Chief Executives,Electricity,10.10.2016,5100882826,"1,177.83",Principal Agent Management Ltd
Manchester City Council,Chief Executives,Electricity,10.10.2016,5100882931,"-1,177.83",Principal Agent Management Ltd
Manchester City Council,Chief Executives,ICT Support & Maintenance,10.10.2016,5100882811,"14,139.74",Sap (Uk) Ltd
Manchester City Council,Chief Executives,ICT Support & Maintenance,10.10.2016,5100882577,"11,625.00",Esteem
Manchester City Council,Chief Executives,ICT Support & Maintenance,10.10.2016,5100881922,"5,696.00",NCC Group Signify Solutions Ltd
Manchester City Council,Chief Executives,Landline Telephone Charges,10.10.2016,1905288602,"1,397.50",BT PLC
Manchester City Council,Chief Executives,Landline Telephone Charges,10.10.2016,1905301210,"2,229.15",Vodafone (Ex C&W)
Manchester City Council,Chief Executives,Payments to Sub-Contractors,10.10.2016,5100881839,"16,531.21",Amey Highways Lighting (Manchester)
Manchester City Council,Chief Executives,Payments to Sub-Contractors,10.10.2016,5100882785,"6,150.15",Rosgal Ltd
Manchester City Council,Chief Executives,Payments to Sub-Contractors,10.10.2016,5100881738,"5,160.08",Rosgal Ltd
Manchester City Council,Chief Executives,Payments to Sub-Contractors,10.10.2016,5100882572,"7,855.78",Northern Marking Limited
Manchester City Council,Chief Executives,Payments to Sub-Contractors,10.10.2016,5100882712,"1,432.52",Northern Marking Limited
Manchester City Council,Chief Executives,Payments to Sub-Contractors,10.10.2016,5100882523,"2,048.12",T/A Janus
Manchester City Council,Chief Executives,Postage,10.10.2016,5100882976,"1,400.00",Royal Mail Group Plc
Manchester City Council,Chief Executives,Postage,10.10.2016,5100882978,"1,400.00",Royal Mail Group Plc
Manchester City Council,Chief Executives,Postage,10.10.2016,5100882980,"1,400.00",Royal Mail Group Plc
Manchester City Council,Chief Executives,Postage,10.10.2016,5100882974,800.00,Royal Mail Group Plc
Manchester City Council,Chief Executives,Printing,10.10.2016,5100882831,596.00,Contact Photographic Services Ltd
Manchester City Council,Chief Executives,Professional fees,10.10.2016,5100881835,"24,447.36",Turner & Townsend Project
Manchester City Council,Chief Executives,Professional fees,10.10.2016,5100881906,"17,878.05",Turner & Townsend Project
Manchester City Council,Chief Executives,Professional fees,10.10.2016,5100882822,"1,680.00",Redacted Personal Information
Manchester City Council,Chief Executives,Professional fees,10.10.2016,5100882765,625.00,Manchester Bike Hire
Manchester City Council,Chief Executives,Professional fees,10.10.2016,5100882767,-750.00,Manchester Bike Hire
Manchester City Council,Chief Executives,Purchase of stores for re-distribution,10.10.2016,5100882434,713.70,Wolseley Util Ltd T/A Burdens
Manchester City Council,Chief Executives,Purchase of stores for re-distribution,10.10.2016,5100882433,"1,621.00",Marshalls Mono Ltd
Manchester City Council,Chief Executives,Third party payments relating to Voluntary Organisations,10.10.2016,5100882658,"114,032.83",HOME
Manchester City Council,Chief Executives,Third party payments to other Local Authorities,10.10.2016,5100882052,"2,723.25",Virtual College Ltd
Manchester City Council,Chief Executives,"Vehicles, Plant, Furniture & Equip - Adaptations",10.10.2016,5100881437,"19,291.00",People Source Consulting
Manchester City Council,Chief Executives,"Vehicles, Plant, Furniture & Equip - Adaptations",10.10.2016,5100881437,"1,910.00",People Source Consulting
Manchester City Council,Chief Executives,Legal Fees,10.10.2016,1905301224,700.00,Redacted Personal Information
Manchester City Council,Chief Executives,Compensation Payments,10.10.2016,5100882941,562.50,Kings Chambers
Manchester City Council,Chief Executives,Compensation Payments,10.10.2016,5100882875,750.00,Redacted Personal Information
Manchester City Council,Regeneration Finance,Cleaning Equipment and Materials,10.10.2016,1905310640,"1,234.68",PHS Group
Manchester City Council,Regeneration Finance,Cleaning Equipment and Materials,10.10.2016,1905310621,866.18,PHS Group
Manchester City Council,Regeneration Finance,Contract Cleaning External,10.10.2016,5100882823,857.25,M & M Cleaning Services Ltd
Manchester City Council,Regeneration Finance,External repairs and maintenance for buildings,10.10.2016,5100882959,"3,000.00",Lateral Technologies & Solutions
Manchester City Council,Regeneration Finance,Grounds Maintenance Costs,10.10.2016,5100882828,650.00,Countrywide Grounds Maintenance Ltd
Manchester City Council,Regeneration Finance,Internal Repairs and Maintenance for buildings,10.10.2016,5100882705,"1,560.00",Schneider Electric Ltd
Manchester City Council,Regeneration Finance,Planning Application Fees,10.10.2016,1905307538,539.00,Per Pro Lidl Uk GMBH
Manchester City Council,Regeneration Finance,Professional fees,10.10.2016,5100882793,"2,582.00",Airborne Environmental Consultants
Manchester City Council,Regeneration Finance,Tree work,10.10.2016,5100882402,"1,475.00",Groundwork Landscapes Ltd
Manchester City Council,Regeneration Finance,Tree work,10.10.2016,5100882403,"1,175.00",Groundwork Landscapes Ltd
Manchester City Council,GMIST (Greater Mcr Integrated),Agency staff provision,10.10.2016,5100882946,"2,732.85",The Skills Company
Manchester City Council,GMIST (Greater Mcr Integrated),Storage Costs,10.10.2016,5100882327,"3,188.53",DeepStore
Manchester City Council,GMIST (Greater Mcr Integrated),Storage Costs,10.10.2016,5100882242,602.65,DeepStore
Manchester City Council,Manchester Leisure,Catering,11.10.2016,5100883320,800.65,Manchester Central
Manchester City Council,Manchester Leisure,Catering,11.10.2016,5100883196,647.00,Manchester Central
Manchester City Council,Manchester Leisure,Catering,11.10.2016,5100883310,555.20,Manchester Central
Manchester City Council,Manchester Leisure,Goods purchased for resale in Council outlets,11.10.2016,1905310667,799.67,Link
Manchester City Council,Manchester Leisure,Hire of Equipment,11.10.2016,5100871763,"7,230.89",Eve Trakway
Manchester City Council,Manchester Leisure,Hire of Equipment,11.10.2016,5100871763,980.00,Eve Trakway
Manchester City Council,Manchester Leisure,Hire of Equipment,11.10.2016,5100883268,-980.00,Eve Trakway
Manchester City Council,Manchester Leisure,Hire of Equipment,11.10.2016,5100883268,"-7,230.89",Eve Trakway
Manchester City Council,Manchester Leisure,I T Provision,11.10.2016,5100879646,"21,748.00",Civica UK Ltd
Manchester City Council,Manchester Leisure,Professional fees,11.10.2016,5100882930,"72,750.00",Wythenshawe Forum Trust Ltd
Manchester City Council,Hospitality + Trading Services,Hire of Machinery,11.10.2016,5100883103,920.00,Kensite Services Ltd
Manchester City Council,Hospitality + Trading Services,Hire of Machinery,11.10.2016,5100883098,736.00,Kensite Services Ltd
Manchester City Council,Hospitality + Trading Services,Hire of Machinery,11.10.2016,5100883101,715.30,Kensite Services Ltd
Manchester City Council,Hospitality + Trading Services,Hire of Machinery,11.10.2016,5100883100,575.00,Kensite Services Ltd
Manchester City Council,Hospitality + Trading Services,Hire of Machinery,11.10.2016,5100883107,575.00,Kensite Services Ltd
Manchester City Council,Environment and Operations,Surplus property Fees,11.10.2016,5100883023,"3,500.00",Addleshaw Goddard Solicitors
Manchester City Council,Adult Social Care,Agency staff provision,11.10.2016,5100883083,929.28,SRA Cover Staff Ltd
Manchester City Council,Adult Social Care,Agency staff provision,11.10.2016,5100883083,873.50,SRA Cover Staff Ltd
Manchester City Council,Adult Social Care,Catering,11.10.2016,5100881856,"16,515.45",SPIE FS Northern UK Ltd
Manchester City Council,Adult Social Care,Day Care Payments,11.10.2016,1905307875,940.43,Ballymun Day Nursery Ltd
Manchester City Council,Adult Social Care,Equipment,11.10.2016,5100883343,"4,000.00",Independent Life Solutions
Manchester City Council,Adult Social Care,Extra Care Sheltered Housing Payments,11.10.2016,5100883323,"19,423.92",Homecare Support
Manchester City Council,Adult Social Care,Home Care ,11.10.2016,5100883029,"1,539.00",Longsight (Aisha) Nursery
Manchester City Council,Adult Social Care,Payments for services,11.10.2016,5100883070,"26,665.43",Care Concepts Ltd
Manchester City Council,Adult Social Care,Payments for services,11.10.2016,5100883054,"22,333.33",David Lewis Organisation
Manchester City Council,Adult Social Care,Payments for services,11.10.2016,5100882530,"62,748.58",ABL Health Ltd
Manchester City Council,Adult Social Care,Payments for services,11.10.2016,5100882532,"27,500.00",ABL Health Ltd
Manchester City Council,Adult Social Care,Payments for services,11.10.2016,5100883055,766.00,Essential Mediation Ltd
Manchester City Council,Adult Social Care,Personal needs of client,11.10.2016,5100883048,"2,475.00",Mangar International Ltd
Manchester City Council,Adult Social Care,Personal needs of client,11.10.2016,5100883037,960.00,Bentley Fielden Ltd
Manchester City Council,Adult Social Care,Personal needs of client,11.10.2016,5100882535,"1,118.00",Drive Devilbiss Healthcare Ltd
Manchester City Council,Adult Social Care,Professional fees,11.10.2016,5100883349,500.00,Manchester Central
Manchester City Council,Adult Social Care,Third party payments relating to Voluntary Organisations,11.10.2016,5100883271,"1,650.00",Barlow Moor Community Association
Manchester City Council,Adult Social Care,Third party payments relating to Voluntary Organisations,11.10.2016,5100883307,"6,737.00",Great Places Housing Association
Manchester City Council,Adult Social Care,Third party payments relating to Voluntary Organisations,11.10.2016,5100883341,"8,478.32",Water Adventure Centre
Manchester City Council,Adult Social Care,Third party payments relating to Voluntary Organisations,11.10.2016,5100883339,"5,732.00",Water Adventure Centre
Manchester City Council,Adult Social Care,Third party payments to other Local Authorities,11.10.2016,5100883094,"2,583.75",St George's C of E School
Manchester City Council,Adult Social Care,Training and Development,11.10.2016,5100883105,"1,676.25",Edexcel
Manchester City Council,Adult Social Care,Transport Coach Hire,11.10.2016,5100882773,760.00,Middleton Cars Ltd
Manchester City Council,Corporate Services,Long Term Debtors,11.10.2016,5100883372,"354,455.68",Wiggett Homes Ltd
Manchester City Council,Corporate Services,Professional fees,11.10.2016,1905310612,"3,000.00",Construction Enquirer Awards
Manchester City Council,Housing General Fund,Building Works,11.10.2016,1905297015,792.86,Redacted Personal Information
Manchester City Council,Housing General Fund,Surplus property Acquisitions,11.10.2016,1905288190,753.81,Somerdawn Limited
Manchester City Council,Housing Revenue Account,Council Dwelling Adaptations,11.10.2016,5100883084,"3,352.70",Pts Plumbing Trade Supplies
Manchester City Council,Housing Revenue Account,Council Dwelling Adaptations,11.10.2016,5100883143,"3,138.91",Pts Plumbing Trade Supplies
Manchester City Council,Housing Revenue Account,Council Dwelling Adaptations,11.10.2016,5100883124,"1,552.64",Pts Plumbing Trade Supplies
Manchester City Council,Housing Revenue Account,Council Dwelling Adaptations,11.10.2016,5100883278,"2,070.00",Hoist & Shower Chair Company
Manchester City Council,Housing Revenue Account,Council Dwelling Adaptations,11.10.2016,5100883272,"1,850.00",Hoist & Shower Chair Company
Manchester City Council,Housing Revenue Account,Rents,11.10.2016,1905307540,"40,284.25",MJ Mapp
Manchester City Council,Chief Executives,Agency staff provision,11.10.2016,5100883092,898.10,Bennett Staff Bureau
Manchester City Council,Chief Executives,Agency staff provision,11.10.2016,5100883058,"2,294.10",Spring Technology Staffing Services
Manchester City Council,Chief Executives,Agency staff provision,11.10.2016,5100883059,"1,911.75",Spring Technology Staffing Services
Manchester City Council,Chief Executives,Agency staff provision,11.10.2016,5100883063,"1,911.75",Spring Technology Staffing Services
Manchester City Council,Chief Executives,Agency staff provision,11.10.2016,5100883062,"1,529.40",Spring Technology Staffing Services
Manchester City Council,Chief Executives,Agency staff provision,11.10.2016,5100883281,"3,099.60",LAW Absolute
Manchester City Council,Chief Executives,Agency staff provision,11.10.2016,5100883285,"15,169.15",Triad Resourcing
Manchester City Council,Chief Executives,Agency staff provision,11.10.2016,5100883083,"22,725.71",SRA Cover Staff Ltd
Manchester City Council,Chief Executives,Agency staff provision,11.10.2016,5100883269,"10,497.58",SRA Cover Staff Ltd
Manchester City Council,Chief Executives,Agency staff provision,11.10.2016,5100883083,720.06,SRA Cover Staff Ltd
Manchester City Council,Chief Executives,Catering,11.10.2016,5100883174,"9,689.98",Manchester Central
Manchester City Council,Chief Executives,Examination Fees,11.10.2016,5100883074,"1,960.00",University Hospital of South Mcr
Manchester City Council,Chief Executives,Examination Fees,11.10.2016,5100883080,"1,360.00",ROAR Forensics Ltd
Manchester City Council,Chief Executives,Examination Fees,11.10.2016,5100883081,887.50,ROAR Forensics Ltd
Manchester City Council,Chief Executives,Examination Fees,11.10.2016,5100883085,510.00,ROAR Forensics Ltd
Manchester City Council,Chief Executives,Funeral and coroner related services,11.10.2016,5100883073,"3,859.00",University Hospital of South Mcr
Manchester City Council,Chief Executives,Funeral and coroner related services,11.10.2016,5100883071,"2,888.00",Kane Funeral Services
Manchester City Council,Chief Executives,Funeral and coroner related services,11.10.2016,5100883102,"1,039.50",Middleton Funeralcare
Manchester City Council,Chief Executives,Funeral and coroner related services,11.10.2016,5100883256,990.00,Middleton Funeralcare
Manchester City Council,Chief Executives,Funeral and coroner related services,11.10.2016,5100883122,742.50,Middleton Funeralcare
Manchester City Council,Chief Executives,Funeral and coroner related services,11.10.2016,5100883111,594.00,Middleton Funeralcare
Manchester City Council,Chief Executives,Funeral and coroner related services,11.10.2016,5100883247,544.50,Middleton Funeralcare
Manchester City Council,Chief Executives,I T Provision,11.10.2016,1905307535,"8,604.98",Vodafone (Ex C&W)
Manchester City Council,Chief Executives,I T Provision,11.10.2016,1905307534,"6,059.01",Vodafone (Ex C&W)
Manchester City Council,Chief Executives,I T Provision,11.10.2016,5100883060,649.75,Computerland Uk Ltd
Manchester City Council,Chief Executives,I T Provision,11.10.2016,5100883072,"3,150.00",Advanced Legal Solutions Ltd
Manchester City Council,Chief Executives,Payments to Sub-Contractors,11.10.2016,5100883052,"98,967.80",Rosgal Ltd
Manchester City Council,Chief Executives,Payments to Sub-Contractors,11.10.2016,1905307872,"3,010.80",Liquidthinker Limited
Manchester City Council,Chief Executives,Professional fees,11.10.2016,5100883309,"12,260.00",Fabulous Fan Fayre Limited
Manchester City Council,Chief Executives,Publications,11.10.2016,5100883016,"2,130.00",John Smith & Son (Glasgow) Ltd T/A
Manchester City Council,Chief Executives,Publications,11.10.2016,5100883018,"1,075.00",John Smith & Son (Glasgow) Ltd T/A
Manchester City Council,Chief Executives,Publications,11.10.2016,5100883021,705.00,John Smith & Son (Glasgow) Ltd T/A
Manchester City Council,Chief Executives,Publications,11.10.2016,5100883020,695.00,John Smith & Son (Glasgow) Ltd T/A
Manchester City Council,Chief Executives,Works and associated costs for Land and Buildings,11.10.2016,5100883047,"11,270.00",Integra Consulting Engineers Ltd
Manchester City Council,Chief Executives,Works and associated costs for Land and Buildings,11.10.2016,5100883047,"2,200.00",Integra Consulting Engineers Ltd
Manchester City Council,Regeneration Finance,Professional fees,11.10.2016,1905307537,"5,200.00",Blaze Marketing Limited
Manchester City Council,Regeneration Finance,Compensation Payments,11.10.2016,1905305319,647.00,Department For Work & Pensions
Manchester City Council,GMIST (Greater Mcr Integrated),Catering,11.10.2016,5100883186,600.00,Manchester Central
Manchester City Council,Manchester Leisure,Equipment,12.10.2016,1905315754,711.00,Apple UK (CARD ONLY)
Manchester City Council,Manchester Leisure,Goods purchased for resale in Council outlets,12.10.2016,5100881578,973.50,Cornflower Ltd
Manchester City Council,Manchester Leisure,Goods purchased for resale in Council outlets,12.10.2016,5100881744,746.20,Cornflower Ltd
Manchester City Council,Manchester Leisure,Grant Payments,12.10.2016,1905310941,"2,710.00",Burnage Community Association.
Manchester City Council,Manchester Leisure,Grant Payments,12.10.2016,1700066152,"-2,710.00",Burnage Community Association.
Manchester City Council,Manchester Leisure,Grant Payments,12.10.2016,1905310887,"2,500.00",Somali Golden Centre of Opps
Manchester City Council,Manchester Leisure,Grant Payments,12.10.2016,1905310916,"1,250.00",Whalley Range Sure Start
Manchester City Council,Manchester Leisure,Grounds Maintenance Costs,12.10.2016,5100882512,"1,552.45",The Fountain Company Ltd
Manchester City Council,Manchester Leisure,Grounds Maintenance Costs,12.10.2016,5100882522,"1,154.50",The Fountain Company Ltd
Manchester City Council,Manchester Leisure,Grounds Maintenance Costs,12.10.2016,5100882533,"1,017.50",The Fountain Company Ltd
Manchester City Council,Manchester Leisure,Grounds Maintenance Costs,12.10.2016,5100882534,940.00,The Fountain Company Ltd
Manchester City Council,Manchester Leisure,Professional fees,12.10.2016,5100883453,"9,015.88",Marketing Manchester
Manchester City Council,Manchester Leisure,Refuse Collection,12.10.2016,1905315941,"3,409.64",Enterprise Manchester TRADE
Manchester City Council,Manchester Leisure,Refuse Collection,12.10.2016,1905315959,"2,518.36",Enterprise Manchester TRADE
Manchester City Council,Manchester Leisure,Refuse Collection,12.10.2016,1905315946,"1,816.18",Enterprise Manchester TRADE
Manchester City Council,Manchester Leisure,Refuse Collection,12.10.2016,1905315943,"1,813.30",Enterprise Manchester TRADE
Manchester City Council,Manchester Leisure,Rents,12.10.2016,5100883436,"67,560.00",Wythenshawe Forum Trust Ltd
Manchester City Council,Hospitality + Trading Services,Catering Provisions,12.10.2016,1905315168,889.04,Brake Bros Foodservice Ltd
Manchester City Council,Hospitality + Trading Services,Catering Provisions,12.10.2016,1905315031,672.18,Brake Bros Foodservice Ltd
Manchester City Council,Hospitality + Trading Services,Catering Provisions,12.10.2016,1905315234,638.16,Brake Bros Foodservice Ltd
Manchester City Council,Hospitality + Trading Services,Catering Provisions,12.10.2016,1905315040,514.50,Brake Bros Foodservice Ltd
Manchester City Council,Hospitality + Trading Services,Catering Provisions,12.10.2016,1905315167,545.92,Ralph Livesey Ltd
Manchester City Council,Hospitality + Trading Services,Catering Provisions,12.10.2016,1905315093,540.50,Ralph Livesey Ltd
Manchester City Council,Hospitality + Trading Services,Catering Provisions,12.10.2016,1905315147,521.40,Ralph Livesey Ltd
Manchester City Council,Hospitality + Trading Services,Catering Provisions,12.10.2016,1905315016,900.00,THE NOISY DRINK CO
Manchester City Council,Hospitality + Trading Services,Equipment,12.10.2016,5100883416,662.02,Johnsons Catering Equipment Ltd
Manchester City Council,Hospitality + Trading Services,Expenditure re Internal Trading Ordered Externally,12.10.2016,5100883395,650.00,Della Batchelor
Manchester City Council,Hospitality + Trading Services,External repairs and maintenance for buildings,12.10.2016,5100883536,"1,276.09",Dicom Ltd
Manchester City Council,Hospitality + Trading Services,Refuse Collection,12.10.2016,1905315948,"11,769.42",Enterprise Manchester TRADE
Manchester City Council,Hospitality + Trading Services,Refuse Collection,12.10.2016,1905315953,"9,709.48",Enterprise Manchester TRADE
Manchester City Council,Hospitality + Trading Services,Refuse Collection,12.10.2016,1905315961,"5,791.24",Enterprise Manchester TRADE
Manchester City Council,Hospitality + Trading Services,Refuse Collection,12.10.2016,1905315954,"3,775.10",Enterprise Manchester TRADE
Manchester City Council,Hospitality + Trading Services,Refuse Collection,12.10.2016,1905315955,"2,555.09",Enterprise Manchester TRADE
Manchester City Council,Hospitality + Trading Services,Refuse Collection,12.10.2016,1905315956,"1,008.21",Enterprise Manchester TRADE
Manchester City Council,Hospitality + Trading Services,Refuse Collection,12.10.2016,1905315957,866.28,Enterprise Manchester TRADE
Manchester City Council,Hospitality + Trading Services,Security,12.10.2016,5100882948,"1,375.86",Showsec International Ltd
Manchester City Council,Hospitality + Trading Services,Vehicle Fuel Costs,12.10.2016,5100882528,"17,894.68",Carlton Fuels Ltd
Manchester City Council,Hospitality + Trading Services,Vehicle Fuel Costs,12.10.2016,5100881868,"17,717.77",Carlton Fuels Ltd
Manchester City Council,Hospitality + Trading Services,Vehicle Fuel Costs,12.10.2016,5100882896,"16,102.80",Carlton Fuels Ltd
Manchester City Council,Hospitality + Trading Services,Vehicle Fuel Costs,12.10.2016,5100881869,"4,410.50",Carlton Fuels Ltd
Manchester City Council,Environment and Operations,Agency staff provision,12.10.2016,5100881456,"1,255.10",Kenyon Block Consultants Ltd
Manchester City Council,Adult Social Care,Agency staff provision,12.10.2016,5100881602,"1,365.84",Entrust Social Care
Manchester City Council,Adult Social Care,Agency staff provision,12.10.2016,5100881597,903.52,Entrust Social Care
Manchester City Council,Adult Social Care,Agency staff provision,12.10.2016,5100881597,853.65,Entrust Social Care
Manchester City Council,Adult Social Care,Bed and Breakfast Accommodation Expenditure,12.10.2016,5100883421,"9,000.00",Redacted Personal Information
Manchester City Council,Adult Social Care,Bed and Breakfast Accommodation Expenditure,12.10.2016,5100883419,"7,240.00",Redacted Personal Information
Manchester City Council,Adult Social Care,Bed and Breakfast Accommodation Expenditure,12.10.2016,5100883451,728.57,M & Q Properties Management Ltd
Manchester City Council,Adult Social Care,Bed and Breakfast Accommodation Expenditure,12.10.2016,5100882905,"13,265.00",Redacted Personal Information
Manchester City Council,Adult Social Care,Building Materials for direct delivery,12.10.2016,5100881583,"1,120.00",Illingworth Ingham (M/cR)
Manchester City Council,Adult Social Care,Contract Cleaning External,12.10.2016,5100881746,"14,950.00",Ross Care
Manchester City Council,Adult Social Care,External repairs and maintenance for buildings,12.10.2016,5100883599,"2,888.53",Manchester Working Ltd
Manchester City Council,Adult Social Care,Grant and subscriptions awarded,12.10.2016,1905315453,"1,737.50",HOLIDAYINN E MANCAIRPO
Manchester City Council,Adult Social Care,Home Care ,12.10.2016,5100883553,796.50,Cooperative Childcare
Manchester City Council,Adult Social Care,Home Care ,12.10.2016,5100883577,513.00,Bizzie Kidz Nursery Ltd
Manchester City Council,Adult Social Care,Payments for services,12.10.2016,5100883582,"5,462.96",The Together Trust
Manchester City Council,Adult Social Care,Payments for services,12.10.2016,5100883448,"5,487.00",The Youth Justice Board
Manchester City Council,Adult Social Care,Payments for services,12.10.2016,5100883445,"4,779.00",The Youth Justice Board
Manchester City Council,Adult Social Care,Payments for services,12.10.2016,5100883449,"4,018.00",The Youth Justice Board
Manchester City Council,Adult Social Care,Payments for services,12.10.2016,5100883443,"2,478.00",The Youth Justice Board
Manchester City Council,Adult Social Care,Payments for services,12.10.2016,5100883444,"1,062.00",The Youth Justice Board
Manchester City Council,Adult Social Care,Payments for services,12.10.2016,5100882956,"8,099.05",Embrace All Ltd
Manchester City Council,Adult Social Care,Payments for services,12.10.2016,5100882863,"3,173.75",Central Manchester University Hosp
Manchester City Council,Adult Social Care,Payments for services,12.10.2016,5100882825,"28,394.00",Pure Innovations Ltd
Manchester City Council,Adult Social Care,Payments for services,12.10.2016,5100883585,"24,654.67",David Lewis Organisation
Manchester City Council,Adult Social Care,Payments for services,12.10.2016,5100883588,"1,914.60",Works 4U (Support Services) Ltd
Manchester City Council,Adult Social Care,Payments for services,12.10.2016,5100883542,600.00,The Factory Youth Zone
Manchester City Council,Adult Social Care,Payments for services,12.10.2016,5100883457,"18,000.00",Achieving For Children
Manchester City Council,Adult Social Care,Private Finance and Public Private partnership initiatives,12.10.2016,5100883366,"20,000.00",NU3PS
Manchester City Council,Adult Social Care,Professional fees,12.10.2016,1905296733,747.13,Redacted Personal Information
Manchester City Council,Adult Social Care,Professional fees,12.10.2016,5100883522,"3,600.00",Pepper Stacey Ltd
Manchester City Council,Adult Social Care,Professional fees,12.10.2016,5100883521,"1,800.00",Pepper Stacey Ltd
Manchester City Council,Adult Social Care,Professional fees,12.10.2016,1905310918,"2,000.00",Redacted Personal Information
Manchester City Council,Adult Social Care,Public Transport,12.10.2016,1905307419,"2,240.00",Triple Zero Private Hire Ltd
Manchester City Council,Adult Social Care,Refuse Collection,12.10.2016,1905315969,576.16,Enterprise Manchester TRADE
Manchester City Council,Adult Social Care,Refuse Collection,12.10.2016,1905315988,510.12,Enterprise Manchester TRADE
Manchester City Council,Adult Social Care,Rents,12.10.2016,5100883415,"66,274.32",B & A Properties
Manchester City Council,Adult Social Care,Rents,12.10.2016,1905310609,600.00,Redacted Personal Information
Manchester City Council,Adult Social Care,Third party payments relating to Voluntary Organisations,12.10.2016,5100883598,"1,500.00",George House Trust
Manchester City Council,Adult Social Care,Third party payments relating to Voluntary Organisations,12.10.2016,5100883357,"3,074.25",LMCP Care Link
Manchester City Council,Adult Social Care,Third party payments relating to Voluntary Organisations,12.10.2016,5100883364,"2,281.00",LMCP Care Link
Manchester City Council,Adult Social Care,Third party payments relating to Voluntary Organisations,12.10.2016,5100883360,"1,430.00",LMCP Care Link
Manchester City Council,Adult Social Care,Third party payments to other Local Authorities,12.10.2016,5100883543,"3,877.60",Rochdale MBC
Manchester City Council,Adult Social Care,Third party payments to other Local Authorities,12.10.2016,5100883394,"2,185.00",Derbyshire County Council
Manchester City Council,Adult Social Care,Third party payments to other Local Authorities,12.10.2016,5100882914,"7,751.00",Sharples School
Manchester City Council,Adult Social Care,Third party payments to other Local Authorities,12.10.2016,5100883434,"-1,937.75",Sharples School
Manchester City Council,Adult Social Care,Training and Development,12.10.2016,5100883388,500.00,Ocr
Manchester City Council,Adult Social Care,Transport Coach Hire,12.10.2016,5100881990,"2,047.50",Mallons Minibus Travel
Manchester City Council,Adult Social Care,Transport Coach Hire,12.10.2016,5100882493,"4,420.00",Redacted Personal Information
Manchester City Council,Adult Social Care,Transport Coach Hire,12.10.2016,5100881717,"14,949.00",Westfield Minibuses
Manchester City Council,Adult Social Care,Transport Coach Hire,12.10.2016,5100882690,"4,780.00",Redacted Personal Information
Manchester City Council,Adult Social Care,Compensation Payments,12.10.2016,1700066153,"-9,000.00",Jordans Solicitors
Manchester City Council,Adult Social Care,Compensation Payments,12.10.2016,1905301220,517.80,Fraud Advisory Services Ltd
Manchester City Council,Childrens Services,Building Works,12.10.2016,5100883437,"114,434.00",Manchester Enterprise Academy
Manchester City Council,Corporate Services,Storage Costs,12.10.2016,5100883420,"5,201.96",Box-It (NW)
Manchester City Council,Corporate Services,Training and Development,12.10.2016,5100883547,"1,772.00",Cipfa
Manchester City Council,Corporate Services,Transport Taxis,12.10.2016,1905316009,"11,544.79",Mantax Radio Taxis Ltd
Manchester City Council,Corporate Services,Transport Taxis,12.10.2016,1905315939,"5,000.00",Street Cars
Manchester City Council,Corporate Services,Transport Taxis,12.10.2016,1905315940,"5,000.00",Street Cars
Manchester City Council,Corporate Services,Transport Taxis,12.10.2016,1905315938,"4,000.00",Street Cars
Manchester City Council,Corporate Services,Transport Taxis,12.10.2016,1905315937,"1,000.00",Street Cars
Manchester City Council,Corporate Services,Works and associated costs for Land and Buildings,12.10.2016,5100883563,"1,125.00",Urban Green Space Limited
Manchester City Council,Corporate Services,Works and associated costs for Land and Buildings,12.10.2016,1905315452,"186,000.00",ALLSOP.CO.UK
Manchester City Council,Corporate Services,Legal Fees,12.10.2016,1905315703,"3,360.00",HMCTS (Manchester)
Manchester City Council,Corporate Services,Legal Fees,12.10.2016,1905315796,"6,747.00",HMCTS (Manchester)
Manchester City Council,Housing Revenue Account,Council Dwelling Adaptations,12.10.2016,5100883455,"24,656.60",SIG Roofing Supplies
Manchester City Council,Housing Revenue Account,Northwards Management Fee,12.10.2016,5100882562,"27,472.50",Northwards Housing Limited
Manchester City Council,Housing Revenue Account,Northwards Repairs Fee,12.10.2016,5100882549,"1,789,541.17",Northwards Housing Limited
Manchester City Council,Chief Executives,Advertising,12.10.2016,1905315727,599.74,Facebook (CARD ONLY)
Manchester City Council,Chief Executives,Advertising,12.10.2016,1905315711,599.54,Facebook (CARD ONLY)
Manchester City Council,Chief Executives,Agency staff provision,12.10.2016,5100883367,"19,883.67",HCL Social Care
Manchester City Council,Chief Executives,Agency staff provision,12.10.2016,5100881602,"1,935.50",Entrust Social Care
Manchester City Council,Chief Executives,Agency staff provision,12.10.2016,5100881597,"1,741.95",Entrust Social Care
Manchester City Council,Chief Executives,Agency staff provision,12.10.2016,5100883741,"41,782.14",Hays Personnel
Manchester City Council,Chief Executives,Agency staff provision,12.10.2016,5100883358,"22,024.15",Triad Resourcing
Manchester City Council,Chief Executives,Agency staff provision,12.10.2016,5100882474,"8,693.00",Triad Resourcing
Manchester City Council,Chief Executives,Agency staff provision,12.10.2016,5100883379,"2,300.00",Triad Resourcing
Manchester City Council,Chief Executives,Agency staff provision,12.10.2016,5100882474,"1,910.00",Triad Resourcing
Manchester City Council,Chief Executives,Agency staff provision,12.10.2016,5100881458,"12,351.87",NonStop Recruitment Ltd
Manchester City Council,Chief Executives,Data Registration Fee,12.10.2016,1905310912,"5,080.00",HMCS Traffic EC
Manchester City Council,Chief Executives,Data Registration Fee,12.10.2016,1905310907,"4,672.00",HMCS Traffic EC
Manchester City Council,Chief Executives,Grant and subscriptions awarded,12.10.2016,5100882827,"56,626.00",Zion Arts Centre Ltd
Manchester City Council,Chief Executives,Grant and subscriptions awarded,12.10.2016,5100883519,"-56,626.00",Zion Arts Centre Ltd
Manchester City Council,Chief Executives,Hire of Machinery,12.10.2016,5100883528,"1,299.50",R & M Developments Ltd
Manchester City Council,Chief Executives,Hire of Machinery,12.10.2016,5100883544,"1,299.50",R & M Developments Ltd
Manchester City Council,Chief Executives,Hire of Machinery,12.10.2016,5100883558,"1,299.50",R & M Developments Ltd
Manchester City Council,Chief Executives,Hire of Machinery,12.10.2016,5100883551,"1,038.50",R & M Developments Ltd
Manchester City Council,Chief Executives,Hire of Machinery,12.10.2016,5100883559,"1,038.50",R & M Developments Ltd
Manchester City Council,Chief Executives,Hire of Machinery,12.10.2016,5100883552,"1,012.50",R & M Developments Ltd
Manchester City Council,Chief Executives,Hire of Machinery,12.10.2016,5100883562,"1,012.50",R & M Developments Ltd
Manchester City Council,Chief Executives,Hire of Machinery,12.10.2016,5100883565,897.80,R & M Developments Ltd
Manchester City Council,Chief Executives,Hire of Machinery,12.10.2016,5100883567,830.80,R & M Developments Ltd
Manchester City Council,Chief Executives,Hospitality,12.10.2016,1905315810,776.20,THE ALBERT SQUARE CHOP
Manchester City Council,Chief Executives,Payments to Contractors,12.10.2016,5100883610,"146,655.95",NSL Ltd
Manchester City Council,Chief Executives,Payments to Contractors,12.10.2016,5100883611,"50,545.52",NSL Ltd
Manchester City Council,Chief Executives,Payments to Sub-Contractors,12.10.2016,5100883368,"9,112.50",Kenny Bros (Civil Eng) Ltd
Manchester City Council,Chief Executives,Payments to Sub-Contractors,12.10.2016,5100883373,"4,218.75",Kenny Bros (Civil Eng) Ltd
Manchester City Council,Chief Executives,Payments to Sub-Contractors,12.10.2016,5100883064,"1,575.00",Groundwork Landscapes Ltd
Manchester City Council,Chief Executives,Payments to Sub-Contractors,12.10.2016,5100883057,"15,399.73",Rosgal Ltd
Manchester City Council,Chief Executives,Payments to Sub-Contractors,12.10.2016,5100882574,"5,287.18",Northern Marking Limited
Manchester City Council,Chief Executives,Postage,12.10.2016,5100883359,"3,322.88",Royal Mail Group Plc
Manchester City Council,Chief Executives,Postage,12.10.2016,5100883361,"1,816.97",Royal Mail Group Plc
Manchester City Council,Chief Executives,Postage,12.10.2016,5100883413,800.00,Royal Mail Group Plc
Manchester City Council,Chief Executives,Printing,12.10.2016,5100883044,"1,226.75",Service Point
Manchester City Council,Chief Executives,Printing,12.10.2016,5100883391,"2,399.00",John Baxter & Sons Ltd
Manchester City Council,Chief Executives,Professional fees,12.10.2016,5100882755,"7,286.89",Turner & Townsend Cost
Manchester City Council,Chief Executives,Professional fees,12.10.2016,5100882769,"7,191.00",Turner & Townsend Cost
Manchester City Council,Chief Executives,Professional fees,12.10.2016,5100882770,"3,564.90",Turner & Townsend Cost
Manchester City Council,Chief Executives,Professional fees,12.10.2016,5100883428,640.00,Bury M.B.C.
Manchester City Council,Chief Executives,Professional fees,12.10.2016,1905310889,560.00,Anglia DNA Services Ltd
Manchester City Council,Chief Executives,"Vehicles, Plant, Furniture & Equip - Adaptations",12.10.2016,5100882474,"2,300.00",Triad Resourcing
Manchester City Council,Chief Executives,"Vehicles, Plant, Furniture & Equip - Adaptations",12.10.2016,5100882474,"1,941.15",Triad Resourcing
Manchester City Council,Chief Executives,"Vehicles, Plant, Furniture & Equip - Adaptations",12.10.2016,5100882474,"1,890.00",Triad Resourcing
Manchester City Council,Chief Executives,"Vehicles, Plant, Furniture & Equip - Adaptations",12.10.2016,5100882792,"2,850.00",Risual Limited
Manchester City Council,Chief Executives,"Vehicles, Plant, Furniture & Equip - Adaptations",12.10.2016,5100882796,"1,900.00",Risual Limited
Manchester City Council,Chief Executives,Works and associated costs for Land and Buildings,12.10.2016,5100883401,"1,950.00",Hoare Lea Fire Engineering
Manchester City Council,Chief Executives,Compensation Payments,12.10.2016,1905310930,525.00,Redacted Personal Information
Manchester City Council,Chief Executives,Compensation Payments,12.10.2016,1905310906,569.43,Stockport Psychology Services
Manchester City Council,Regeneration Finance,Contract Cleaning External,12.10.2016,5100880783,"6,435.00",Mitie Cleaning & Environmental
Manchester City Council,Regeneration Finance,Contract Cleaning External,12.10.2016,5100882820,"1,710.19",M & M Cleaning Services Ltd
Manchester City Council,Regeneration Finance,External repairs and maintenance for buildings,12.10.2016,5100883347,"10,544.34",Manchester Working Ltd
Manchester City Council,Regeneration Finance,Hire of Machinery,12.10.2016,5100883393,660.00,GHL Liftrucks Ltd
Manchester City Council,Regeneration Finance,Internal Repairs and Maintenance for buildings,12.10.2016,5100883352,"38,685.47",Manchester Working Ltd
Manchester City Council,Regeneration Finance,Professional fees,12.10.2016,5100883520,"-1,000.00",Lambert Smith Hampton
Manchester City Council,Regeneration Finance,Refuse Collection,12.10.2016,1905315952,"9,261.72",Enterprise Manchester TRADE
Manchester City Council,Regeneration Finance,Refuse Collection,12.10.2016,1905315974,"4,822.77",Enterprise Manchester TRADE
Manchester City Council,Regeneration Finance,Refuse Collection,12.10.2016,1905315976,"1,791.40",Enterprise Manchester TRADE
Manchester City Council,Regeneration Finance,Refuse Collection,12.10.2016,1905316024,965.12,Enterprise Manchester TRADE
Manchester City Council,Regeneration Finance,Refuse Collection,12.10.2016,1905315978,923.22,Enterprise Manchester TRADE
Manchester City Council,Regeneration Finance,Refuse Collection,12.10.2016,1905315995,720.20,Enterprise Manchester TRADE
Manchester City Council,Regeneration Finance,Refuse Collection,12.10.2016,1905316012,546.78,Enterprise Manchester TRADE
Manchester City Council,Regeneration Finance,Refuse Collection,12.10.2016,1905316023,513.11,Enterprise Manchester TRADE
Manchester City Council,Regeneration Finance,Rents,12.10.2016,1905315446,"8,333.34",Regus Management (UK) Ltd
Manchester City Council,Regeneration Finance,Rents,12.10.2016,1905315447,"8,333.34",Regus Management (UK) Ltd
Manchester City Council,Regeneration Finance,Rents,12.10.2016,1905315448,"8,333.34",Regus Management (UK) Ltd
Manchester City Council,Regeneration Finance,Rents,12.10.2016,1905315449,"8,333.34",Regus Management (UK) Ltd
Manchester City Council,Regeneration Finance,Rents,12.10.2016,1905315442,"8,333.33",Regus Management (UK) Ltd
Manchester City Council,Regeneration Finance,Rents,12.10.2016,1905315443,"8,333.33",Regus Management (UK) Ltd
Manchester City Council,Regeneration Finance,Rents,12.10.2016,1905315444,"8,333.33",Regus Management (UK) Ltd
Manchester City Council,Regeneration Finance,Rents,12.10.2016,1905315445,"8,333.33",Regus Management (UK) Ltd
Manchester City Council,Regeneration Finance,Rents,12.10.2016,1905315450,"6,182.32",Regus Management (UK) Ltd
Manchester City Council,Regeneration Finance,Rents,12.10.2016,1700066151,"-6,182.32",REGUS MANAGEMENT UK LTD
Manchester City Council,Regeneration Finance,Rents,12.10.2016,1700066143,"-8,333.33",REGUS MANAGEMENT UK LTD
Manchester City Council,Regeneration Finance,Rents,12.10.2016,1700066144,"-8,333.33",REGUS MANAGEMENT UK LTD
Manchester City Council,Regeneration Finance,Rents,12.10.2016,1700066145,"-8,333.33",REGUS MANAGEMENT UK LTD
Manchester City Council,Regeneration Finance,Rents,12.10.2016,1700066146,"-8,333.33",REGUS MANAGEMENT UK LTD
Manchester City Council,Regeneration Finance,Rents,12.10.2016,1700066147,"-8,333.34",REGUS MANAGEMENT UK LTD
Manchester City Council,Regeneration Finance,Rents,12.10.2016,1700066148,"-8,333.34",REGUS MANAGEMENT UK LTD
Manchester City Council,Regeneration Finance,Rents,12.10.2016,1700066149,"-8,333.34",REGUS MANAGEMENT UK LTD
Manchester City Council,Regeneration Finance,Rents,12.10.2016,1700066150,"-8,333.34",REGUS MANAGEMENT UK LTD
Manchester City Council,Regeneration Finance,Toilet Requisites,12.10.2016,5100883204,703.75,Alliance Disposables Ltd
Manchester City Council,Regeneration Finance,Toilet Requisites,12.10.2016,5100883494,703.75,Alliance Disposables Ltd
Manchester City Council,General Fund,Levies - Cash Limit,12.10.2016,1905075436,"3,603,875.80",GMCA
Manchester City Council,GMIST (Greater Mcr Integrated),Stationery,12.10.2016,5100883468,"1,197.63",Commission for the New Economy
Manchester City Council,Manchester Leisure,Agency staff provision,13.10.2016,5100883692,"1,133.78",Reed Employment Plc
Manchester City Council,Manchester Leisure,Cash Collection,13.10.2016,5100881932,"9,675.00",Manchester Metropolitan University
Manchester City Council,Manchester Leisure,Equipment,13.10.2016,1905288618,"5,303.80",SUEZ Communities Trust Ltd
Manchester City Council,Manchester Leisure,Grant and subscriptions awarded,13.10.2016,5100883631,"19,500.00",The Manchester College
Manchester City Council,Manchester Leisure,Grant Payments,13.10.2016,1905310933,940.00,Command Prayer Centre Ministries
Manchester City Council,Manchester Leisure,Library Materials Acquisition,13.10.2016,1905310823,"1,296.04",Martin Lavell Limited
Manchester City Council,Manchester Leisure,Library Materials Acquisition,13.10.2016,1905310839,510.10,Askews and Holts
Manchester City Council,Manchester Leisure,Payments for services,13.10.2016,5100881637,"31,500.00",Love Withington Baths
Manchester City Council,Manchester Leisure,Payments to Sub-Contractors,13.10.2016,5100883452,600.00,Nacro
Manchester City Council,Manchester Leisure,Payments to Sub-Contractors,13.10.2016,5100883454,600.00,Nacro
Manchester City Council,Manchester Leisure,Payments to Sub-Contractors,13.10.2016,5100883461,600.00,Nacro
Manchester City Council,Manchester Leisure,Payments to Sub-Contractors,13.10.2016,5100883463,600.00,Nacro
Manchester City Council,Manchester Leisure,Payments to Sub-Contractors,13.10.2016,5100883464,600.00,Nacro
Manchester City Council,Manchester Leisure,Payments to Sub-Contractors,13.10.2016,5100883465,600.00,Nacro
Manchester City Council,Manchester Leisure,Payments to Sub-Contractors,13.10.2016,5100883467,600.00,Nacro
Manchester City Council,Manchester Leisure,Payments to Sub-Contractors,13.10.2016,5100883469,600.00,Nacro
Manchester City Council,Manchester Leisure,Payments to Sub-Contractors,13.10.2016,5100883473,600.00,Nacro
Manchester City Council,Manchester Leisure,Payments to Sub-Contractors,13.10.2016,5100883523,600.00,Nacro
Manchester City Council,Manchester Leisure,Payments to Sub-Contractors,13.10.2016,5100883524,600.00,Nacro
Manchester City Council,Manchester Leisure,Payments to Sub-Contractors,13.10.2016,5100883991,"2,065.00",Clean-Up UK Limited
Manchester City Council,Manchester Leisure,Payments to Sub-Contractors,13.10.2016,5100883992,"2,065.00",Clean-Up UK Limited
Manchester City Council,Manchester Leisure,Payments to Sub-Contractors,13.10.2016,5100883994,"1,475.00",Clean-Up UK Limited
Manchester City Council,Manchester Leisure,Payments to Sub-Contractors,13.10.2016,5100883996,"1,475.00",Clean-Up UK Limited
Manchester City Council,Manchester Leisure,Payments to Sub-Contractors,13.10.2016,5100883990,"1,180.00",Clean-Up UK Limited
Manchester City Council,Manchester Leisure,Payments to Sub-Contractors,13.10.2016,5100883993,885.00,Clean-Up UK Limited
Manchester City Council,Manchester Leisure,Payments to Sub-Contractors,13.10.2016,5100883995,590.00,Clean-Up UK Limited
Manchester City Council,Manchester Leisure,Payments to Sub-Contractors,13.10.2016,5100883997,590.00,Clean-Up UK Limited
Manchester City Council,Manchester Leisure,Professional fees,13.10.2016,5100882818,550.00,University Of Manchester
Manchester City Council,Manchester Leisure,Professional fees,13.10.2016,5100883812,"7,942.14",Austen Lewis Limited
Manchester City Council,Libraries and Theatres,Training and Development,13.10.2016,5100883036,"6,000.00",University Of Salford
Manchester City Council,Libraries and Theatres,Vehicle Plant Furniture and Equipment,13.10.2016,5100884009,"1,020.00",Egan Reid Stationery Co Ltd
Manchester City Council,Hospitality + Trading Services,Building Materials for direct delivery,13.10.2016,5100884004,"2,381.70",Killgerm Chemicals Ltd
Manchester City Council,Hospitality + Trading Services,Building Materials for direct delivery,13.10.2016,5100884010,"1,017.33",Killgerm Chemicals Ltd
Manchester City Council,Hospitality + Trading Services,Hire of Equipment,13.10.2016,5100884006,"1,380.50",Mastacab LLP
Manchester City Council,Hospitality + Trading Services,Vehicle Costs,13.10.2016,5100883947,"6,653.62",Stapletons Tyre Services
Manchester City Council,Hospitality + Trading Services,Vehicle Costs,13.10.2016,5100883946,"6,008.62",Stapletons Tyre Services
Manchester City Council,Hospitality + Trading Services,Vehicle Hire Costs,13.10.2016,5100883658,"1,700.00",Peter Douglass Platforms
Manchester City Council,Hospitality + Trading Services,Vehicle Hire Costs,13.10.2016,5100883654,"1,320.00",Peter Douglass Platforms
Manchester City Council,Hospitality + Trading Services,Vehicle Repairs,13.10.2016,5100883943,"3,409.43",Manchester Van Hire Ltd
Manchester City Council,Environment and Operations,Construction Works,13.10.2016,5100883822,"21,882.00",Utilities Design & Planning Ltd
Manchester City Council,Environment and Operations,Construction Works,13.10.2016,5100883850,"12,600.50",Utilities Design & Planning Ltd
Manchester City Council,Environment and Operations,Construction Works,13.10.2016,5100883852,"11,563.50",Utilities Design & Planning Ltd
Manchester City Council,Environment and Operations,Construction Works,13.10.2016,5100883801,"1,800.00",Utilities Design & Planning Ltd
Manchester City Council,Environment and Operations,Payments to Sub-Contractors,13.10.2016,5100883830,"4,814.40",Scrutiny Cleaning Services
Manchester City Council,Adult Social Care,Agency staff provision,13.10.2016,5100881697,955.62,Capita  Resourcing Ltd
Manchester City Council,Adult Social Care,Agency staff provision,13.10.2016,5100881719,"1,935.50",Sanctuary Social Care
Manchester City Council,Adult Social Care,Agency staff provision,13.10.2016,5100881719,"1,935.50",Sanctuary Social Care
Manchester City Council,Adult Social Care,Agency staff provision,13.10.2016,5100881719,967.75,Sanctuary Social Care
Manchester City Council,Adult Social Care,Agency staff provision,13.10.2016,5100881719,967.75,Sanctuary Social Care
Manchester City Council,Adult Social Care,Agency staff provision,13.10.2016,1905316680,"13,975.00",Hays Personnel
Manchester City Council,Adult Social Care,Agency staff provision,13.10.2016,5100883691,929.28,SRA Cover Staff Ltd
Manchester City Council,Adult Social Care,Agency staff provision,13.10.2016,5100883656,919.60,SRA Cover Staff Ltd
Manchester City Council,Adult Social Care,Agency staff provision,13.10.2016,5100883687,873.50,SRA Cover Staff Ltd
Manchester City Council,Adult Social Care,Agency staff provision,13.10.2016,5100883656,698.80,SRA Cover Staff Ltd
Manchester City Council,Adult Social Care,Bed and Breakfast Accommodation Expenditure,13.10.2016,5100883802,"17,165.02",G & A Taylor Hotels Ltd
Manchester City Council,Adult Social Care,Bed and Breakfast Accommodation Expenditure,13.10.2016,5100883414,"10,510.00",Redacted Personal Information
Manchester City Council,Adult Social Care,Carer Support Payments ,13.10.2016,5100883738,"20,239.54",Homecare Support
Manchester City Council,Adult Social Care,External repairs and maintenance for buildings,13.10.2016,5100882246,"120,637.00",G & J Seddon Ltd
Manchester City Council,Adult Social Care,External repairs and maintenance for buildings,13.10.2016,5100883597,"46,690.54",Manchester Working Ltd
Manchester City Council,Adult Social Care,External repairs and maintenance for buildings,13.10.2016,5100883829,633.18,Manchester Working Ltd
Manchester City Council,Adult Social Care,Funeral and coroner related services,13.10.2016,5100881664,"4,150.00",Funeral Prtnrs t/a Michael Kennedy
Manchester City Council,Adult Social Care,Funeral and coroner related services,13.10.2016,5100882884,"1,090.00",Funeral Prtnrs t/a Michael Kennedy
Manchester City Council,Adult Social Care,Grant and subscriptions awarded,13.10.2016,5100883835,"20,000.00",Venture Arts Ltd
Manchester City Council,Adult Social Care,I T Provision,13.10.2016,5100883648,"1,992.97",Ezitracker Ltd
Manchester City Council,Adult Social Care,Payments for services,13.10.2016,5100882475,"2,625.28",Progress Care & Education Ltd
Manchester City Council,Adult Social Care,Payments for services,13.10.2016,5100883786,"2,282.74",Scope
Manchester City Council,Adult Social Care,Payments for services,13.10.2016,5100883805,814.74,Scope
Manchester City Council,Adult Social Care,Payments for services,13.10.2016,5100883685,"1,200.00",The Factory Youth Zone
Manchester City Council,Adult Social Care,Personal needs of client,13.10.2016,5100883799,"3,229.50",Lisclare
Manchester City Council,Adult Social Care,Personal needs of client,13.10.2016,5100884007,"1,267.20",Frontier Therapeutics
Manchester City Council,Adult Social Care,Personal needs of client,13.10.2016,5100884008,"1,267.20",Frontier Therapeutics
Manchester City Council,Adult Social Care,Personal needs of client,13.10.2016,5100884005,"1,550.00",Aidservice Ltd
Manchester City Council,Adult Social Care,Personal needs of client,13.10.2016,5100884013,600.00,Aidservice Ltd
Manchester City Council,Adult Social Care,Personal needs of client,13.10.2016,5100884014,589.00,Aidservice Ltd
Manchester City Council,Adult Social Care,Personal needs of client,13.10.2016,5100884015,540.00,Aidservice Ltd
Manchester City Council,Adult Social Care,Professional fees,13.10.2016,5100881719,"4,736.79",Sanctuary Social Care
Manchester City Council,Adult Social Care,Professional fees,13.10.2016,5100883840,"3,150.00",Liquid Personnel Ltd
Manchester City Council,Adult Social Care,Professional fees,13.10.2016,5100883600,"14,425.28",Resolutions Consultancy Pty Ltd
Manchester City Council,Adult Social Care,Professional fees,13.10.2016,5100883831,"2,860.50",EC Safeguarding Consultancy Ltd
Manchester City Council,Adult Social Care,Refuse Collection,13.10.2016,1905316671,843.70,Enterprise Manchester TRADE
Manchester City Council,Adult Social Care,Rents,13.10.2016,5100883833,"8,451.75",Great Places Housing Association
Manchester City Council,Adult Social Care,Subsistence and Conference Expenses,13.10.2016,5100883749,"2,250.00",Tribal Education
Manchester City Council,Adult Social Care,Subsistence and Conference Expenses,13.10.2016,5100878124,910.00,Redacted Personal Information
Manchester City Council,Adult Social Care,Subsistence and Conference Expenses,13.10.2016,5100883686,"5,509.00",The Work Company
Manchester City Council,Adult Social Care,Third party payments relating to Voluntary Organisations,13.10.2016,5100882759,"3,712.50",Chorlton Good Neighbours
Manchester City Council,Adult Social Care,Third party payments relating to Voluntary Organisations,13.10.2016,5100882545,"1,950.00",Didsbury Good Neighbours Ltd
Manchester City Council,Adult Social Care,Third party payments relating to Voluntary Organisations,13.10.2016,5100883032,"2,625.00",Wai Yin Society
Manchester City Council,Adult Social Care,Third party payments relating to Voluntary Organisations,13.10.2016,5100883030,"2,250.00",Wai Yin Society
Manchester City Council,Adult Social Care,Third party payments relating to Voluntary Organisations,13.10.2016,5100882620,"2,186.16",Neesa Well Women Drop-In Project
Manchester City Council,Adult Social Care,Third party payments relating to Voluntary Organisations,13.10.2016,5100883836,"17,071.00",Breakthrough Uk Ltd
Manchester City Council,Adult Social Care,Third party payments relating to Voluntary Organisations,13.10.2016,5100883665,"3,179.00",Manchester Carers Forum
Manchester City Council,Adult Social Care,Third party payments relating to Voluntary Organisations,13.10.2016,5100883800,601.88,Scope
Manchester City Council,Adult Social Care,Third party payments relating to Voluntary Organisations,13.10.2016,5100883684,"8,345.55",Remedi
Manchester City Council,Adult Social Care,Third party payments relating to Voluntary Organisations,13.10.2016,5100882447,510.00,City South Manchester Housing Trust
Manchester City Council,Adult Social Care,Third party payments relating to Voluntary Organisations,13.10.2016,5100882809,"2,523.16",St Lukes Art Project
Manchester City Council,Adult Social Care,Third party payments to Health Authority,13.10.2016,5100881942,"75,000.00",Central Manchester University Hosp
Manchester City Council,Adult Social Care,Third party payments to Health Authority,13.10.2016,5100883675,613.18,Central & NW London NHS Foundation
Manchester City Council,Adult Social Care,Training and Development,13.10.2016,5100882939,870.00,University Of Salford
Manchester City Council,Adult Social Care,Training and Development,13.10.2016,5100883386,500.00,Ocr
Manchester City Council,Adult Social Care,Transport Coach Hire,13.10.2016,5100883033,"1,965.00",Connect Cars Ltd
Manchester City Council,Adult Social Care,Transport Coach Hire,13.10.2016,5100883034,"1,520.00",Connect Cars Ltd
Manchester City Council,Adult Social Care,Transport Coach Hire,13.10.2016,5100883617,"1,440.00",Connect Cars Ltd
Manchester City Council,Adult Social Care,Transport Coach Hire,13.10.2016,5100883035,"1,400.00",Connect Cars Ltd
Manchester City Council,Adult Social Care,Transport Coach Hire,13.10.2016,5100882581,"1,800.00",G.M Travel
Manchester City Council,Adult Social Care,Transport Coach Hire,13.10.2016,5100883683,"1,890.00",APL Coachhire
Manchester City Council,Adult Social Care,Legal Fees,13.10.2016,5100883797,780.00,Redacted Personal Information
Manchester City Council,Adult Social Care,Legal Fees,13.10.2016,5100883784,"1,575.00",Redacted Personal Information
Manchester City Council,Childrens Services,Works and associated costs for Land and Buildings,13.10.2016,5100881739,"9,282.53",Manchester Working Ltd
Manchester City Council,Corporate Services,Agency staff provision,13.10.2016,5100881697,740.32,Capita  Resourcing Ltd
Manchester City Council,Corporate Services,Grant and subscriptions awarded,13.10.2016,5100883650,"3,564.00",British Standards Institution
Manchester City Council,Corporate Services,Stationery,13.10.2016,5100883458,"1,196.40",Venture Business Forms Ltd
Manchester City Council,Corporate Services,Transport Taxis,13.10.2016,1905316667,"5,482.40",Manchester Cars
Manchester City Council,Corporate Services,Vehicle Hire Costs,13.10.2016,1905316668,"1,741.59",City Car Club Ltd
Manchester City Council,Housing General Fund,Works and associated costs for Land and Buildings,13.10.2016,5100883616,"12,634.54",National Grid (Disconnections)
Manchester City Council,Housing Revenue Account,Council Dwelling Adaptations,13.10.2016,5100883663,"50,051.67",Manchester Working Ltd
Manchester City Council,Housing Revenue Account,Council Dwelling Adaptations,13.10.2016,5100883673,"37,392.23",Manchester Working Ltd
Manchester City Council,Housing Revenue Account,I T Provision,13.10.2016,5100883795,849.00,A1 Cad & Stationery Services Ltd
Manchester City Council,Housing Revenue Account,Peaks & Plains Management Fee,13.10.2016,5100882933,"3,597.47",Cheshire Peaks & Plains
Manchester City Council,Chief Executives,Agency staff provision,13.10.2016,5100883666,"13,125.00",North West Employers Ltd
Manchester City Council,Chief Executives,Agency staff provision,13.10.2016,5100883671,"8,125.00",North West Employers Ltd
Manchester City Council,Chief Executives,Agency staff provision,13.10.2016,5100883618,"2,833.94",Bs Project Services Ltd T/A
Manchester City Council,Chief Executives,Agency staff provision,13.10.2016,5100883692,"11,748.15",Reed Employment Plc
Manchester City Council,Chief Executives,Agency staff provision,13.10.2016,5100881697,"20,603.49",Capita  Resourcing Ltd
Manchester City Council,Chief Executives,Agency staff provision,13.10.2016,5100881719,"2,709.71",Sanctuary Social Care
Manchester City Council,Chief Executives,Agency staff provision,13.10.2016,5100882388,"19,597.70",P S Recruitment Specialists Ltd
Manchester City Council,Chief Executives,Agency staff provision,13.10.2016,5100883687,"20,165.87",SRA Cover Staff Ltd
Manchester City Council,Chief Executives,Agency staff provision,13.10.2016,5100883656,"19,480.21",SRA Cover Staff Ltd
Manchester City Council,Chief Executives,Agency staff provision,13.10.2016,5100883691,"14,694.49",SRA Cover Staff Ltd
Manchester City Council,Chief Executives,Agency staff provision,13.10.2016,5100883369,"3,204.97",SRA Cover Staff Ltd
Manchester City Council,Chief Executives,Agency staff provision,13.10.2016,5100883632,651.00,iPeople Solutions Ltd
Manchester City Council,Chief Executives,Building Materials for direct delivery,13.10.2016,5100883793,"9,365.10",Marshalls Mono Ltd
Manchester City Council,Chief Executives,Building Materials for direct delivery,13.10.2016,5100881963,"6,883.52",Marshalls Mono Ltd
Manchester City Council,Chief Executives,Building Materials for direct delivery,13.10.2016,5100883883,"6,883.52",Marshalls Mono Ltd
Manchester City Council,Chief Executives,Building Materials for direct delivery,13.10.2016,5100881961,"6,567.60",Marshalls Mono Ltd
Manchester City Council,Chief Executives,Building Materials for direct delivery,13.10.2016,5100882855,"6,567.60",Marshalls Mono Ltd
Manchester City Council,Chief Executives,Building Materials for direct delivery,13.10.2016,5100883889,"6,567.60",Marshalls Mono Ltd
Manchester City Council,Chief Executives,Building Materials for direct delivery,13.10.2016,5100881966,"5,494.72",Marshalls Mono Ltd
Manchester City Council,Chief Executives,Building Materials for direct delivery,13.10.2016,5100883884,"5,494.72",Marshalls Mono Ltd
Manchester City Council,Chief Executives,Building Materials for direct delivery,13.10.2016,5100883891,"5,494.72",Marshalls Mono Ltd
Manchester City Council,Chief Executives,Building Materials for direct delivery,13.10.2016,5100882854,"5,357.16",Marshalls Mono Ltd
Manchester City Council,Chief Executives,Building Materials for direct delivery,13.10.2016,5100883888,"5,357.16",Marshalls Mono Ltd
Manchester City Council,Chief Executives,Building Materials for direct delivery,13.10.2016,5100883792,"2,480.00",Marshalls Mono Ltd
Manchester City Council,Chief Executives,Building Materials for direct delivery,13.10.2016,5100882851,876.06,Marshalls Mono Ltd
Manchester City Council,Chief Executives,Building Materials for direct delivery,13.10.2016,5100883886,876.06,Marshalls Mono Ltd
Manchester City Council,Chief Executives,Building Materials for direct delivery,13.10.2016,5100883890,668.40,Marshalls Mono Ltd
Manchester City Council,Chief Executives,Building Materials for direct delivery,13.10.2016,5100882849,565.20,Marshalls Mono Ltd
Manchester City Council,Chief Executives,Building Materials for direct delivery,13.10.2016,5100883885,565.20,Marshalls Mono Ltd
Manchester City Council,Chief Executives,Building Materials for direct delivery,13.10.2016,5100883754,-565.20,Marshalls Mono Ltd
Manchester City Council,Chief Executives,Building Materials for direct delivery,13.10.2016,5100883755,-876.06,Marshalls Mono Ltd
Manchester City Council,Chief Executives,Building Materials for direct delivery,13.10.2016,5100883756,"-5,357.16",Marshalls Mono Ltd
Manchester City Council,Chief Executives,Building Materials for direct delivery,13.10.2016,5100883752,"-5,494.72",Marshalls Mono Ltd
Manchester City Council,Chief Executives,Building Materials for direct delivery,13.10.2016,5100883757,"-6,567.60",Marshalls Mono Ltd
Manchester City Council,Chief Executives,Building Materials for direct delivery,13.10.2016,5100883751,"-6,883.52",Marshalls Mono Ltd
Manchester City Council,Chief Executives,Building Materials for direct delivery,13.10.2016,1905316899,808.00,Ecomix Concrete Ltd
Manchester City Council,Chief Executives,Building Materials for direct delivery,13.10.2016,1905316912,808.00,Ecomix Concrete Ltd
Manchester City Council,Chief Executives,Building Materials for direct delivery,13.10.2016,1905316913,808.00,Ecomix Concrete Ltd
Manchester City Council,Chief Executives,Building Materials for direct delivery,13.10.2016,1905316897,646.40,Ecomix Concrete Ltd
Manchester City Council,Chief Executives,Building Materials for direct delivery,13.10.2016,1905316917,633.25,Ecomix Concrete Ltd
Manchester City Council,Chief Executives,Building Materials for direct delivery,13.10.2016,1905316893,565.60,Ecomix Concrete Ltd
Manchester City Council,Chief Executives,Building Materials for direct delivery,13.10.2016,1905316896,565.60,Ecomix Concrete Ltd
Manchester City Council,Chief Executives,Building Materials for direct delivery,13.10.2016,1905316898,565.60,Ecomix Concrete Ltd
Manchester City Council,Chief Executives,Building Materials for direct delivery,13.10.2016,1905316903,565.60,Ecomix Concrete Ltd
Manchester City Council,Chief Executives,Building Materials for direct delivery,13.10.2016,1905316908,565.60,Ecomix Concrete Ltd
Manchester City Council,Chief Executives,Building Materials for direct delivery,13.10.2016,1905316911,565.60,Ecomix Concrete Ltd
Manchester City Council,Chief Executives,Building Materials for direct delivery,13.10.2016,1905316914,565.60,Ecomix Concrete Ltd
Manchester City Council,Chief Executives,Cash Collection,13.10.2016,5100883622,"3,166.85",NSL Ltd
Manchester City Council,Chief Executives,Cash Collection,13.10.2016,5100883624,"2,144.51",NSL Ltd
Manchester City Council,Chief Executives,Cash Collection,13.10.2016,5100882927,520.49,Review Travel Ltd
Manchester City Council,Chief Executives,Funeral and coroner related services,13.10.2016,5100881510,"35,519.44",Central Manchester University Hosp
Manchester City Council,Chief Executives,Funeral and coroner related services,13.10.2016,5100883782,"-35,519.44",Central Manchester University Hosp
Manchester City Council,Chief Executives,General Office expenses,13.10.2016,5100883593,598.00,Reed Business Information Ltd
Manchester City Council,Chief Executives,Grant and subscriptions awarded,13.10.2016,5100883527,"56,626.00",Zion Arts Centre Ltd
Manchester City Council,Chief Executives,Grant Payments,13.10.2016,5100881895,"6,250.00",Community Arts North West
Manchester City Council,Chief Executives,Hire of Machinery,13.10.2016,5100883620,"1,038.50",R & M Developments Ltd
Manchester City Council,Chief Executives,I T Provision,13.10.2016,5100883775,"3,150.00",Advanced Legal Solutions Ltd
Manchester City Council,Chief Executives,Payments to Sub-Contractors,13.10.2016,5100883881,"22,565.67",Clearway Drainage Systems Ltd
Manchester City Council,Chief Executives,Payments to Sub-Contractors,13.10.2016,5100880370,"26,135.55",Kenny Bros (Civil Eng) Ltd
Manchester City Council,Chief Executives,Payments to Sub-Contractors,13.10.2016,5100881879,"1,012.88",Northern Marking Limited
Manchester City Council,Chief Executives,Postage,13.10.2016,5100883354,"1,120.64",Royal Mail Group Plc
Manchester City Council,Chief Executives,Postage,13.10.2016,5100883351,530.32,Royal Mail Group Plc
Manchester City Council,Chief Executives,Printing,13.10.2016,5100884011,965.00,Astra Signs
Manchester City Council,Chief Executives,Printing,13.10.2016,5100884012,870.00,Astra Signs
Manchester City Council,Chief Executives,Printing,13.10.2016,5100883642,"1,120.00",Contact Photographic Services Ltd
Manchester City Council,Chief Executives,Printing,13.10.2016,5100883649,"1,068.00",Chapel Press Ltd
Manchester City Council,Chief Executives,Printing,13.10.2016,5100882538,"4,841.00",Euro Label Printers Ltd
Manchester City Council,Chief Executives,Professional fees,13.10.2016,5100883647,"9,405.00",Mott Macdonald Uk Limited
Manchester City Council,Chief Executives,Professional fees,13.10.2016,5100882761,"6,397.95",Turner & Townsend Cost
Manchester City Council,Chief Executives,Publications,13.10.2016,5100883644,"31,415.00",Lexis Nexis Uk
Manchester City Council,Chief Executives,Purchase of stores for re-distribution,13.10.2016,5100883791,"1,450.00",Marshalls Mono Ltd
Manchester City Council,Chief Executives,Rents,13.10.2016,5100882932,"1,177.83",Principal Agent Management Ltd
Manchester City Council,Chief Executives,"Vehicles, Plant, Furniture & Equip - Adaptations",13.10.2016,5100883692,"2,587.50",Reed Employment Plc
Manchester City Council,Chief Executives,"Vehicles, Plant, Furniture & Equip - Adaptations",13.10.2016,5100883692,"1,764.70",Reed Employment Plc
Manchester City Council,Chief Executives,Compensation Payments,13.10.2016,1905307404,"2,544.00",JMR Solicitors
Manchester City Council,Regeneration Finance,CRB Fees,13.10.2016,5100883708,"4,224.00",Disclosure & Barring Service
Manchester City Council,Regeneration Finance,Electricity,13.10.2016,1905316486,"1,001.82",Npower
Manchester City Council,Regeneration Finance,External repairs and maintenance for buildings,13.10.2016,5100883249,"28,128.69",Manchester Working Ltd
Manchester City Council,Regeneration Finance,I T Provision,13.10.2016,5100883700,"1,900.00",Idox Software Ltd
Manchester City Council,Regeneration Finance,I T Provision,13.10.2016,5100883701,"1,900.00",Idox Software Ltd
Manchester City Council,Regeneration Finance,Licences Purchase,13.10.2016,1905305312,576.00,Driver and Vehicle Licensing Agency
Manchester City Council,Regeneration Finance,Preventative Maintenance Work,13.10.2016,5100883677,"270,167.75",Manchester Working Ltd
Manchester City Council,Regeneration Finance,Professional fees,13.10.2016,5100883676,"4,650.00",Ekos Consulting (Uk) Ltd
Manchester City Council,Regeneration Finance,Professional fees,13.10.2016,5100883557,"2,750.00",Greater Manchester Ecology Unit
Manchester City Council,Regeneration Finance,Consultants Fees,13.10.2016,5100883839,"4,000.00",Susan Woodward Creative Consultancy
Manchester City Council,Regeneration Finance,Refuse Collection,13.10.2016,5100883641,644.33,Restore Shred Limited
Manchester City Council,Regeneration Finance,Removal and Storage of Furniture,13.10.2016,5100883067,"1,460.61",BCL
Manchester City Council,Regeneration Finance,Removal and Storage of Furniture,13.10.2016,5100883068,"1,300.99",BCL
Manchester City Council,Regeneration Finance,Removal and Storage of Furniture,13.10.2016,5100883061,"1,087.11",BCL
Manchester City Council,Regeneration Finance,Stationery,13.10.2016,5100883615,680.00,Rushton Electronic Solutions Ltd
Manchester City Council,GMIST (Greater Mcr Integrated),Agency staff provision,13.10.2016,5100883729,"62,666.50",The Behavioural Insight Team
Manchester City Council,GMIST (Greater Mcr Integrated),Hire of Premises,13.10.2016,5100881695,500.00,Manchester Central
Manchester City Council,Manchester Leisure,Agency staff provision,14.10.2016,5100883951,"4,440.00",Youth on Solid Ground
Manchester City Council,Manchester Leisure,Agency staff provision,14.10.2016,5100883955,"4,440.00",Youth on Solid Ground
Manchester City Council,Manchester Leisure,Agency staff provision,14.10.2016,5100883956,"4,440.00",Youth on Solid Ground
Manchester City Council,Manchester Leisure,Building Materials for direct delivery,14.10.2016,5100884093,"4,695.00",Acoustics Noise & Vibration Ltd
Manchester City Council,Manchester Leisure,Building Materials for direct delivery,14.10.2016,5100884040,"3,180.00",Invasive Weeds Agency Ltd
Manchester City Council,Manchester Leisure,Building Materials for direct delivery,14.10.2016,5100884041,"3,180.00",Invasive Weeds Agency Ltd
Manchester City Council,Manchester Leisure,Building Materials for direct delivery,14.10.2016,5100884038,"2,340.00",Invasive Weeds Agency Ltd
Manchester City Council,Manchester Leisure,Building Materials for direct delivery,14.10.2016,5100884080,"2,340.00",Invasive Weeds Agency Ltd
Manchester City Council,Manchester Leisure,Building Materials for direct delivery,14.10.2016,5100884084,"2,340.00",Invasive Weeds Agency Ltd
Manchester City Council,Manchester Leisure,Building Materials for direct delivery,14.10.2016,5100884039,"1,073.25",Invasive Weeds Agency Ltd
Manchester City Council,Manchester Leisure,Building Materials for direct delivery,14.10.2016,5100884042,"1,073.25",Invasive Weeds Agency Ltd
Manchester City Council,Manchester Leisure,Building Materials for direct delivery,14.10.2016,5100884081,"-2,340.00",Invasive Weeds Agency Ltd
Manchester City Council,Manchester Leisure,Grant and subscriptions awarded,14.10.2016,5100883954,"1,500.00",Fallowfield Library & Comm Centre
Manchester City Council,Manchester Leisure,Grant and subscriptions awarded,14.10.2016,5100883926,"2,000.00",The Grosvenor Museum
Manchester City Council,Manchester Leisure,Grant Payments,14.10.2016,5100883525,"4,500.00",Wirral M.B.C.
Manchester City Council,Manchester Leisure,Grant Payments,14.10.2016,1905315561,520.00,Anson Residents Association
Manchester City Council,Manchester Leisure,Grant Payments,14.10.2016,1905316703,600.00,Chorlton Book Festival
Manchester City Council,Manchester Leisure,Grant Payments,14.10.2016,1905316714,"2,035.78",Friends of Alex Park Manchester
Manchester City Council,Manchester Leisure,Grant Payments,14.10.2016,1905316646,"5,000.00",Friends of Beech Road Park
Manchester City Council,Manchester Leisure,Hire of Equipment,14.10.2016,5100878670,796.00,Nine Hundred Communications
Manchester City Council,Manchester Leisure,Hire of Equipment,14.10.2016,5100883279,"7,230.89",Eve Trakway
Manchester City Council,Manchester Leisure,Hire of Equipment,14.10.2016,5100883279,980.00,Eve Trakway
Manchester City Council,Manchester Leisure,Payments to Sub-Contractors,14.10.2016,5100882951,"1,450.00",Groundwork Landscapes Ltd
Manchester City Council,Manchester Leisure,Professional fees,14.10.2016,5100883922,"25,290.00",Belle Vue Manchester
Manchester City Council,Manchester Leisure,Professional fees,14.10.2016,5100884074,"25,522.57",Metro Dynamics Ltd
Manchester City Council,Manchester Leisure,Professional fees,14.10.2016,5100884072,"5,941.13",Metro Dynamics Ltd
Manchester City Council,Manchester Leisure,Professional fees,14.10.2016,5100883979,"3,150.00",Metro Dynamics Ltd
Manchester City Council,Manchester Leisure,Special Events,14.10.2016,5100883911,"33,552.75",MK Illuminations UK Ltd
Manchester City Council,Manchester Leisure,Travel,14.10.2016,1905310897,696.35,Redacted Personal Information
Manchester City Council,Manchester Leisure,Works and associated costs for Land and Buildings,14.10.2016,5100883827,"5,000.00",Kenny Bros (Civil Eng) Ltd
Manchester City Council,Manchester Leisure,Works and associated costs for Land and Buildings,14.10.2016,5100884068,"5,438.02",Manchester Working Ltd
Manchester City Council,Libraries and Theatres,Vehicle Plant Furniture and Equipment,14.10.2016,5100884177,"6,723.00",XMA Limited
Manchester City Council,Libraries and Theatres,Works and associated costs for Land and Buildings,14.10.2016,5100883901,"2,432.74",Manchester Working Ltd
Manchester City Council,Hospitality + Trading Services,Vehicle Costs,14.10.2016,5100883014,"6,653.62",Stapletons Tyre Services
Manchester City Council,Hospitality + Trading Services,Vehicle Costs,14.10.2016,5100883015,"6,008.63",Stapletons Tyre Services
Manchester City Council,Hospitality + Trading Services,Vehicle Costs,14.10.2016,5100883944,"-6,008.63",Stapletons Tyre Services
Manchester City Council,Hospitality + Trading Services,Vehicle Costs,14.10.2016,5100883945,"-6,653.62",Stapletons Tyre Services
Manchester City Council,Hospitality + Trading Services,Vehicle Hire Costs,14.10.2016,5100883912,"2,500.00",John Martin Devine Ltd
Manchester City Council,Hospitality + Trading Services,Vehicle Hire Costs,14.10.2016,5100883909,"-2,500.00",John Martin Devine Ltd
Manchester City Council,Environment and Operations,"Clothes, Uniform and Laundry",14.10.2016,5100884078,518.40,Arco Group Ltd
Manchester City Council,Adult Social Care,Agency staff provision,14.10.2016,5100882521,"1,947.56",Barker Ross Health & Social Care
Manchester City Council,Adult Social Care,Agency staff provision,14.10.2016,5100882521,"1,843.88",Barker Ross Health & Social Care
Manchester City Council,Adult Social Care,Bed and Breakfast Accommodation Expenditure,14.10.2016,5100883897,833.00,Redacted Personal Information
Manchester City Council,Adult Social Care,External repairs and maintenance for buildings,14.10.2016,5100883967,"58,268.47",Manchester Working Ltd
Manchester City Council,Adult Social Care,Funeral and coroner related services,14.10.2016,5100882889,"4,263.00",Funeral Prtnrs t/a Michael Kennedy
Manchester City Council,Adult Social Care,Funeral and coroner related services,14.10.2016,5100883960,"2,236.67",Funeral Prtnrs t/a Michael Kennedy
Manchester City Council,Adult Social Care,Funeral and coroner related services,14.10.2016,5100883968,"1,347.00",Funeral Prtnrs t/a Michael Kennedy
Manchester City Council,Adult Social Care,Internal Repairs and Maintenance for buildings,14.10.2016,1905316712,520.00,Happy Homes Uk Ltd
Manchester City Council,Adult Social Care,Payments for services,14.10.2016,5100883880,"729,256.30",The Together Trust
Manchester City Council,Adult Social Care,Payments for services,14.10.2016,5100883777,"12,190.00",Turning Point
Manchester City Council,Adult Social Care,Payments for services,14.10.2016,5100883774,"-8,970.00",Turning Point
Manchester City Council,Adult Social Care,Personal needs of client,14.10.2016,5100884090,"1,253.40",NRS Healthcare
Manchester City Council,Adult Social Care,Personal needs of client,14.10.2016,5100883920,"2,325.00",Park House (USE 30014310)
Manchester City Council,Adult Social Care,Professional fees,14.10.2016,5100883882,"200,000.00",Central Manchester University Hosp
Manchester City Council,Adult Social Care,Consultants Fees,14.10.2016,5100883988,"5,000.00",Leela Barham Economic Consulting Ltd
Manchester City Council,Adult Social Care,Rents,14.10.2016,1905310911,600.00,T15 Consultancy Ltd
Manchester City Council,Adult Social Care,Storage Costs,14.10.2016,5100883964,"1,814.52",PHS Records Management
Manchester City Council,Adult Social Care,Supported Accommodation,14.10.2016,5100882521,569.33,Barker Ross Health & Social Care
Manchester City Council,Adult Social Care,Third party payments relating to Voluntary Organisations,14.10.2016,5100883438,"2,345.25",Manchester Bangladeshi Womens Organ
Manchester City Council,Adult Social Care,Third party payments relating to Voluntary Organisations,14.10.2016,5100872724,"873,115.83",Central Manchester University Hosp
Manchester City Council,Adult Social Care,Third party payments relating to Voluntary Organisations,14.10.2016,5100884058,"-873,115.83",Central Manchester University Hosp
Manchester City Council,Adult Social Care,Third party payments relating to Voluntary Organisations,14.10.2016,5100884031,750.00,Simply Cycling - Wyth Wheelers
Manchester City Council,Adult Social Care,Third party payments relating to Voluntary Organisations,14.10.2016,5100884032,750.00,Simply Cycling - Wyth Wheelers
Manchester City Council,Adult Social Care,Third party payments relating to Voluntary Organisations,14.10.2016,5100880118,"1,250.00",African & Caribbean Mental Health
Manchester City Council,Adult Social Care,Third party payments relating to Voluntary Organisations,14.10.2016,5100883930,"-1,250.00",African & Caribbean Mental Health
Manchester City Council,Adult Social Care,Third party payments relating to Voluntary Organisations,14.10.2016,5100883640,"1,583.00",Levenshulme Good Neighbours
Manchester City Council,Adult Social Care,Third party payments to Health Authority,14.10.2016,1905316531,"2,890.00",Virgin Care Servs Ltd
Manchester City Council,Adult Social Care,Third party payments to Health Authority,14.10.2016,1905316533,775.00,Virgin Care Servs Ltd
Manchester City Council,Adult Social Care,Third party payments to Health Authority,14.10.2016,1905316545,"1,409.87",East Cheshire NHS Trust
Manchester City Council,Adult Social Care,Third party payments to other Local Authorities,14.10.2016,5100883674,763.00,Sale High School
Manchester City Council,Adult Social Care,Training and Development,14.10.2016,5100884071,795.00,SafeLives
Manchester City Council,Adult Social Care,Training and Development,14.10.2016,5100884075,795.00,SafeLives
Manchester City Council,Adult Social Care,Transport Coach Hire,14.10.2016,5100883534,"1,930.00",Hastings Private Hire
Manchester City Council,Adult Social Care,Transport Coach Hire,14.10.2016,5100883533,"1,870.00",Hastings Private Hire
Manchester City Council,Adult Social Care,Transport Coach Hire,14.10.2016,5100883530,"1,800.00",Hastings Private Hire
Manchester City Council,Adult Social Care,Transport Coach Hire,14.10.2016,5100883532,"1,615.00",Hastings Private Hire
Manchester City Council,Adult Social Care,Transport Coach Hire,14.10.2016,5100883410,"1,085.00",Hastings Private Hire
Manchester City Council,Adult Social Care,Transport Coach Hire,14.10.2016,5100883537,986.30,Hastings Private Hire
Manchester City Council,Adult Social Care,Transport Coach Hire,14.10.2016,5100883408,608.00,Hastings Private Hire
Manchester City Council,Childrens Services,Building Works,14.10.2016,5100884091,"656,838.30",United Learning Trust
Manchester City Council,Childrens Services,Building Works,14.10.2016,5100884089,"7,552.10",United Learning Trust
Manchester City Council,Childrens Services,Building Works,14.10.2016,5100884083,"2,715.00",United Learning Trust
Manchester City Council,Corporate Services,Grant and subscriptions awarded,14.10.2016,5100884069,"1,445.00",CIPFA Business Ltd
Manchester City Council,Corporate Services,Training and Development,14.10.2016,5100883978,838.00,Coachingworks4me Ltd
Manchester City Council,Corporate Services,Works and associated costs for Land and Buildings,14.10.2016,5100882688,"4,000.00",Atkins Limited
Manchester City Council,Corporate Services,Works and associated costs for Land and Buildings,14.10.2016,5100883927,"7,194.75",Manchester Working Ltd
Manchester City Council,Housing General Fund,Building Works,14.10.2016,1905316733,"9,066.00",Pollock Lifts Ltd
Manchester City Council,Housing General Fund,Building Works,14.10.2016,1905316722,"1,993.80",Chiltern Invadex Ltd
Manchester City Council,Housing General Fund,Building Works,14.10.2016,1905316751,"4,948.00",Stannah Lift Services Ltd
Manchester City Council,Housing General Fund,Building Works,14.10.2016,1905316753,"4,788.00",Stannah Lift Services Ltd
Manchester City Council,Housing General Fund,Building Works,14.10.2016,1905316732,"4,486.00",Stannah Lift Services Ltd
Manchester City Council,Housing General Fund,Building Works,14.10.2016,1905316757,"3,881.00",Stannah Lift Services Ltd
Manchester City Council,Housing General Fund,Building Works,14.10.2016,1905316748,"3,778.00",Stannah Lift Services Ltd
Manchester City Council,Housing General Fund,Building Works,14.10.2016,1905316758,"2,173.00",Stannah Lift Services Ltd
Manchester City Council,Housing General Fund,Building Works,14.10.2016,1905316746,"2,078.00",Stannah Lift Services Ltd
Manchester City Council,Housing General Fund,Building Works,14.10.2016,1905316754,"1,995.00",Stannah Lift Services Ltd
Manchester City Council,Housing General Fund,Building Works,14.10.2016,1905316759,"1,758.00",Stannah Lift Services Ltd
Manchester City Council,Housing General Fund,Building Works,14.10.2016,1905316721,"4,576.00",Thyssenkrupp Encasa
Manchester City Council,Housing General Fund,Building Works,14.10.2016,1905316736,"4,411.00",Thyssenkrupp Encasa
Manchester City Council,Housing General Fund,Building Works,14.10.2016,1905316740,"2,130.00",Hoist & Shower Chair Company
Manchester City Council,Housing General Fund,Building Works,14.10.2016,1905316745,"23,040.34",Kier Services Ltd - Maint West
Manchester City Council,Housing General Fund,Building Works,14.10.2016,1905316747,"10,712.80",Kier Services Ltd - Maint West
Manchester City Council,Housing General Fund,Building Works,14.10.2016,1905316730,"7,264.75",Kier Services Ltd - Maint West
Manchester City Council,Housing General Fund,Building Works,14.10.2016,1905316741,"5,002.51",Kier Services Ltd - Maint West
Manchester City Council,Housing General Fund,Building Works,14.10.2016,1905316738,"4,491.55",Kier Services Ltd - Maint West
Manchester City Council,Housing General Fund,Building Works,14.10.2016,1905316726,"4,444.89",Kier Services Ltd - Maint West
Manchester City Council,Housing General Fund,Building Works,14.10.2016,1905316723,"4,432.34",Kier Services Ltd - Maint West
Manchester City Council,Housing General Fund,Building Works,14.10.2016,1905316734,"4,406.51",Kier Services Ltd - Maint West
Manchester City Council,Housing General Fund,Building Works,14.10.2016,1905316725,"4,227.46",Kier Services Ltd - Maint West
Manchester City Council,Housing General Fund,Building Works,14.10.2016,1905316743,"4,030.44",Kier Services Ltd - Maint West
Manchester City Council,Housing General Fund,Building Works,14.10.2016,1905316744,"3,960.09",Kier Services Ltd - Maint West
Manchester City Council,Housing General Fund,Building Works,14.10.2016,1905316727,"3,947.12",Kier Services Ltd - Maint West
Manchester City Council,Housing General Fund,Building Works,14.10.2016,1905316752,"3,841.57",Kier Services Ltd - Maint West
Manchester City Council,Housing General Fund,Building Works,14.10.2016,1905316737,"3,781.60",Kier Services Ltd - Maint West
Manchester City Council,Housing General Fund,Building Works,14.10.2016,1905316735,"2,900.72",Kier Services Ltd - Maint West
Manchester City Council,Housing General Fund,Building Works,14.10.2016,1905316755,"2,578.94",Kier Services Ltd - Maint West
Manchester City Council,Housing General Fund,Building Works,14.10.2016,1905316739,"1,308.00",Kier Services Ltd - Maint West
Manchester City Council,Housing General Fund,Building Works,14.10.2016,1905316724,"1,200.00",Kier Services Ltd - Maint West
Manchester City Council,Housing General Fund,Building Works,14.10.2016,1905316731,"7,708.91",UPS Building & Maintenance Ltd
Manchester City Council,Housing General Fund,Building Works,14.10.2016,1905316749,"4,981.28",UPS Building & Maintenance Ltd
Manchester City Council,Housing General Fund,Building Works,14.10.2016,1905316742,"4,715.89",UPS Building & Maintenance Ltd
Manchester City Council,Housing General Fund,Building Works,14.10.2016,1905316750,"4,623.68",UPS Building & Maintenance Ltd
Manchester City Council,Housing General Fund,Building Works,14.10.2016,1905316756,"4,598.51",UPS Building & Maintenance Ltd
Manchester City Council,Housing General Fund,Building Works,14.10.2016,1905316729,"4,409.24",UPS Building & Maintenance Ltd
Manchester City Council,Housing General Fund,Building Works,14.10.2016,1905316728,"4,382.62",UPS Building & Maintenance Ltd
Manchester City Council,Housing Revenue Account,Council Dwelling Adaptations,14.10.2016,5100883895,"2,221.00",Stannah Lift Services Ltd
Manchester City Council,Housing Revenue Account,Private Finance and Public Private partnership initiatives,14.10.2016,5100882790,"442,670.89",Grove Village Ltd
Manchester City Council,Chief Executives,Agency staff provision,14.10.2016,5100882509,"2,235.28",Rullion Resource Limited
Manchester City Council,Chief Executives,Agency staff provision,14.10.2016,5100879034,"1,911.75",Spring Technology Staffing Services
Manchester City Council,Chief Executives,Agency staff provision,14.10.2016,5100883832,"-1,911.75",Spring Technology Staffing Services
Manchester City Council,Chief Executives,Agency staff provision,14.10.2016,5100882477,"1,237.17",Kenyon Block Consultants Ltd
Manchester City Council,Chief Executives,Agency staff provision,14.10.2016,5100884061,"9,708.81",Ashberry Recruitment Ltd
Manchester City Council,Chief Executives,Agency staff provision,14.10.2016,5100882521,"14,653.04",Barker Ross Health & Social Care
Manchester City Council,Chief Executives,Collection Commission,14.10.2016,5100883855,"7,546.34",Verrus (UK) T/A paybyphone
Manchester City Council,Chief Executives,Compensation Payments,14.10.2016,1905315462,"17,850.00",Clear Law Solicitors
Manchester City Council,Chief Executives,Equipment,14.10.2016,5100883924,"10,268.60",Xerox (Uk) Ltd
Manchester City Council,Chief Executives,Examination Fees,14.10.2016,5100884049,504.88,Central Manchester University Hosp
Manchester City Council,Chief Executives,Examination Fees,14.10.2016,5100883776,"4,975.00",ROAR Forensics Ltd
Manchester City Council,Chief Executives,Expenditure re Internal Trading Ordered Externally,14.10.2016,5100884026,"66,655.95",Electoral Reform Services Ltd
Manchester City Council,Chief Executives,Expenditure re Internal Trading Ordered Externally,14.10.2016,5100884025,"4,747.74",Electoral Reform Services Ltd
Manchester City Council,Chief Executives,Funeral and coroner related services,14.10.2016,5100884049,"26,375.01",Central Manchester University Hosp
Manchester City Council,Chief Executives,Funeral and coroner related services,14.10.2016,5100884049,"8,356.99",Central Manchester University Hosp
Manchester City Council,Chief Executives,Funeral and coroner related services,14.10.2016,5100884048,"-43,596.43",Central Manchester University Hosp
Manchester City Council,Chief Executives,Grant Payments,14.10.2016,5100882261,"6,250.00",Centre for Chinese Contemporary
Manchester City Council,Chief Executives,Grant Payments,14.10.2016,5100881816,"7,500.00",Contact Theatre Company
Manchester City Council,Chief Executives,Grant Payments,14.10.2016,5100883568,"5,000.00",Manchester Camerata
Manchester City Council,Chief Executives,Paper & Envelopes,14.10.2016,5100883335,884.81,Premier Paper Group Ltd
Manchester City Council,Chief Executives,Payments to Sub-Contractors,14.10.2016,5100884047,"1,500.00",GRO2MOW Limited
Manchester City Council,Chief Executives,Printing,14.10.2016,5100883959,858.00,John Baxter & Sons Ltd
Manchester City Council,Chief Executives,Professional fees,14.10.2016,5100884073,"4,950.00",Atkins Limited
Manchester City Council,Chief Executives,Publications,14.10.2016,5100883903,836.99,Thompson Reuters
Manchester City Council,Chief Executives,Purchase of stores for re-distribution,14.10.2016,5100883962,"1,123.20",Instarmac Group Ltd
Manchester City Council,Chief Executives,Purchase of stores for re-distribution,14.10.2016,5100882650,806.85,Arco Group Ltd
Manchester City Council,Chief Executives,"Vehicles, Plant, Furniture & Equip - Adaptations",14.10.2016,5100882509,"3,448.00",Rullion Resource Limited
Manchester City Council,Chief Executives,Compensation Payments,14.10.2016,1905316691,600.00,Tranter Cleere & Co
Manchester City Council,Regeneration Finance,Grounds Maintenance Costs,14.10.2016,5100883638,630.00,Countrywide Grounds Maintenance Ltd
Manchester City Council,Regeneration Finance,Pension Contributions,14.10.2016,1905288604,"32,397.00",Legal & General Assurance Society L
Manchester City Council,Regeneration Finance,Pension Contributions,14.10.2016,1700066158,"14,236.48",Legal & General Assurance Society L
Manchester City Council,Regeneration Finance,Pension Contributions,14.10.2016,1905288605,"13,620.26",Legal & General Assurance Society L
Manchester City Council,Regeneration Finance,Pension Contributions,14.10.2016,1700066160,"-13,620.26",Legal & General Assurance Society L
Manchester City Council,Regeneration Finance,Pension Contributions,14.10.2016,1700066159,"-32,397.00",Legal & General Assurance Society L
Manchester City Council,Regeneration Finance,Professional fees,14.10.2016,5100883803,"-7,400.00",Buro Happold Limited
Manchester City Council,Regeneration Finance,Professional fees,14.10.2016,5100883942,"1,650.00",Richard Hattan Limited
Manchester City Council,Regeneration Finance,Training and Development,14.10.2016,5100884079,"2,046.00",Right 2 Write Ltd
Manchester City Council,Regeneration Finance,Legal Fees,14.10.2016,5100883856,"2,679.01",Slater & Gordon (UK) LLP
Manchester City Council,Regeneration Finance,Compensation Payments,14.10.2016,1905315576,"1,114.00",Simpson Millar LLP
Manchester City Council,Manchester Leisure,Building Materials for direct delivery,17.10.2016,5100883987,746.78,Howarth Timber
Manchester City Council,Manchester Leisure,Compensation Payments,17.10.2016,1905310928,"3,000.00",Accountant General of the Senior
Manchester City Council,Manchester Leisure,Compensation Payments,17.10.2016,1905316694,"2,500.00",Handley Law
Manchester City Council,Manchester Leisure,Construction Works,17.10.2016,5100884107,"1,039.00",Russell Leisure Ltd
Manchester City Council,Manchester Leisure,Construction Works,17.10.2016,5100884110,"1,039.00",Russell Leisure Ltd
Manchester City Council,Manchester Leisure,Furniture,17.10.2016,5100881570,604.00,Back Care Solutions Ltd
Manchester City Council,Manchester Leisure,Grant Payments,17.10.2016,1905307253,"2,710.00",Burnage Community Association.
Manchester City Council,Manchester Leisure,Hire of Machinery,17.10.2016,5100884409,590.00,T.H. Horn Ltd
Manchester City Council,Manchester Leisure,Hire of Machinery,17.10.2016,5100884410,590.00,T.H. Horn Ltd
Manchester City Council,Manchester Leisure,Hire of Machinery,17.10.2016,5100884411,590.00,T.H. Horn Ltd
Manchester City Council,Manchester Leisure,Payments for services,17.10.2016,5100883431,"1,551.50",W S Education
Manchester City Council,Manchester Leisure,Payments for services,17.10.2016,5100883397,"232,000.00",Eastlands Trust Limited
Manchester City Council,Manchester Leisure,Payments to Sub-Contractors,17.10.2016,5100884387,"10,225.00",John Martin Painting Contractors
Manchester City Council,Manchester Leisure,Payments to Sub-Contractors,17.10.2016,5100884383,561.94,Fast Hire UK
Manchester City Council,Manchester Leisure,Professional fees,17.10.2016,5100884108,"2,400.00",Ove Arup & Partners Ltd
Manchester City Council,Manchester Leisure,Testing Fees,17.10.2016,5100884324,"1,492.50",County Scientific Services
Manchester City Council,Manchester Leisure,Training and Development,17.10.2016,5100883584,547.00,Lois Burton Ltd
Manchester City Council,Manchester Leisure,Training and Development,17.10.2016,5100884164,835.00,Serco Limited
Manchester City Council,Manchester Leisure,Legal Fees,17.10.2016,5100884280,750.00,Redacted Personal Information
Manchester City Council,Manchester Leisure,Compensation Payments,17.10.2016,1905316693,"1,446.00",Handley Law
Manchester City Council,Hospitality + Trading Services,Agency staff provision,17.10.2016,5100883109,751.80,Search Consultancy Ltd
Manchester City Council,Hospitality + Trading Services,Catering Provisions,17.10.2016,1905318303,948.39,Brake Bros Foodservice Ltd
Manchester City Council,Hospitality + Trading Services,Catering Provisions,17.10.2016,1905318212,901.43,Brake Bros Foodservice Ltd
Manchester City Council,Hospitality + Trading Services,Catering Provisions,17.10.2016,1905318247,892.71,Brake Bros Foodservice Ltd
Manchester City Council,Hospitality + Trading Services,Catering Provisions,17.10.2016,1905318274,816.44,Brake Bros Foodservice Ltd
Manchester City Council,Hospitality + Trading Services,Catering Provisions,17.10.2016,1905318257,814.75,Brake Bros Foodservice Ltd
Manchester City Council,Hospitality + Trading Services,Catering Provisions,17.10.2016,1905318229,793.34,Brake Bros Foodservice Ltd
Manchester City Council,Hospitality + Trading Services,Catering Provisions,17.10.2016,1905318243,764.16,Brake Bros Foodservice Ltd
Manchester City Council,Hospitality + Trading Services,Catering Provisions,17.10.2016,1905318214,757.26,Brake Bros Foodservice Ltd
Manchester City Council,Hospitality + Trading Services,Catering Provisions,17.10.2016,1905318296,714.09,Brake Bros Foodservice Ltd
Manchester City Council,Hospitality + Trading Services,Catering Provisions,17.10.2016,1905318144,696.76,Brake Bros Foodservice Ltd
Manchester City Council,Hospitality + Trading Services,Catering Provisions,17.10.2016,1905318283,627.87,Brake Bros Foodservice Ltd
Manchester City Council,Hospitality + Trading Services,Catering Provisions,17.10.2016,1905318302,624.49,Brake Bros Foodservice Ltd
Manchester City Council,Hospitality + Trading Services,Catering Provisions,17.10.2016,1905318237,613.27,Brake Bros Foodservice Ltd
Manchester City Council,Hospitality + Trading Services,Catering Provisions,17.10.2016,1905318268,599.76,Brake Bros Foodservice Ltd
Manchester City Council,Hospitality + Trading Services,Catering Provisions,17.10.2016,1905318178,595.39,Brake Bros Foodservice Ltd
Manchester City Council,Hospitality + Trading Services,Catering Provisions,17.10.2016,1905318227,589.50,Brake Bros Foodservice Ltd
Manchester City Council,Hospitality + Trading Services,Catering Provisions,17.10.2016,1905318300,565.11,Brake Bros Foodservice Ltd
Manchester City Council,Hospitality + Trading Services,Catering Provisions,17.10.2016,1905318183,553.84,Brake Bros Foodservice Ltd
Manchester City Council,Hospitality + Trading Services,Catering Provisions,17.10.2016,1905318149,512.93,Brake Bros Foodservice Ltd
Manchester City Council,Hospitality + Trading Services,Catering Provisions,17.10.2016,1905318150,506.64,Brake Bros Foodservice Ltd
Manchester City Council,Hospitality + Trading Services,Catering Provisions,17.10.2016,1905318152,847.70,Chicken Joes Limited
Manchester City Council,Hospitality + Trading Services,"Clothes, Uniform and Laundry",17.10.2016,5100884415,"1,649.65",Image@Work Ltd
Manchester City Council,Hospitality + Trading Services,Equipment,17.10.2016,5100883966,"3,000.00",DP Structures Ltd
Manchester City Council,Hospitality + Trading Services,Hire of Machinery,17.10.2016,5100884200,880.00,Kensite Services Ltd
Manchester City Council,Hospitality + Trading Services,Hire of Machinery,17.10.2016,5100884203,816.48,Kensite Services Ltd
Manchester City Council,Hospitality + Trading Services,Hire of Machinery,17.10.2016,5100884209,684.20,Kensite Services Ltd
Manchester City Council,Hospitality + Trading Services,Hire of Machinery,17.10.2016,5100884206,550.00,Kensite Services Ltd
Manchester City Council,Hospitality + Trading Services,Hire of Machinery,17.10.2016,5100884210,550.00,Kensite Services Ltd
Manchester City Council,Hospitality + Trading Services,Postage,17.10.2016,5100883734,"1,395.50",Reward Manufacturing Co Ltd
Manchester City Council,Hospitality + Trading Services,Vehicle Hire Costs,17.10.2016,5100884323,"1,130.24",Dawson Rentals Sweepers
Manchester City Council,Environment and Operations,Works and associated costs for Land and Buildings,17.10.2016,5100870690,"2,154.88",Verizon UK Ltd
Manchester City Council,Adult Social Care,Agency staff provision,17.10.2016,5100883109,884.80,Search Consultancy Ltd
Manchester City Council,Adult Social Care,Agency staff provision,17.10.2016,5100883276,967.75,Sanctuary Social Care
Manchester City Council,Adult Social Care,Agency staff provision,17.10.2016,5100883276,967.75,Sanctuary Social Care
Manchester City Council,Adult Social Care,Agency staff provision,17.10.2016,5100883114,722.82,Morgan Hunt Public Sector Ltd
Manchester City Council,Adult Social Care,Agency staff provision,17.10.2016,5100882462,"2,551.50",Medicare First
Manchester City Council,Adult Social Care,Agency staff provision,17.10.2016,5100882462,774.20,Medicare First
Manchester City Council,Adult Social Care,Agency staff provision,17.10.2016,5100882730,678.69,HR GO Recruitment Healthcare
Manchester City Council,Adult Social Care,Agency staff provision,17.10.2016,5100882730,520.70,HR GO Recruitment Healthcare
Manchester City Council,Adult Social Care,Agency staff provision,17.10.2016,5100882768,"2,098.60",Liquid Personnel Ltd
Manchester City Council,Adult Social Care,Agency staff provision,17.10.2016,5100882766,967.75,Liquid Personnel Ltd
Manchester City Council,Adult Social Care,Agency staff provision,17.10.2016,5100882768,967.75,Liquid Personnel Ltd
Manchester City Council,Adult Social Care,Agency staff provision,17.10.2016,5100882766,967.75,Liquid Personnel Ltd
Manchester City Council,Adult Social Care,Agency staff provision,17.10.2016,5100882768,967.75,Liquid Personnel Ltd
Manchester City Council,Adult Social Care,Bed and Breakfast Accommodation Expenditure,17.10.2016,5100884187,"8,800.00",Redacted Personal Information
Manchester City Council,Adult Social Care,Bed and Breakfast Accommodation Expenditure,17.10.2016,5100884364,"53,619.29",Accommodation Links Ltd
Manchester City Council,Adult Social Care,Bed and Breakfast Accommodation Expenditure,17.10.2016,5100884342,"16,913.44",G & A Taylor Hotels Ltd
Manchester City Council,Adult Social Care,Bed and Breakfast Accommodation Expenditure,17.10.2016,5100884335,833.00,Redacted Personal Information
Manchester City Council,Adult Social Care,Bed and Breakfast Accommodation Expenditure,17.10.2016,5100884337,833.00,Redacted Personal Information
Manchester City Council,Adult Social Care,Contract Cleaning External,17.10.2016,5100884361,"2,880.00",Tiddlywinks Day Nursery Ltd
Manchester City Council,Adult Social Care,Contract Cleaning External,17.10.2016,5100884352,"1,920.00",Tiddlywinks Day Nursery
Manchester City Council,Adult Social Care,Contract Cleaning External,17.10.2016,5100884332,"4,800.00",Tiddlywinks Nursery-Clayton No.4 Ac
Manchester City Council,Adult Social Care,Extra Care Sheltered Housing Payments,17.10.2016,5100883316,"16,972.61",DH Homecare Ltd (Direct Health)
Manchester City Council,Adult Social Care,Grant Payments,17.10.2016,5100884389,599.00,Oxford University Press
Manchester City Council,Adult Social Care,Grounds Maintenance Costs,17.10.2016,5100884348,916.50,Tiddlywinks Nursery-Clayton No.4 Ac
Manchester City Council,Adult Social Care,Home Care ,17.10.2016,5100884114,"1,440.00",Shipley College
Manchester City Council,Adult Social Care,Landline Telephone Charges,17.10.2016,1905316951,"1,137.00",Bt Payphones
Manchester City Council,Adult Social Care,Payments for services,17.10.2016,5100881721,"8,947.00",Age Concern Manchester
Manchester City Council,Adult Social Care,Payments for services,17.10.2016,5100881721,"4,801.50",Age Concern Manchester
Manchester City Council,Adult Social Care,Payments for services,17.10.2016,5100884369,831.48,H.G. Care Services Ltd
Manchester City Council,Adult Social Care,Payments for services,17.10.2016,5100884189,780.00,Redacted Personal Information
Manchester City Council,Adult Social Care,Payments for services,17.10.2016,5100884386,"10,290.00",Time Specialist Support Ltd
Manchester City Council,Adult Social Care,Payments for services,17.10.2016,5100884384,"9,660.00",Time Specialist Support Ltd
Manchester City Council,Adult Social Care,Payments for services,17.10.2016,5100883088,"5,979.55",Enhance EHC Ltd
Manchester City Council,Adult Social Care,Payments for services,17.10.2016,5100882957,"1,966.50",Enhance EHC Ltd
Manchester City Council,Adult Social Care,Private Finance and Public Private partnership initiatives,17.10.2016,5100882750,"74,785.80",NU3PS
Manchester City Council,Adult Social Care,Professional fees,17.10.2016,5100884174,"2,261.00",AECOM Limited
Manchester City Council,Adult Social Care,Professional fees,17.10.2016,1905315572,509.00,Anglia DNA Services Ltd
Manchester City Council,Adult Social Care,Rents,17.10.2016,5100884394,"2,688.64",Mosscare Housing Ltd
Manchester City Council,Adult Social Care,Storage Costs,17.10.2016,5100884201,"1,740.69",Iron Mountain
Manchester City Council,Adult Social Care,Storage Costs,17.10.2016,5100884327,"3,396.44",PHS Records Management
Manchester City Council,Adult Social Care,Supporting People Payments,17.10.2016,5100884052,758.33,Albert Kennedy Trust
Manchester City Council,Adult Social Care,Supporting People Payments,17.10.2016,5100884053,758.33,Albert Kennedy Trust
Manchester City Council,Adult Social Care,Supporting People Payments,17.10.2016,5100884062,"27,734.73",Manchester Womens Aid
Manchester City Council,Adult Social Care,Supporting People Payments,17.10.2016,5100884062,"12,800.50",Manchester Womens Aid
Manchester City Council,Adult Social Care,Third party payments relating to Voluntary Organisations,17.10.2016,5100883853,"1,650.00",Barlow Moor Community Association
Manchester City Council,Adult Social Care,Third party payments relating to Voluntary Organisations,17.10.2016,5100883621,"1,133.75",Royal Oak & Baguley Residents Assoc
Manchester City Council,Adult Social Care,Third party payments relating to Voluntary Organisations,17.10.2016,5100884118,"1,629.13",Alzheimers Society (Mcr Branch)
Manchester City Council,Adult Social Care,Third party payments relating to Voluntary Organisations,17.10.2016,5100884116,673.00,Alzheimers Society (Mcr Branch)
Manchester City Council,Adult Social Care,Third party payments relating to Voluntary Organisations,17.10.2016,5100881791,"1,500.00",Age Concern Manchester
Manchester City Council,Adult Social Care,Third party payments relating to Voluntary Organisations,17.10.2016,5100883712,"2,250.00",Trinity House Community Resource Ce
Manchester City Council,Adult Social Care,Third party payments relating to Voluntary Organisations,17.10.2016,5100883065,"1,500.00",Ladybarn Community Association
Manchester City Council,Adult Social Care,Third party payments relating to Voluntary Organisations,17.10.2016,5100884104,"44,308.08",Lifeline Project Limited
Manchester City Council,Adult Social Care,Third party payments relating to Voluntary Organisations,17.10.2016,5100883694,600.00,Manchester Black Health Forum
Manchester City Council,Adult Social Care,Third party payments relating to Voluntary Organisations,17.10.2016,5100884050,"1,500.00",Somali Adult Social Care Agency
Manchester City Council,Adult Social Care,Third party payments relating to Voluntary Organisations,17.10.2016,5100884051,"1,500.00",Somali Adult Social Care Agency
Manchester City Council,Adult Social Care,Third party payments relating to Voluntary Organisations,17.10.2016,5100884064,"2,693.66",Manchester Womens Aid
Manchester City Council,Adult Social Care,Third party payments relating to Voluntary Organisations,17.10.2016,5100884365,725.00,Little Superstars Sports Club
Manchester City Council,Adult Social Care,Third party payments to Health Authority,17.10.2016,5100883937,"401,023.00",Manchester Mental Health & Social C
Manchester City Council,Adult Social Care,Third party payments to Health Authority,17.10.2016,5100884045,"149,613.00",Manchester Mental Health & Social C
Manchester City Council,Adult Social Care,Third party payments to Health Authority,17.10.2016,5100884045,"32,907.00",Manchester Mental Health & Social C
Manchester City Council,Adult Social Care,Third party payments to Health Authority,17.10.2016,5100884045,"14,538.42",Manchester Mental Health & Social C
